Service_Label,Service_Code,Service_Division_Label,Service_Division_Code,Organisational_Unit_Label,Organisational_Unit_Code,Merchant_Category,Summary_of_the_purpose_of_the_expenditure,Date,Transaction_Number,Capital_and_Revenue,Supplier_Name,Supplier_ID,Net_Amount
Transport Capital,CCAP,Bridges,CCAPB,Other Bridge Works,CG0042,Capital,Payments to Contractors,24/05/2022,3509870,Capital - General Fund,Ramboll UK Ltd,18762,526.50
Transport Capital,CCAP,Highways,CCAPH,Additional Roads Programme,CG0026,Capital,Payments to Contractors,23/05/2022,3509909,Capital - General Fund,Balfour Beatty Living Places Ltd,20306,"1,260,800.65"
Transport Capital,CCAP,Highways,CCAPH,Additional Roads Programme,CG0026,Capital,Payments to Contractors,21/06/2022,3515698,Capital - General Fund,Balfour Beatty Living Places Ltd,20306,"1,806,544.44"
Transport Capital,CCAP,Highways,CCAPH,St Lighting,CG0053,Capital,Payments to Contractors,05/04/2022,3431756,Capital - General Fund,Enerveo Limited (Formerly SSE Contracting Ltd),20093,"1,123.20"
Transport Capital,CCAP,Integrated Transport,CCAPI,Road Safety Partnership,CG0005,Capital,Other Capital Expenditure,26/05/2022,3510687,Capital - General Fund,Enerveo Limited (Formerly SSE Contracting Ltd),15283,"8,752.24"
Transport Capital,CCAP,Integrated Transport,CCAPI,Public Transport,CG0008,Capital,Other Capital Expenditure,13/04/2022,3432596,Capital - General Fund,JMW Systems LTd,20515,"3,675.00"
Transport Capital,CCAP,Integrated Transport,CCAPI,Accessibility,CG0013,Capital,Other Capital Expenditure,28/04/2022,3503100,Capital - General Fund,Atkins Limited,18277,"1,400.00"
Transport Capital,CCAP,Integrated Transport,CCAPI,Accessibility,CG0013,Capital,Other Capital Expenditure,01/04/2022,3427953,Capital - General Fund,EFE Consultancy Limited,16175,"11,841.18"
Transport Capital,CCAP,Integrated Transport,CCAPI,Accessibility,CG0013,Capital,Other Capital Expenditure,05/05/2022,3504207,Capital - General Fund,GW Shelter Solutions Ltd,41345,"1,930.23"
Transport Capital,CCAP,Integrated Transport,CCAPI,Accessibility,CG0013,Capital,Other Capital Expenditure,28/04/2022,3426912,Capital - General Fund,GW Shelter Solutions Ltd,41345,"4,515.00"
Transport Capital,CCAP,Integrated Transport,CCAPI,Local Transport Improvement Fund,CG0016,Capital,Payments to Contractors,13/06/2022,3512942,Capital - General Fund,Enerveo Limited (Formerly SSE Contracting Ltd),20093,"5,943.70"
Transport Capital,CCAP,Integrated Transport,CCAPI,ITS,CG0017,Capital,Other Capital Expenditure,01/04/2022,3430283,Capital - General Fund,Hampshire County Council (Main),18625,"12,590.00"
Transport Capital,CCAP,Integrated Transport,CCAPI,FTZ Theme 1 - Personal Mobility,CG0209,Capital,Other Capital Expenditure,05/04/2022,3428478,Capital - General Fund,Portsmouth City Council,13832,"109,061.00"
Transport Capital,CCAP,Integrated Transport,CCAPI,FTZ Theme 1 - Personal Mobility,CG0209,Capital,Other Capital Expenditure,28/04/2022,3503129,Capital - General Fund,University of Portsmouth,14810,"112,672.04"
Transport Capital,CCAP,Integrated Transport,CCAPI,FTZ Theme 1 - Personal Mobility,CG0209,Capital,Other Capital Expenditure,19/05/2022,3506069,Capital - General Fund,University Of Southampton,16259,"98,424.65"
Transport Capital,CCAP,Integrated Transport,CCAPI,Transforming Cities Fund,CG0215,Capital,Other Capital Expenditure,17/05/2022,3508819,Capital - General Fund,Clear Channel UK Ltd,17625,"4,481.25"
Transport Capital,CCAP,Integrated Transport,CCAPI,Transforming Cities Fund,CG0215,Capital,Other Capital Expenditure,17/05/2022,3508820,Capital - General Fund,Clear Channel UK Ltd,17625,"4,481.25"
Transport Capital,CCAP,Integrated Transport,CCAPI,Transforming Cities Fund,CG0215,Capital,Other Capital Expenditure,01/04/2022,3430284,Capital - General Fund,Hampshire County Council (Main),18625,"7,410.00"
Transport Capital,CCAP,Integrated Transport,CCAPI,Transforming Cities Fund,CG0215,Capital,Other Capital Expenditure,14/04/2022,3434675,Capital - General Fund,Hampshire County Council (Main),18625,"133,089.28"
Transport Capital,CCAP,Integrated Transport,CCAPI,Transforming Cities Fund,CG0215,Capital,Other Capital Expenditure,26/05/2022,3511352,Capital - General Fund,Hampshire County Council (Main),18625,"2,340.00"
Transport Capital,CCAP,Integrated Transport,CCAPI,Transforming Cities Fund,CG0215,Capital,Other Capital Expenditure,05/04/2022,3431741,Capital - General Fund,Hampshire County Council (Main),18625,"2,600.00"
Transport Capital,CCAP,Integrated Transport,CCAPI,Transforming Cities Fund,CG0215,Capital,Other Capital Expenditure,05/04/2022,3431744,Capital - General Fund,Hampshire County Council (Main),18625,"109,102.75"
Transport Capital,CCAP,Integrated Transport,CCAPI,Transforming Cities Fund,CG0215,Capital,Other Capital Expenditure,29/06/2022,3519294,Capital - General Fund,Robin Creative Media Ltd,28350,800.00
Transport Capital,CCAP,Integrated Transport,CCAPI,Transforming Cities Fund,CG0215,Capital,Other Capital Expenditure,27/04/2022,3502499,Capital - General Fund,The Floow Limited,47223,"1,210.00"
Transport Capital,CCAP,Integrated Transport,CCAPI,Transforming Cities Fund,CG0215,Capital,Other Capital Expenditure,08/04/2022,3430793,Capital - General Fund,Ubiquity Group Ltd,14200,"-16,550.00"
Transport Capital,CCAP,Integrated Transport,CCAPI,Transforming Cities Fund,CG0215,Capital,Other Capital Expenditure,14/06/2022,3513917,Capital - General Fund,Ubiquity Group Ltd,14200,"4,066.00"
Transport Capital,CCAP,Integrated Transport,CCAPI,Transforming Cities Fund,CG0215,Capital,Other Capital Expenditure,21/06/2022,3516804,Capital - General Fund,Will Curnow Studios,46043,"1,650.00"
Transport Capital,CCAP,Integrated Transport,CCAPI,Transforming Cities Fund,CG0215,Capital,Payments to Contractors,12/05/2022,3506790,Capital - General Fund,Balfour Beatty Living Places Ltd,20306,"34,066.28"
Transport Capital,CCAP,Integrated Transport,CCAPI,Transforming Cities Fund,CG0215,Capital,Payments to Contractors,17/06/2022,3515703,Capital - General Fund,Balfour Beatty Living Places Ltd,20306,"549,549.54"
Transport Capital,CCAP,Integrated Transport,CCAPI,Transforming Cities Fund,CG0215,Capital,Payments to Contractors,24/06/2022,3517009,Capital - General Fund,Balfour Beatty Living Places Ltd,20306,"81,730.11"
Transport Capital,CCAP,Integrated Transport,CCAPI,Transforming Cities Fund,CG0215,Capital,Payments to Contractors,12/05/2022,3506791,Capital - General Fund,Balfour Beatty Living Places Ltd,20306,"66,750.27"
Transport Capital,CCAP,Integrated Transport,CCAPI,Transforming Cities Fund,CG0215,Capital,Payments to Contractors,12/05/2022,3506792,Capital - General Fund,Balfour Beatty Living Places Ltd,20306,"1,586.23"
Transport Capital,CCAP,Integrated Transport,CCAPI,Transforming Cities Fund,CG0215,Capital,Payments to Contractors,13/04/2022,3432719,Capital - General Fund,Balfour Beatty Living Places Ltd,20306,"18,628.59"
Transport Capital,CCAP,Integrated Transport,CCAPI,Transforming Cities Fund,CG0215,Capital,Payments to Contractors,13/04/2022,3432720,Capital - General Fund,Balfour Beatty Living Places Ltd,20306,"52,860.63"
Transport Capital,CCAP,Integrated Transport,CCAPI,Transforming Cities Fund,CG0215,Capital,Payments to Contractors,20/04/2022,3435166,Capital - General Fund,Balfour Beatty Living Places Ltd,20306,"1,196,701.43"
Transport Capital,CCAP,Integrated Transport,CCAPI,Transforming Cities Fund,CG0215,Capital,Payments to Contractors,23/05/2022,3509968,Capital - General Fund,Balfour Beatty Living Places Ltd,20306,"1,258,221.28"
Transport Capital,CCAP,Integrated Transport,CCAPI,Transforming Cities Fund,CG0215,Capital,Payments to Contractors,12/05/2022,3505583,Capital - General Fund,Balfour Beatty Living Places Ltd,20306,"2,505.45"
Transport Capital,CCAP,Integrated Transport,CCAPI,Transforming Cities Fund,CG0215,Capital,Payments to Contractors,12/05/2022,3506793,Capital - General Fund,Balfour Beatty Living Places Ltd,20306,"19,667.89"
Transport Capital,CCAP,Integrated Transport,CCAPI,Transforming Cities Fund,CG0215,Capital,Payments to Contractors,12/05/2022,3506794,Capital - General Fund,Balfour Beatty Living Places Ltd,20306,"2,505.45"
Transport Capital,CCAP,Integrated Transport,CCAPI,Transforming Cities Fund,CG0215,Capital,Payments to Contractors,13/04/2022,3432722,Capital - General Fund,Balfour Beatty Living Places Ltd,20306,"27,392.53"
Transport Capital,CCAP,Integrated Transport,CCAPI,Transforming Cities Fund,CG0215,Capital,Payments to Contractors,13/04/2022,3432723,Capital - General Fund,Balfour Beatty Living Places Ltd,20306,"53,939.11"
Transport Capital,CCAP,Integrated Transport,CCAPI,Transforming Cities Fund,CG0215,Capital,Payments to Contractors,12/05/2022,3506788,Capital - General Fund,Balfour Beatty Living Places Ltd,20306,"22,167.57"
Transport Capital,CCAP,Integrated Transport,CCAPI,Transforming Cities Fund,CG0215,Capital,Payments to Contractors,12/05/2022,3506789,Capital - General Fund,Balfour Beatty Living Places Ltd,20306,"77,811.33"
Transport Capital,CCAP,Integrated Transport,CCAPI,Transforming Cities Fund,CG0215,Capital,Payments to Contractors,13/04/2022,3432718,Capital - General Fund,Balfour Beatty Living Places Ltd,20306,"14,181.00"
Transport Capital,CCAP,Integrated Transport,CCAPI,Transforming Cities Fund,CG0215,Capital,Payments to Contractors,13/04/2022,3432721,Capital - General Fund,Balfour Beatty Living Places Ltd,20306,"41,047.36"
Transport Capital,CCAP,Integrated Transport,CCAPI,Transforming Cities Fund,CG0215,Capital,Payments to Contractors,22/06/2022,3514785,Capital - General Fund,Clear Channel UK Ltd,17625,"3,216.00"
Transport Capital,CCAP,Integrated Transport,CCAPI,Transforming Cities Fund,CG0215,Capital,Payments to Contractors,25/04/2022,3435453,Capital - General Fund,Enerveo Limited (Formerly SSE Contracting Ltd),20093,"1,743.29"
Transport Capital,CCAP,Integrated Transport,CCAPI,FTZ Theme 2 - Sustainable Urban Loggistics,CG0217,Capital,Other Capital Expenditure,23/05/2022,3503130,Capital - General Fund,University of Portsmouth,14810,"34,162.41"
Transport Capital,CCAP,Integrated Transport,CCAPI,FTZ Theme 2 - Sustainable Urban Loggistics,CG0217,Capital,Other Capital Expenditure,28/04/2022,3503131,Capital - General Fund,University of Portsmouth,14810,"21,911.53"
Transport Capital,CCAP,Integrated Transport,CCAPI,FTZ Theme 2 - Sustainable Urban Loggistics,CG0217,Capital,Other Capital Expenditure,23/05/2022,3503132,Capital - General Fund,University of Portsmouth,14810,"17,828.61"
Transport Capital,CCAP,Integrated Transport,CCAPI,FTZ Theme 2 - Sustainable Urban Loggistics,CG0217,Capital,Other Capital Expenditure,23/05/2022,3508634,Capital - General Fund,University Of Southampton,16259,"19,301.58"
Transport Capital,CCAP,Integrated Transport,CCAPI,FTZ Theme 2 - Sustainable Urban Loggistics,CG0217,Capital,Other Capital Expenditure,23/05/2022,3508635,Capital - General Fund,University Of Southampton,16259,"128,437.83"
Transport Capital,CCAP,Integrated Transport,CCAPI,FTZ Theme 2 - Sustainable Urban Loggistics,CG0217,Capital,Other Capital Expenditure,23/05/2022,3509615,Capital - General Fund,University Of Southampton,16259,"105,000.00"
Transport Capital,CCAP,Integrated Transport,CCAPI,FTZ Programme - Other,CG0218,Capital,Other Capital Expenditure,20/06/2022,3515958,Capital - General Fund,Barclays Eagle Labs,19480,"1,000.00"
Transport Capital,CCAP,Integrated Transport,CCAPI,FTZ Programme - Other,CG0218,Capital,Other Capital Expenditure,04/05/2022,3436320,Capital - General Fund,Hampshire County Council (Main),18625,"14,254.56"
Transport Capital,CCAP,Integrated Transport,CCAPI,FTZ Programme - Other,CG0218,Capital,Other Capital Expenditure,24/06/2022,3517787,Capital - General Fund,Hampshire County Council (Main),18625,"72,372.46"
Transport Capital,CCAP,Integrated Transport,CCAPI,FTZ Programme - Other,CG0218,Capital,Other Capital Expenditure,27/04/2022,3502066,Capital - General Fund,National Museum Of The Royal Navy,47060,"1,300.00"
Transport Capital,CCAP,Integrated Transport,CCAPI,FTZ Programme - Other,CG0218,Capital,Other Capital Expenditure,23/06/2022,3517742,Capital - General Fund,Oxford Professional Education Group,46415,800.00
Transport Capital,CCAP,Integrated Transport,CCAPI,FTZ Programme - Other,CG0218,Capital,Other Capital Expenditure,04/05/2022,3436085,Capital - General Fund,Portsmouth City Council,13832,"4,451.00"
Transport Capital,CCAP,Integrated Transport,CCAPI,FTZ Programme - Other,CG0218,Capital,Other Capital Expenditure,05/05/2022,3436213,Capital - General Fund,Portsmouth City Council,13832,"10,126.31"
Transport Capital,CCAP,Integrated Transport,CCAPI,FTZ Programme - Other,CG0218,Capital,Other Capital Expenditure,24/05/2022,3510052,Capital - General Fund,University Of Southampton,16259,"32,681.67"
Transport Capital,CCAP,Other Environment,CCAPO,City Services - Depots,CT0075,Capital,Capital Vehicles or Equipment,20/06/2022,3510069,Capital - General Fund,Southern Tank Services Ltd,46396,"49,717.00"
Transport Capital,CCAP,Other Environment,CCAPO,City Services - Depots,CT0075,Capital,Other Capital Expenditure,17/05/2022,3505774,Capital - General Fund,Rollalong Limited,45544,"92,155.05"
Transport Capital,CCAP,Minor Parks Development Works,NS004,"Green Flag Improvements			",CT0094,Capital,Other Capital Expenditure,19/04/2022,3433806,Capital - General Fund,Corefabs,45187,"23,750.00"
Transport Capital,CCAP,Sustainability,SUS02,Public Sector Decarbonisation Scheme,CG0220,Capital,Consultancy (Professional expertise & advice),14/06/2022,3507611,Capital - General Fund,Faithful & Gould Ltd,15245,"23,368.50"
Transport Capital,CCAP,Sustainability,SUS02,Public Sector Decarbonisation Scheme,CG0220,Capital,Payments to Contractors,26/04/2022,3432263,Capital - General Fund,NPower Commercial Gas Limited,46213,"2,194.96"
Transport Capital,CCAP,Sustainability,SUS02,Public Sector Decarbonisation Scheme,CG0220,Capital,Payments to Contractors,26/04/2022,3432265,Capital - General Fund,NPower Commercial Gas Limited,46213,"7,322.66"
Transport Capital,CCAP,Sustainability,SUS02,Public Sector Decarbonisation Scheme,CG0220,Capital,Payments to Contractors,26/04/2022,3432266,Capital - General Fund,NPower Commercial Gas Limited,46213,"32,143.19"
Transport Capital,CCAP,Sustainability,SUS02,Public Sector Decarbonisation Scheme,CG0220,Capital,Payments to Contractors,08/04/2022,3432262,Capital - General Fund,NPower Commercial Gas Limited,46213,"13,194.03"
Transport Capital,CCAP,Sustainability,SUS02,Public Sector Decarbonisation Scheme,CG0220,Capital,Payments to Contractors,26/04/2022,3432261,Capital - General Fund,NPower Commercial Gas Limited,46213,"48,261.49"
Transport Capital,CCAP,Sustainability,SUS02,Weston Shore Coastal Erosion,CT0061,Capital,Consultancy (Professional expertise & advice),07/04/2022,3429744,Capital - General Fund,Balfour Beatty Living Places Ltd,20306,"20,497.13"
Transport Capital,CCAP,Sustainability,SUS02,Weston Shore Coastal Erosion,CT0061,Capital,Consultancy (Professional expertise & advice),07/04/2022,3429745,Capital - General Fund,Balfour Beatty Living Places Ltd,20306,"3,176.13"
Transport Capital,CCAP,Sustainability,SUS02,Weston Shore Coastal Erosion,CT0061,Capital,Consultancy (Professional expertise & advice),07/04/2022,3429747,Capital - General Fund,Balfour Beatty Living Places Ltd,20306,"2,069.63"
Transport Capital,CCAP,Sustainability,SUS02,Weston Shore Coastal Erosion,CT0061,Capital,Consultancy (Professional expertise & advice),23/05/2022,3505584,Capital - General Fund,Balfour Beatty Living Places Ltd,20306,"1,588.07"
Transport Capital,CCAP,Sustainability,SUS02,Weston Shore Coastal Erosion,CT0061,Capital,Consultancy (Professional expertise & advice),07/04/2022,3429746,Capital - General Fund,Balfour Beatty Living Places Ltd,20306,"9,928.32"
Transport Capital,CCAP,Sustainability,SUS02,Weston Shore Coastal Erosion,CT0061,Capital,Consultancy (Professional expertise & advice),23/05/2022,3507148,Capital - General Fund,Balfour Beatty Living Places Ltd,20306,"5,956.99"
Children & Learning,CHIL,Divisional Management and Legal,CHF10,Children and Families Management Team,AC0110,Rents,Building Rents,04/04/2022,3429868,Revenue - General Fund,Novotel Southampton,16220,877.50
Children & Learning,CHIL,Divisional Management and Legal,CHF10,Children and Families Management Team,AC0110,Rents,Building Rents,03/05/2022,3436059,Revenue - General Fund,Novotel Southampton,16220,"1,208.33"
Children & Learning,CHIL,Divisional Management and Legal,CHF10,Children and Families Management Team,AC0110,Rents,Building Rents,29/04/2022,3435604,Revenue - General Fund,Novotel Southampton,16220,958.33
Children & Learning,CHIL,Divisional Management and Legal,CHF10,Children and Families Management Team,AC0110,Communications and Computing,Computing - Software & Licences,03/05/2022,3504223,Revenue - General Fund,Access UK Ltd,20273,"16,858.67"
Children & Learning,CHIL,Divisional Management and Legal,CHF10,Children and Families Management Team,AC0110,Services,Consultancy - Professional Expertise & Advice,27/04/2022,3436106,Revenue - General Fund,Bloom Procurement Services Ltd,33352,"37,500.00"
Children & Learning,CHIL,Divisional Management and Legal,CHF10,Children and Families Management Team,AC0110,Services,Consultancy - Professional Expertise & Advice,14/04/2022,3432912,Revenue - General Fund,Sally Hodges Consulting,34079,"3,889.75"
Children & Learning,CHIL,Divisional Management and Legal,CHF10,Children and Families Management Team,AC0110,Services,Consultancy - Professional Expertise & Advice,22/06/2022,3515856,Revenue - General Fund,Sally Hodges Consulting,34079,"1,375.00"
Children & Learning,CHIL,Divisional Management and Legal,CHF10,Children and Families Management Team,AC0110,Services,Consultancy - Professional Expertise & Advice,19/05/2022,3506083,Revenue - General Fund,Sally Hodges Consulting,34079,825.00
Children & Learning,CHIL,Divisional Management and Legal,CHF10,Children and Families Management Team,AC0110,Grants and Subscriptions,Corporate Memberships and Subscriptions,28/04/2022,3503239,Revenue - General Fund,East Sussex County Council,14754,"6,250.00"
Children & Learning,CHIL,Divisional Management and Legal,CHF10,Children and Families Management Team,AC0110,Grants and Subscriptions,Corporate Memberships and Subscriptions,30/06/2022,3517815,Revenue - General Fund,The Association of Directors of Childrens Services Ltd,21530,"2,740.00"
Children & Learning,CHIL,Divisional Management and Legal,CHF10,Children and Families Management Team,AC0110,Services,Interpreter/Translation Services,03/05/2022,3504152,Revenue - General Fund,DA Languages Ltd,20287,598.03
Children & Learning,CHIL,Divisional Management and Legal,CHF10,Children and Families Management Team,AC0110,Services,Interpreter/Translation Services,08/06/2022,3512826,Revenue - General Fund,DA Languages Ltd,20287,588.59
Children & Learning,CHIL,Divisional Management and Legal,CHF10,Children and Families Management Team,AC0110,Services,Interpreter/Translation Services,21/04/2022,3434982,Revenue - General Fund,DA Languages Ltd,20287,"1,015.20"
Children & Learning,CHIL,Divisional Management and Legal,CHF10,Children and Families Management Team,AC0110,Services,Interpreter/Translation Services,24/05/2022,3510494,Revenue - General Fund,DA Languages Ltd,20287,902.39
Children & Learning,CHIL,Divisional Management and Legal,CHF10,Children and Families Management Team,AC0110,Services,Interpreter/Translation Services,13/04/2022,3430321,Revenue - General Fund,DA Languages Ltd,20287,"1,261.42"
Children & Learning,CHIL,Divisional Management and Legal,CHF10,Children and Families Management Team,AC0110,Services,Interpreter/Translation Services,05/05/2022,3432159,Revenue - General Fund,DA Languages Ltd,20287,636.22
Children & Learning,CHIL,Divisional Management and Legal,CHF10,Children and Families Management Team,AC0110,Services,Interpreter/Translation Services,15/06/2022,3514493,Revenue - General Fund,DA Languages Ltd,20287,"1,172.11"
Children & Learning,CHIL,Divisional Management and Legal,CHF10,Children and Families Management Team,AC0110,Services,Interpreter/Translation Services,07/06/2022,3512884,Revenue - General Fund,Global Voices Ltd,16500,"4,275.00"
Children & Learning,CHIL,Divisional Management and Legal,CHF10,Children and Families Management Team,AC0110,Services,Interpreter/Translation Services,09/05/2022,3505395,Revenue - General Fund,Global Voices Ltd,16500,519.90
Children & Learning,CHIL,Divisional Management and Legal,CHF10,Children and Families Management Team,AC0110,Services,Interpreter/Translation Services,09/05/2022,3435224,Revenue - General Fund,Global Voices Ltd,16500,"1,900.00"
Children & Learning,CHIL,Divisional Management and Legal,CHF10,Children and Families Management Team,AC0110,Services,Interpreter/Translation Services,27/05/2022,3506697,Revenue - General Fund,Global Voices Ltd,16500,"2,402.92"
Children & Learning,CHIL,Divisional Management and Legal,CHF10,Children and Families Management Team,AC0110,Services,Interpreter/Translation Services,24/06/2022,3515764,Revenue - General Fund,VIET LINGUISTICS LTD,42896,600.00
Children & Learning,CHIL,Divisional Management and Legal,CHF10,Children and Families Management Team,AC0110,Services,Interpreter/Translation Services,11/05/2022,3504586,Revenue - General Fund,VIET LINGUISTICS LTD,42896,670.00
Children & Learning,CHIL,Divisional Management and Legal,CHF10,Children and Families Management Team,AC0110,Services,Interpreter/Translation Services,29/06/2022,3518335,Revenue - General Fund,VIET LINGUISTICS LTD,42896,800.00
Children & Learning,CHIL,Divisional Management and Legal,CHF10,Children and Families Management Team,AC0110,Services,Legal Expenses,06/05/2022,3504905,Revenue - General Fund,DA Languages Ltd,20287,"1,029.99"
Children & Learning,CHIL,Divisional Management and Legal,CHF10,Children and Families Management Team,AC0110,Miscellaneous and Initiative Expenses,Other Expenses,14/04/2022,3434821,Revenue - General Fund,Allpay Limited - General Fees,19392,716.10
Children & Learning,CHIL,Divisional Management and Legal,CHF10,Children and Families Management Team,AC0110,Miscellaneous and Initiative Expenses,Other Expenses,23/05/2022,3508033,Revenue - General Fund,Paris Smith LLP,47243,"3,653.72"
Children & Learning,CHIL,Divisional Management and Legal,CHF10,Children and Families Management Team,AC0110,Miscellaneous and Initiative Expenses,Other Expenses,21/06/2022,3515164,Revenue - General Fund,Paris Smith LLP,47243,914.00
Children & Learning,CHIL,Divisional Management and Legal,CHF10,Children and Families Management Team,AC0110,Miscellaneous and Initiative Expenses,Project Expenses,04/05/2022,3429159,Revenue - General Fund,Tripod Partners Ltd,14842,694.09
Children & Learning,CHIL,Divisional Management and Legal,CHF10,Children and Families Management Team,AC0110,Miscellaneous and Initiative Expenses,Project Expenses,04/05/2022,3429164,Revenue - General Fund,Tripod Partners Ltd,14842,"6,978.80"
Children & Learning,CHIL,Divisional Management and Legal,CHF10,Children and Families Management Team,AC0110,Miscellaneous and Initiative Expenses,Project Expenses,04/05/2022,3430569,Revenue - General Fund,Tripod Partners Ltd,14842,"5,171.48"
Children & Learning,CHIL,Divisional Management and Legal,CHF10,Children and Families Management Team,AC0110,Miscellaneous and Initiative Expenses,Project Expenses,04/05/2022,3431931,Revenue - General Fund,Tripod Partners Ltd,14842,631.02
Children & Learning,CHIL,Divisional Management and Legal,CHF10,Children and Families Management Team,AC0110,Miscellaneous and Initiative Expenses,Project Expenses,05/05/2022,3504011,Revenue - General Fund,Tripod Partners Ltd,14842,784.62
Children & Learning,CHIL,Divisional Management and Legal,CHF10,Children and Families Management Team,AC0110,Miscellaneous and Initiative Expenses,Project Expenses,05/05/2022,3504031,Revenue - General Fund,Tripod Partners Ltd,14842,663.70
Children & Learning,CHIL,Divisional Management and Legal,CHF10,Children and Families Management Team,AC0110,Miscellaneous and Initiative Expenses,Project Expenses,15/06/2022,3510283,Revenue - General Fund,Tripod Partners Ltd,14842,"2,703.41"
Children & Learning,CHIL,Divisional Management and Legal,CHF10,Children and Families Management Team,AC0110,Miscellaneous and Initiative Expenses,Project Expenses,24/06/2022,3510279,Revenue - General Fund,Tripod Partners Ltd,14842,586.71
Children & Learning,CHIL,Divisional Management and Legal,CHF10,Children and Families Management Team,AC0110,Miscellaneous and Initiative Expenses,Project Expenses,24/06/2022,3510280,Revenue - General Fund,Tripod Partners Ltd,14842,"1,494.00"
Children & Learning,CHIL,Divisional Management and Legal,CHF10,Children and Families Management Team,AC0110,Miscellaneous and Initiative Expenses,Project Expenses,24/06/2022,3510282,Revenue - General Fund,Tripod Partners Ltd,14842,"4,281.96"
Children & Learning,CHIL,Divisional Management and Legal,CHF10,Children and Families Management Team,AC0110,Miscellaneous and Initiative Expenses,Project Expenses,24/06/2022,3511598,Revenue - General Fund,Tripod Partners Ltd,14842,570.90
Children & Learning,CHIL,Divisional Management and Legal,CHF10,Children and Families Management Team,AC0110,Miscellaneous and Initiative Expenses,Project Expenses,04/05/2022,3429149,Revenue - General Fund,Tripod Partners Ltd,14842,"6,617.17"
Children & Learning,CHIL,Divisional Management and Legal,CHF10,Children and Families Management Team,AC0110,Miscellaneous and Initiative Expenses,Project Expenses,04/05/2022,3429150,Revenue - General Fund,Tripod Partners Ltd,14842,"1,085.35"
Children & Learning,CHIL,Divisional Management and Legal,CHF10,Children and Families Management Team,AC0110,Miscellaneous and Initiative Expenses,Project Expenses,04/05/2022,3429162,Revenue - General Fund,Tripod Partners Ltd,14842,612.23
Children & Learning,CHIL,Divisional Management and Legal,CHF10,Children and Families Management Team,AC0110,Miscellaneous and Initiative Expenses,Project Expenses,04/05/2022,3431933,Revenue - General Fund,Tripod Partners Ltd,14842,935.50
Children & Learning,CHIL,Divisional Management and Legal,CHF10,Children and Families Management Team,AC0110,Miscellaneous and Initiative Expenses,Project Expenses,04/05/2022,3431934,Revenue - General Fund,Tripod Partners Ltd,14842,"1,729.00"
Children & Learning,CHIL,Divisional Management and Legal,CHF10,Children and Families Management Team,AC0110,Miscellaneous and Initiative Expenses,Project Expenses,05/05/2022,3504010,Revenue - General Fund,Tripod Partners Ltd,14842,828.70
Children & Learning,CHIL,Divisional Management and Legal,CHF10,Children and Families Management Team,AC0110,Miscellaneous and Initiative Expenses,Project Expenses,05/05/2022,3504019,Revenue - General Fund,Tripod Partners Ltd,14842,"1,021.20"
Children & Learning,CHIL,Divisional Management and Legal,CHF10,Children and Families Management Team,AC0110,Miscellaneous and Initiative Expenses,Project Expenses,11/05/2022,3503947,Revenue - General Fund,Tripod Partners Ltd,14842,"1,593.90"
Children & Learning,CHIL,Divisional Management and Legal,CHF10,Children and Families Management Team,AC0110,Miscellaneous and Initiative Expenses,Project Expenses,15/06/2022,3510281,Revenue - General Fund,Tripod Partners Ltd,14842,"2,658.45"
Children & Learning,CHIL,Divisional Management and Legal,CHF10,Children and Families Management Team,AC0110,Miscellaneous and Initiative Expenses,Project Expenses,04/05/2022,3429161,Revenue - General Fund,Tripod Partners Ltd,14842,500.16
Children & Learning,CHIL,Divisional Management and Legal,CHF10,Children and Families Management Team,AC0110,Miscellaneous and Initiative Expenses,Project Expenses,04/05/2022,3429167,Revenue - General Fund,Tripod Partners Ltd,14842,"1,670.74"
Children & Learning,CHIL,Divisional Management and Legal,CHF10,Children and Families Management Team,AC0110,Miscellaneous and Initiative Expenses,Project Expenses,04/05/2022,3431134,Revenue - General Fund,Tripod Partners Ltd,14842,778.00
Children & Learning,CHIL,Divisional Management and Legal,CHF10,Children and Families Management Team,AC0110,Miscellaneous and Initiative Expenses,Project Expenses,04/05/2022,3431932,Revenue - General Fund,Tripod Partners Ltd,14842,"1,560.01"
Children & Learning,CHIL,Divisional Management and Legal,CHF10,Children and Families Management Team,AC0110,Miscellaneous and Initiative Expenses,Project Expenses,05/05/2022,3504023,Revenue - General Fund,Tripod Partners Ltd,14842,825.20
Children & Learning,CHIL,Divisional Management and Legal,CHF10,Children and Families Management Team,AC0110,Miscellaneous and Initiative Expenses,Project Expenses,05/05/2022,3504029,Revenue - General Fund,Tripod Partners Ltd,14842,"1,095.91"
Children & Learning,CHIL,Divisional Management and Legal,CHF10,Children and Families Management Team,AC0110,Miscellaneous and Initiative Expenses,Project Expenses,05/05/2022,3504035,Revenue - General Fund,Tripod Partners Ltd,14842,"1,391.49"
Children & Learning,CHIL,Divisional Management and Legal,CHF10,Children and Families Management Team,AC0110,Miscellaneous and Initiative Expenses,Project Expenses,11/05/2022,3503939,Revenue - General Fund,Tripod Partners Ltd,14842,"3,316.60"
Children & Learning,CHIL,Divisional Management and Legal,CHF10,Children and Families Management Team,AC0110,Miscellaneous and Initiative Expenses,Project Expenses,11/05/2022,3503940,Revenue - General Fund,Tripod Partners Ltd,14842,"5,226.65"
Children & Learning,CHIL,Divisional Management and Legal,CHF10,Children and Families Management Team,AC0110,Miscellaneous and Initiative Expenses,Project Expenses,11/05/2022,3503943,Revenue - General Fund,Tripod Partners Ltd,14842,701.95
Children & Learning,CHIL,Divisional Management and Legal,CHF10,Children and Families Management Team,AC0110,Miscellaneous and Initiative Expenses,Project Expenses,11/05/2022,3503944,Revenue - General Fund,Tripod Partners Ltd,14842,"2,345.10"
Children & Learning,CHIL,Divisional Management and Legal,CHF10,Children and Families Management Team,AC0110,Miscellaneous and Initiative Expenses,Project Expenses,11/05/2022,3503945,Revenue - General Fund,Tripod Partners Ltd,14842,"3,061.50"
Children & Learning,CHIL,Divisional Management and Legal,CHF10,Children and Families Management Team,AC0110,Miscellaneous and Initiative Expenses,Project Expenses,11/05/2022,3503948,Revenue - General Fund,Tripod Partners Ltd,14842,"1,811.28"
Children & Learning,CHIL,Divisional Management and Legal,CHF10,Children and Families Management Team,AC0110,Miscellaneous and Initiative Expenses,Project Expenses,11/05/2022,3503949,Revenue - General Fund,Tripod Partners Ltd,14842,"2,436.69"
Children & Learning,CHIL,Divisional Management and Legal,CHF10,Children and Families Management Team,AC0110,Miscellaneous and Initiative Expenses,Project Expenses,24/06/2022,3510252,Revenue - General Fund,Tripod Partners Ltd,14842,"2,561.73"
Children & Learning,CHIL,Divisional Management and Legal,CHF10,Children and Families Management Team,AC0110,Miscellaneous and Initiative Expenses,Project Expenses,24/06/2022,3510253,Revenue - General Fund,Tripod Partners Ltd,14842,"1,051.69"
Children & Learning,CHIL,Divisional Management and Legal,CHF10,Children and Families Management Team,AC0110,Miscellaneous and Initiative Expenses,Project Expenses,24/06/2022,3510254,Revenue - General Fund,Tripod Partners Ltd,14842,"1,990.31"
Children & Learning,CHIL,Divisional Management and Legal,CHF10,Children and Families Management Team,AC0110,Miscellaneous and Initiative Expenses,Project Expenses,24/06/2022,3510296,Revenue - General Fund,Tripod Partners Ltd,14842,"2,356.57"
Children & Learning,CHIL,Divisional Management and Legal,CHF10,Children and Families Management Team,AC0110,Miscellaneous and Initiative Expenses,Project Expenses,04/05/2022,3429151,Revenue - General Fund,Tripod Partners Ltd,14842,"4,171.62"
Children & Learning,CHIL,Divisional Management and Legal,CHF10,Children and Families Management Team,AC0110,Miscellaneous and Initiative Expenses,Project Expenses,04/05/2022,3429155,Revenue - General Fund,Tripod Partners Ltd,14842,"1,148.15"
Children & Learning,CHIL,Divisional Management and Legal,CHF10,Children and Families Management Team,AC0110,Miscellaneous and Initiative Expenses,Project Expenses,04/05/2022,3429157,Revenue - General Fund,Tripod Partners Ltd,14842,"1,556.64"
Children & Learning,CHIL,Divisional Management and Legal,CHF10,Children and Families Management Team,AC0110,Miscellaneous and Initiative Expenses,Project Expenses,04/05/2022,3429160,Revenue - General Fund,Tripod Partners Ltd,14842,"1,904.96"
Children & Learning,CHIL,Divisional Management and Legal,CHF10,Children and Families Management Team,AC0110,Miscellaneous and Initiative Expenses,Project Expenses,04/05/2022,3429165,Revenue - General Fund,Tripod Partners Ltd,14842,"6,932.92"
Children & Learning,CHIL,Divisional Management and Legal,CHF10,Children and Families Management Team,AC0110,Miscellaneous and Initiative Expenses,Project Expenses,04/05/2022,3429166,Revenue - General Fund,Tripod Partners Ltd,14842,860.86
Children & Learning,CHIL,Divisional Management and Legal,CHF10,Children and Families Management Team,AC0110,Miscellaneous and Initiative Expenses,Project Expenses,04/05/2022,3430568,Revenue - General Fund,Tripod Partners Ltd,14842,"7,336.30"
Children & Learning,CHIL,Divisional Management and Legal,CHF10,Children and Families Management Team,AC0110,Miscellaneous and Initiative Expenses,Project Expenses,04/05/2022,3431140,Revenue - General Fund,Tripod Partners Ltd,14842,847.23
Children & Learning,CHIL,Divisional Management and Legal,CHF10,Children and Families Management Team,AC0110,Miscellaneous and Initiative Expenses,Project Expenses,05/05/2022,3504020,Revenue - General Fund,Tripod Partners Ltd,14842,728.14
Children & Learning,CHIL,Divisional Management and Legal,CHF10,Children and Families Management Team,AC0110,Miscellaneous and Initiative Expenses,Project Expenses,05/05/2022,3504021,Revenue - General Fund,Tripod Partners Ltd,14842,579.15
Children & Learning,CHIL,Divisional Management and Legal,CHF10,Children and Families Management Team,AC0110,Miscellaneous and Initiative Expenses,Project Expenses,11/05/2022,3503946,Revenue - General Fund,Tripod Partners Ltd,14842,855.70
Children & Learning,CHIL,Divisional Management and Legal,CHF10,Children and Families Management Team,AC0110,Miscellaneous and Initiative Expenses,Project Expenses,11/05/2022,3503950,Revenue - General Fund,Tripod Partners Ltd,14842,"8,162.99"
Children & Learning,CHIL,Divisional Management and Legal,CHF10,Children and Families Management Team,AC0110,Miscellaneous and Initiative Expenses,Project Expenses,15/06/2022,3510255,Revenue - General Fund,Tripod Partners Ltd,14842,773.94
Children & Learning,CHIL,Divisional Management and Legal,CHF10,Children and Families Management Team,AC0110,Miscellaneous and Initiative Expenses,Project Expenses,24/06/2022,3511596,Revenue - General Fund,Tripod Partners Ltd,14842,871.12
Children & Learning,CHIL,Divisional Management and Legal,CHF10,Children and Families Management Team,AC0110,Services,Purchased Services,20/05/2022,3508007,Revenue - General Fund,Signis Limited,45185,"22,800.00"
Children & Learning,CHIL,Divisional Management and Legal,CHF10,Legal Fees,AC0120,Services,Legal Expenses,25/05/2022,3510408,Revenue - General Fund,11 KBW Limited Holding Account,47774,"1,500.00"
Children & Learning,CHIL,Divisional Management and Legal,CHF10,Legal Fees,AC0120,Services,Legal Expenses,07/06/2022,3511466,Revenue - General Fund,BRAINLAW LIMITED,47828,"1,450.00"
Children & Learning,CHIL,Divisional Management and Legal,CHF10,Legal Fees,AC0120,Services,Legal Expenses,11/05/2022,3504370,Revenue - General Fund,Carter Brown-The Expert Service Limited,14956,"1,932.70"
Children & Learning,CHIL,Divisional Management and Legal,CHF10,Legal Fees,AC0120,Services,Legal Expenses,28/04/2022,3435350,Revenue - General Fund,Carter Brown-The Expert Service Limited,14956,"1,920.40"
Children & Learning,CHIL,Divisional Management and Legal,CHF10,Legal Fees,AC0120,Services,Legal Expenses,20/06/2022,3515471,Revenue - General Fund,Cristina Alfred (Pallant),44681,575.00
Children & Learning,CHIL,Divisional Management and Legal,CHF10,Legal Fees,AC0120,Services,Legal Expenses,28/04/2022,3502112,Revenue - General Fund,DA Languages Ltd,20287,"1,842.07"
Children & Learning,CHIL,Divisional Management and Legal,CHF10,Legal Fees,AC0120,Services,Legal Expenses,04/04/2022,3430326,Revenue - General Fund,DA Languages Ltd,20287,838.59
Children & Learning,CHIL,Divisional Management and Legal,CHF10,Legal Fees,AC0120,Services,Legal Expenses,11/05/2022,3504094,Revenue - General Fund,DA Languages Ltd,20287,"1,625.76"
Children & Learning,CHIL,Divisional Management and Legal,CHF10,Legal Fees,AC0120,Services,Legal Expenses,04/04/2022,3430323,Revenue - General Fund,DA Languages Ltd,20287,"1,145.35"
Children & Learning,CHIL,Divisional Management and Legal,CHF10,Legal Fees,AC0120,Services,Legal Expenses,07/06/2022,3510555,Revenue - General Fund,DA Languages Ltd,20287,"1,016.03"
Children & Learning,CHIL,Divisional Management and Legal,CHF10,Legal Fees,AC0120,Services,Legal Expenses,20/04/2022,3434981,Revenue - General Fund,DA Languages Ltd,20287,663.86
Children & Learning,CHIL,Divisional Management and Legal,CHF10,Legal Fees,AC0120,Services,Legal Expenses,18/05/2022,3508245,Revenue - General Fund,DNA Legal Ltd,20749,500.00
Children & Learning,CHIL,Divisional Management and Legal,CHF10,Legal Fees,AC0120,Services,Legal Expenses,18/05/2022,3508266,Revenue - General Fund,Dylan Morgan,18439,"1,515.00"
Children & Learning,CHIL,Divisional Management and Legal,CHF10,Legal Fees,AC0120,Services,Legal Expenses,11/05/2022,3504403,Revenue - General Fund,Expert Associates Ltd,47279,540.00
Children & Learning,CHIL,Divisional Management and Legal,CHF10,Legal Fees,AC0120,Services,Legal Expenses,25/05/2022,3509895,Revenue - General Fund,Expert in Mind,17610,"1,108.80"
Children & Learning,CHIL,Divisional Management and Legal,CHF10,Legal Fees,AC0120,Services,Legal Expenses,18/05/2022,3508252,Revenue - General Fund,Expert in Mind,17610,795.60
Children & Learning,CHIL,Divisional Management and Legal,CHF10,Legal Fees,AC0120,Services,Legal Expenses,25/05/2022,3509883,Revenue - General Fund,Gary Taylor Associates Limited,18851,"1,759.30"
Children & Learning,CHIL,Divisional Management and Legal,CHF10,Legal Fees,AC0120,Services,Legal Expenses,28/04/2022,3430867,Revenue - General Fund,Global Voices Ltd,16500,"3,601.65"
Children & Learning,CHIL,Divisional Management and Legal,CHF10,Legal Fees,AC0120,Services,Legal Expenses,11/05/2022,3504485,Revenue - General Fund,Graeme Harrison,47277,575.00
Children & Learning,CHIL,Divisional Management and Legal,CHF10,Legal Fees,AC0120,Services,Legal Expenses,11/05/2022,3504374,Revenue - General Fund,IDNA Genetics Ltd t/a Anglia DNA Services Ltd,21277,531.25
Children & Learning,CHIL,Divisional Management and Legal,CHF10,Legal Fees,AC0120,Services,Legal Expenses,11/05/2022,3504378,Revenue - General Fund,IDNA Genetics Ltd t/a Anglia DNA Services Ltd,21277,896.75
Children & Learning,CHIL,Divisional Management and Legal,CHF10,Legal Fees,AC0120,Services,Legal Expenses,25/05/2022,3509877,Revenue - General Fund,IDNA Genetics Ltd t/a Anglia DNA Services Ltd,21277,895.34
Children & Learning,CHIL,Divisional Management and Legal,CHF10,Legal Fees,AC0120,Services,Legal Expenses,11/05/2022,3504375,Revenue - General Fund,IDNA Genetics Ltd t/a Anglia DNA Services Ltd,21277,501.50
Children & Learning,CHIL,Divisional Management and Legal,CHF10,Legal Fees,AC0120,Services,Legal Expenses,11/05/2022,3504376,Revenue - General Fund,IDNA Genetics Ltd t/a Anglia DNA Services Ltd,21277,501.50
Children & Learning,CHIL,Divisional Management and Legal,CHF10,Legal Fees,AC0120,Services,Legal Expenses,11/05/2022,3504377,Revenue - General Fund,IDNA Genetics Ltd t/a Anglia DNA Services Ltd,21277,782.00
Children & Learning,CHIL,Divisional Management and Legal,CHF10,Legal Fees,AC0120,Services,Legal Expenses,11/05/2022,3504454,Revenue - General Fund,"Jack Anderson, 39 Essex Chambers",46121,"1,250.00"
Children & Learning,CHIL,Divisional Management and Legal,CHF10,Legal Fees,AC0120,Services,Legal Expenses,07/04/2022,3414959,Revenue - General Fund,Medical Expert Witness Alliance LLP,16608,585.00
Children & Learning,CHIL,Divisional Management and Legal,CHF10,Legal Fees,AC0120,Services,Legal Expenses,25/05/2022,3510080,Revenue - General Fund,Medical Expert Witness Alliance LLP,16608,585.00
Children & Learning,CHIL,Divisional Management and Legal,CHF10,Legal Fees,AC0120,Services,Legal Expenses,25/05/2022,3510082,Revenue - General Fund,Medical Expert Witness Alliance LLP,16608,"1,250.00"
Children & Learning,CHIL,Divisional Management and Legal,CHF10,Legal Fees,AC0120,Services,Legal Expenses,18/05/2022,3508273,Revenue - General Fund,Medical Expert Witness Alliance LLP,16608,540.00
Children & Learning,CHIL,Divisional Management and Legal,CHF10,Legal Fees,AC0120,Services,Legal Expenses,25/05/2022,3510081,Revenue - General Fund,Medical Expert Witness Alliance LLP,16608,"1,430.70"
Children & Learning,CHIL,Divisional Management and Legal,CHF10,Legal Fees,AC0120,Services,Legal Expenses,07/04/2022,3414960,Revenue - General Fund,Medical Expert Witness Alliance LLP,16608,"1,260.00"
Children & Learning,CHIL,Divisional Management and Legal,CHF10,Legal Fees,AC0120,Services,Legal Expenses,07/06/2022,3511097,Revenue - General Fund,Melanie Nazareth,47791,"4,425.00"
Children & Learning,CHIL,Divisional Management and Legal,CHF10,Legal Fees,AC0120,Services,Legal Expenses,30/06/2022,3519769,Revenue - General Fund,Miss Claire Hook,19481,950.00
Children & Learning,CHIL,Divisional Management and Legal,CHF10,Legal Fees,AC0120,Services,Legal Expenses,18/05/2022,3508289,Revenue - General Fund,"Miss Claire Thorne, EAC",45993,"2,350.00"
Children & Learning,CHIL,Divisional Management and Legal,CHF10,Legal Fees,AC0120,Services,Legal Expenses,18/05/2022,3508231,Revenue - General Fund,Mr Anthony Hand,19569,550.00
Children & Learning,CHIL,Divisional Management and Legal,CHF10,Legal Fees,AC0120,Services,Legal Expenses,28/04/2022,3436368,Revenue - General Fund,PM Psychology,16409,"1,088.10"
Children & Learning,CHIL,Divisional Management and Legal,CHF10,Legal Fees,AC0120,Services,Legal Expenses,25/05/2022,3510086,Revenue - General Fund,Psychology Experts Ltd,17282,"2,340.00"
Children & Learning,CHIL,Divisional Management and Legal,CHF10,Legal Fees,AC0120,Services,Legal Expenses,20/05/2022,3435967,Revenue - General Fund,Rosalind Randle,15584,882.00
Children & Learning,CHIL,Divisional Management and Legal,CHF10,Legal Fees,AC0120,Services,Legal Expenses,18/05/2022,3508274,Revenue - General Fund,Rosalind Randle,15584,585.00
Children & Learning,CHIL,Divisional Management and Legal,CHF10,Legal Fees,AC0120,Services,Legal Expenses,07/04/2022,3431193,Revenue - General Fund,Sara Chalk,17429,"3,450.00"
Children & Learning,CHIL,Divisional Management and Legal,CHF10,Legal Fees,AC0120,Services,Legal Expenses,18/05/2022,3508275,Revenue - General Fund,Sara Chalk,17429,"2,400.00"
Children & Learning,CHIL,Divisional Management and Legal,CHF10,Legal Fees,AC0120,Services,Purchased Services,11/05/2022,3504384,Revenue - General Fund,IDNA Genetics Ltd t/a Anglia DNA Services Ltd,21277,501.50
Children & Learning,CHIL,Quality Assurance Business Unit,CHF21,Childrens Workforce Development,AC0330,Miscellaneous and Initiative Expenses,Bought in Professional Services - Other,29/05/2022,3508505,Revenue - General Fund,Psychological Pathways Training Ltd,45514,"2,800.00"
Children & Learning,CHIL,Quality Assurance Business Unit,CHF21,Childrens Workforce Development,AC0330,Expenses,Conference & Seminars,14/04/2022,3430253,Revenue - General Fund,Assessmain,27977,"1,461.00"
Children & Learning,CHIL,Quality Assurance Business Unit,CHF21,Childrens Workforce Development,AC0330,Expenses,Conference & Seminars,22/04/2022,3430254,Revenue - General Fund,Assessmain,27977,"1,461.00"
Children & Learning,CHIL,Quality Assurance Business Unit,CHF21,Childrens Workforce Development,AC0330,Expenses,Conference & Seminars,24/05/2022,3509641,Revenue - General Fund,NSPCC Registered Charity,19853,504.00
Children & Learning,CHIL,Quality Assurance Business Unit,CHF21,Childrens Workforce Development,AC0330,Expenses,Conference & Seminars,01/04/2022,3428595,Revenue - General Fund,Prof David Shemmings,45624,"1,400.00"
Children & Learning,CHIL,Quality Assurance Business Unit,CHF21,Childrens Workforce Development,AC0330,Services,Consultancy - Professional Expertise & Advice,11/05/2022,3506645,Revenue - General Fund,University of Durham,46999,"1,000.00"
Children & Learning,CHIL,Quality Assurance Business Unit,CHF21,Childrens Workforce Development,AC0330,Miscellaneous and Initiative Expenses,Other Expenses,06/04/2022,3429219,Revenue - General Fund,Novotel Southampton,16220,"2,611.11"
Children & Learning,CHIL,Quality Assurance Business Unit,CHF21,Childrens Workforce Development,AC0330,Miscellaneous and Initiative Expenses,Other Expenses,18/05/2022,3509307,Revenue - General Fund,Premier Print & Promotions Limited,16475,-650.00
Children & Learning,CHIL,Quality Assurance Business Unit,CHF21,Childrens Workforce Development,AC0330,Miscellaneous and Initiative Expenses,Other Expenses,29/05/2022,3511395,Revenue - General Fund,Premier Print & Promotions Limited,16475,"-1,264.00"
Children & Learning,CHIL,Quality Assurance Business Unit,CHF21,Childrens Workforce Development,AC0330,Miscellaneous and Initiative Expenses,Other Expenses,09/06/2022,3514409,Revenue - General Fund,Premier Print & Promotions Limited,16475,"1,264.00"
Children & Learning,CHIL,Quality Assurance Business Unit,CHF21,Childrens Workforce Development,AC0330,Miscellaneous and Initiative Expenses,Other Expenses,11/05/2022,3503204,Revenue - General Fund,S&V Training,20028,"1,500.00"
Children & Learning,CHIL,Quality Assurance Business Unit,CHF21,Childrens Workforce Development,AC0330,Miscellaneous and Initiative Expenses,Other Expenses,01/05/2022,3435579,Revenue - General Fund,Stuart Holes,19156,"3,300.00"
Children & Learning,CHIL,Quality Assurance Business Unit,CHF21,Childrens Workforce Development,AC0330,Miscellaneous and Initiative Expenses,Other Expenses,29/05/2022,3508529,Revenue - General Fund,Stuart Holes,19156,"3,441.00"
Children & Learning,CHIL,Quality Assurance Business Unit,CHF21,Childrens Workforce Development,AC0330,Miscellaneous and Initiative Expenses,Other Expenses,01/05/2022,3431760,Revenue - General Fund,The Frontline Organisation,39384,"11,600.00"
Children & Learning,CHIL,Quality Assurance Business Unit,CHF21,Childrens Workforce Development,AC0330,Miscellaneous and Initiative Expenses,Other Expenses,11/05/2022,3436086,Revenue - General Fund,The Gift Voucher Shop UK Ltd,28813,"1,000.00"
Children & Learning,CHIL,Quality Assurance Business Unit,CHF21,Childrens Workforce Development,AC0330,Miscellaneous and Initiative Expenses,Other Expenses,11/05/2022,3429765,Revenue - General Fund,Tripod Partners Ltd,14842,"55,149.52"
Children & Learning,CHIL,Quality Assurance Business Unit,CHF21,Childrens Workforce Development,AC0330,Miscellaneous and Initiative Expenses,Other Expenses,23/06/2022,3516927,Revenue - General Fund,University  of Chichester,21595,600.00
Children & Learning,CHIL,Quality Assurance Business Unit,CHF21,Childrens Workforce Development,AC0330,Miscellaneous and Initiative Expenses,Other Expenses,23/06/2022,3516928,Revenue - General Fund,University  of Chichester,21595,600.00
Children & Learning,CHIL,Quality Assurance Business Unit,CHF21,Childrens Workforce Development,AC0330,Miscellaneous and Initiative Expenses,Other Expenses,09/06/2022,3514049,Revenue - General Fund,University  of Chichester,21595,600.00
Children & Learning,CHIL,Quality Assurance Business Unit,CHF21,Childrens Workforce Development,AC0330,Miscellaneous and Initiative Expenses,Project Expenses,06/04/2022,3430754,Revenue - General Fund,Southern Horizons (UK) Ltd,16982,"7,920.00"
Children & Learning,CHIL,Quality Assurance Business Unit,CHF21,Childrens Workforce Development,AC0330,Miscellaneous and Initiative Expenses,Project Expenses,23/06/2022,3515850,Revenue - General Fund,Tripod Partners Ltd,14842,"34,468.45"
Children & Learning,CHIL,Quality Assurance Business Unit,CHF21,Childrens Workforce Development,AC0330,Interview & Training Expenses,Staff Training,30/06/2022,3520562,Revenue - General Fund,Institute of Family Therapy,45563,"25,000.00"
Children & Learning,CHIL,Quality Assurance Business Unit,CHF21,Childrens Workforce Development,AC0330,Interview & Training Expenses,Staff Training,22/04/2022,3435272,Revenue - General Fund,Leicester City Council,47062,700.00
Children & Learning,CHIL,MASH & CIN,CHF30,Multi-Agency Safeguarding Hub,AC0020,Services,Adoption/Fostering Review Panel,15/05/2022,3502542,Revenue - General Fund,FOCUS MENTAL HEALTH LTD,45818,"2,500.00"
Children & Learning,CHIL,MASH & CIN,CHF30,Multi-Agency Safeguarding Hub,AC0020,Services,Adoption/Fostering Review Panel,20/06/2022,3512956,Revenue - General Fund,New Day Play Therapy,46637,703.60
Children & Learning,CHIL,MASH & CIN,CHF30,Multi-Agency Safeguarding Hub,AC0020,Services,Adoption/Fostering Review Panel,14/04/2022,3431713,Revenue - General Fund,New Day Play Therapy,46637,"1,188.25"
Children & Learning,CHIL,MASH & CIN,CHF30,Multi-Agency Safeguarding Hub,AC0020,Services,Adoption/Fostering Review Panel,15/05/2022,3428152,Revenue - General Fund,Val Forster Child & Adolescent Psychoanalytic Psychotherapist,27661,575.00
Children & Learning,CHIL,MASH & CIN,CHF30,Multi-Agency Safeguarding Hub,AC0020,Services,Adoption/Fostering Review Panel,23/04/2022,3431719,Revenue - General Fund,Val Forster Child & Adolescent Psychoanalytic Psychotherapist,27661,"1,050.00"
Children & Learning,CHIL,MASH & CIN,CHF30,CIN Team,AC0040,Miscellaneous and Initiative Expenses,Other Expenses,22/05/2022,3510194,Revenue - General Fund,Tripod Partners Ltd,14842,"70,883.00"
Children & Learning,CHIL,MASH & CIN,CHF30,CIN Team,AC0040,Services,Temporary Accomodation,08/06/2022,3510047,Revenue - General Fund,SAJO SA Managemnt Ltd T/A The Accommodation Company,33672,"1,995.00"
Children & Learning,CHIL,Specialist Core Services,CHF31,Safeguarding Central,AC0031,Agency Staff,External Agency Staff,22/06/2022,3508268,Revenue - General Fund,Red Sector Recruitment,20025,"2,281.20"
Children & Learning,CHIL,Specialist Core Services,CHF31,Safeguarding Central,AC0031,Agency Staff,External Agency Staff,22/06/2022,3509765,Revenue - General Fund,Red Sector Recruitment,20025,"1,878.00"
Children & Learning,CHIL,Specialist Core Services,CHF31,Safeguarding Central,AC0031,Agency Staff,External Agency Staff,30/05/2022,3506949,Revenue - General Fund,Red Sector Recruitment,20025,"1,446.00"
Children & Learning,CHIL,Specialist Core Services,CHF31,Safeguarding Central,AC0031,Agency Staff,External Agency Staff,17/06/2022,3513038,Revenue - General Fund,Red Sector Recruitment,20025,"2,281.20"
Children & Learning,CHIL,Specialist Core Services,CHF31,Safeguarding Central,AC0031,Agency Staff,External Agency Staff,22/06/2022,3511064,Revenue - General Fund,Red Sector Recruitment,20025,"2,336.20"
Children & Learning,CHIL,Specialist Core Services,CHF31,Safeguarding Central,AC0031,Agency Staff,External Agency Staff,30/05/2022,3504477,Revenue - General Fund,Red Sector Recruitment,20025,"1,878.00"
Children & Learning,CHIL,Specialist Core Services,CHF31,Safeguarding Central,AC0031,Services,Temporary Accomodation,10/05/2022,3505747,Revenue - General Fund,The Alma Road Hostel,19752,645.75
Children & Learning,CHIL,Specialist Core Services,CHF31,"Safeguarding East			",AC0032,Services,Preventative Expenditure,25/05/2022,3434844,Revenue - General Fund,Chances Give Choices Ltd,14894,520.00
Children & Learning,CHIL,Specialist Core Services,CHF31,"Safeguarding East			",AC0032,Services,Preventative Expenditure,26/05/2022,3510734,Revenue - General Fund,Fairways Community Benefit Society (FCBS),14816,758.38
Children & Learning,CHIL,Specialist Core Services,CHF31,"Safeguarding East			",AC0032,Services,Social Care Assessments,24/05/2022,3510778,Revenue - General Fund,Advanced Child Care Assessments Ltd,32743,"2,368.36"
Children & Learning,CHIL,Specialist Core Services,CHF31,"Safeguarding East			",AC0032,Services,Social Care Assessments,06/06/2022,3512242,Revenue - General Fund,Advanced Child Care Assessments Ltd,32743,"2,159.80"
Children & Learning,CHIL,Specialist Core Services,CHF31,"Safeguarding West			",AC0033,Agency Staff,External Agency Staff,23/06/2022,3511065,Revenue - General Fund,Red Sector Recruitment,20025,"2,131.20"
Children & Learning,CHIL,Specialist Core Services,CHF31,"Safeguarding West			",AC0033,Agency Staff,External Agency Staff,26/05/2022,3508269,Revenue - General Fund,Red Sector Recruitment,20025,"2,166.55"
Children & Learning,CHIL,Specialist Core Services,CHF31,"Safeguarding West			",AC0033,Agency Staff,External Agency Staff,01/06/2022,3436189,Revenue - General Fund,Red Sector Recruitment,20025,"2,131.20"
Children & Learning,CHIL,Specialist Core Services,CHF31,"Safeguarding West			",AC0033,Agency Staff,External Agency Staff,01/06/2022,3504476,Revenue - General Fund,Red Sector Recruitment,20025,"2,138.20"
Children & Learning,CHIL,Specialist Core Services,CHF31,"Safeguarding West			",AC0033,Agency Staff,External Agency Staff,17/06/2022,3513037,Revenue - General Fund,Red Sector Recruitment,20025,"1,296.00"
Children & Learning,CHIL,Specialist Core Services,CHF31,"Safeguarding West			",AC0033,Agency Staff,External Agency Staff,17/06/2022,3513039,Revenue - General Fund,Red Sector Recruitment,20025,"2,184.75"
Children & Learning,CHIL,Specialist Core Services,CHF31,"Safeguarding West			",AC0033,Agency Staff,External Agency Staff,26/05/2022,3436190,Revenue - General Fund,Red Sector Recruitment,20025,"2,136.60"
Children & Learning,CHIL,Specialist Core Services,CHF31,"Safeguarding West			",AC0033,Agency Staff,External Agency Staff,26/05/2022,3502737,Revenue - General Fund,Red Sector Recruitment,20025,"2,144.70"
Children & Learning,CHIL,Specialist Core Services,CHF31,"Safeguarding West			",AC0033,Agency Staff,External Agency Staff,01/06/2022,3506948,Revenue - General Fund,Red Sector Recruitment,20025,"2,131.20"
Children & Learning,CHIL,Specialist Core Services,CHF31,"Safeguarding West			",AC0033,Agency Staff,External Agency Staff,20/05/2022,3431179,Revenue - General Fund,Red Sector Recruitment,20025,"1,598.40"
Children & Learning,CHIL,Specialist Core Services,CHF31,"Safeguarding West			",AC0033,Agency Staff,External Agency Staff,25/05/2022,3510719,Revenue - General Fund,Red Sector Recruitment,20025,"2,140.20"
Children & Learning,CHIL,Specialist Core Services,CHF31,"Safeguarding West			",AC0033,Agency Staff,External Agency Staff,26/05/2022,3504475,Revenue - General Fund,Red Sector Recruitment,20025,"2,142.45"
Children & Learning,CHIL,Specialist Core Services,CHF31,"Safeguarding West			",AC0033,Agency Staff,External Agency Staff,26/05/2022,3506947,Revenue - General Fund,Red Sector Recruitment,20025,"2,140.20"
Children & Learning,CHIL,Specialist Core Services,CHF31,"Safeguarding West			",AC0033,Agency Staff,External Agency Staff,30/05/2022,3509767,Revenue - General Fund,Red Sector Recruitment,20025,"2,143.35"
Children & Learning,CHIL,Specialist Core Services,CHF31,"Safeguarding West			",AC0033,Agency Staff,External Agency Staff,01/06/2022,3510853,Revenue - General Fund,Red Sector Recruitment,20025,"2,131.20"
Children & Learning,CHIL,Specialist Core Services,CHF31,"Safeguarding West			",AC0033,Agency Staff,External Agency Staff,23/06/2022,3509768,Revenue - General Fund,Red Sector Recruitment,20025,"2,131.20"
Children & Learning,CHIL,Specialist Core Services,CHF31,"Safeguarding West			",AC0033,Miscellaneous and Initiative Expenses,Other Client Expenses,09/06/2022,3514010,Revenue - General Fund,Dr Grange and Associates Limited,47846,"2,082.80"
Children & Learning,CHIL,Specialist Core Services,CHF31,"Safeguarding West			",AC0033,Services,Preventative Expenditure,09/06/2022,3512646,Revenue - General Fund,Sankofa Care,46238,"2,611.43"
Children & Learning,CHIL,Specialist Core Services,CHF31,"Safeguarding West			",AC0033,Services,Preventative Expenditure,12/05/2022,3435337,Revenue - General Fund,Voice of the Child,45797,"1,280.00"
Children & Learning,CHIL,Specialist Core Services,CHF31,"Safeguarding West			",AC0033,Services,Preventative Expenditure,19/05/2022,3435339,Revenue - General Fund,Voice of the Child,45797,"1,644.00"
Children & Learning,CHIL,Specialist Core Services,CHF31,Protection and Court Teams,AC0280,Agency Staff,External Agency Staff,09/06/2022,3514259,Revenue - General Fund,NonStop Consulting,15950,"1,863.32"
Children & Learning,CHIL,Specialist Core Services,CHF31,Protection and Court Teams,AC0280,Agency Staff,External Agency Staff,12/05/2022,3503953,Revenue - General Fund,NonStop Consulting,15950,"1,464.96"
Children & Learning,CHIL,Specialist Core Services,CHF31,Protection and Court Teams,AC0280,Agency Staff,External Agency Staff,20/05/2022,3509684,Revenue - General Fund,NonStop Consulting,15950,"1,863.32"
Children & Learning,CHIL,Specialist Core Services,CHF31,Protection and Court Teams,AC0280,Agency Staff,External Agency Staff,29/04/2022,3435294,Revenue - General Fund,NonStop Consulting,15950,"1,556.52"
Children & Learning,CHIL,Specialist Core Services,CHF31,Protection and Court Teams,AC0280,Agency Staff,External Agency Staff,09/05/2022,3502599,Revenue - General Fund,NonStop Consulting,15950,"1,510.80"
Children & Learning,CHIL,Specialist Core Services,CHF31,Protection and Court Teams,AC0280,Agency Staff,External Agency Staff,20/05/2022,3506745,Revenue - General Fund,NonStop Consulting,15950,"1,863.32"
Children & Learning,CHIL,Specialist Core Services,CHF31,Protection and Court Teams,AC0280,Agency Staff,External Agency Staff,20/06/2022,3515770,Revenue - General Fund,NonStop Consulting,15950,"1,133.10"
Children & Learning,CHIL,Specialist Core Services,CHF31,Protection and Court Teams,AC0280,Agency Staff,External Agency Staff,21/04/2022,3427688,Revenue - General Fund,NonStop Consulting,15950,686.70
Children & Learning,CHIL,Specialist Core Services,CHF31,Protection and Court Teams,AC0280,Agency Staff,External Agency Staff,27/06/2022,3517484,Revenue - General Fund,NonStop Consulting,15950,"1,510.80"
Children & Learning,CHIL,Specialist Core Services,CHF31,Protection and Court Teams,AC0280,Agency Staff,External Agency Staff,01/04/2022,3430223,Revenue - General Fund,NonStop Consulting,15950,"1,586.34"
Children & Learning,CHIL,Specialist Core Services,CHF31,Protection and Court Teams,AC0280,Agency Staff,External Agency Staff,08/06/2022,3509683,Revenue - General Fund,NonStop Consulting,15950,"1,007.16"
Children & Learning,CHIL,Specialist Core Services,CHF31,Protection and Court Teams,AC0280,Agency Staff,External Agency Staff,09/06/2022,3512240,Revenue - General Fund,NonStop Consulting,15950,"1,863.32"
Children & Learning,CHIL,Specialist Core Services,CHF31,Protection and Court Teams,AC0280,Agency Staff,External Agency Staff,12/05/2022,3503954,Revenue - General Fund,NonStop Consulting,15950,"1,030.05"
Children & Learning,CHIL,Specialist Core Services,CHF31,Protection and Court Teams,AC0280,Agency Staff,External Agency Staff,12/05/2022,3503997,Revenue - General Fund,NonStop Consulting,15950,"1,510.80"
Children & Learning,CHIL,Specialist Core Services,CHF31,Protection and Court Teams,AC0280,Agency Staff,External Agency Staff,24/05/2022,3508655,Revenue - General Fund,NonStop Consulting,15950,"1,510.80"
Children & Learning,CHIL,Specialist Core Services,CHF31,Protection and Court Teams,AC0280,Agency Staff,External Agency Staff,29/04/2022,3431088,Revenue - General Fund,NonStop Consulting,15950,"1,030.05"
Children & Learning,CHIL,Specialist Core Services,CHF31,Protection and Court Teams,AC0280,Agency Staff,External Agency Staff,29/04/2022,3434357,Revenue - General Fund,NonStop Consulting,15950,"1,968.54"
Children & Learning,CHIL,Specialist Core Services,CHF31,Protection and Court Teams,AC0280,Agency Staff,External Agency Staff,14/04/2022,3432608,Revenue - General Fund,NonStop Consulting,15950,"1,535.98"
Children & Learning,CHIL,Specialist Core Services,CHF31,Protection and Court Teams,AC0280,Agency Staff,External Agency Staff,19/04/2022,3435295,Revenue - General Fund,NonStop Consulting,15950,"1,586.34"
Children & Learning,CHIL,Specialist Core Services,CHF31,Protection and Court Teams,AC0280,Agency Staff,External Agency Staff,26/04/2022,3435264,Revenue - General Fund,NonStop Consulting,15950,"1,636.70"
Children & Learning,CHIL,Specialist Core Services,CHF31,Protection and Court Teams,AC0280,Agency Staff,External Agency Staff,01/04/2022,3430191,Revenue - General Fund,Paradigm Professional Consultancy Ltd,21949,"1,863.52"
Children & Learning,CHIL,Specialist Core Services,CHF31,Protection and Court Teams,AC0280,Agency Staff,External Agency Staff,14/04/2022,3434584,Revenue - General Fund,Paradigm Professional Consultancy Ltd,21949,"1,663.52"
Children & Learning,CHIL,Specialist Core Services,CHF31,Protection and Court Teams,AC0280,Agency Staff,External Agency Staff,19/04/2022,3435252,Revenue - General Fund,Paradigm Professional Consultancy Ltd,21949,"1,811.52"
Children & Learning,CHIL,Specialist Core Services,CHF31,Protection and Court Teams,AC0280,Agency Staff,External Agency Staff,22/06/2022,3515410,Revenue - General Fund,Paradigm Professional Consultancy Ltd,21949,"1,298.46"
Children & Learning,CHIL,Specialist Core Services,CHF31,Protection and Court Teams,AC0280,Agency Staff,External Agency Staff,30/05/2022,3436345,Revenue - General Fund,Paradigm Professional Consultancy Ltd,21949,"1,863.52"
Children & Learning,CHIL,Specialist Core Services,CHF31,Protection and Court Teams,AC0280,Agency Staff,External Agency Staff,30/05/2022,3504507,Revenue - General Fund,Paradigm Professional Consultancy Ltd,21949,"1,508.80"
Children & Learning,CHIL,Specialist Core Services,CHF31,Protection and Court Teams,AC0280,Agency Staff,External Agency Staff,19/04/2022,3435251,Revenue - General Fund,Paradigm Professional Consultancy Ltd,21949,"1,811.52"
Children & Learning,CHIL,Specialist Core Services,CHF31,Protection and Court Teams,AC0280,Agency Staff,External Agency Staff,22/06/2022,3514623,Revenue - General Fund,Paradigm Professional Consultancy Ltd,21949,"1,863.52"
Children & Learning,CHIL,Specialist Core Services,CHF31,Protection and Court Teams,AC0280,Agency Staff,External Agency Staff,22/06/2022,3515448,Revenue - General Fund,Paradigm Professional Consultancy Ltd,21949,"1,863.52"
Children & Learning,CHIL,Specialist Core Services,CHF31,Protection and Court Teams,AC0280,Agency Staff,External Agency Staff,22/06/2022,3515451,Revenue - General Fund,Paradigm Professional Consultancy Ltd,21949,"1,863.52"
Children & Learning,CHIL,Specialist Core Services,CHF31,Protection and Court Teams,AC0280,Agency Staff,External Agency Staff,30/05/2022,3510855,Revenue - General Fund,Paradigm Professional Consultancy Ltd,21949,"1,863.52"
Children & Learning,CHIL,Specialist Core Services,CHF31,Protection and Court Teams,AC0280,Agency Staff,External Agency Staff,09/05/2022,3504291,Revenue - General Fund,Paradigm Professional Consultancy Ltd,21949,"1,628.80"
Children & Learning,CHIL,Specialist Core Services,CHF31,Protection and Court Teams,AC0280,Agency Staff,External Agency Staff,10/05/2022,3506752,Revenue - General Fund,Paradigm Professional Consultancy Ltd,21949,"2,011.52"
Children & Learning,CHIL,Specialist Core Services,CHF31,Protection and Court Teams,AC0280,Agency Staff,External Agency Staff,12/04/2022,3432868,Revenue - General Fund,Paradigm Professional Consultancy Ltd,21949,"1,863.52"
Children & Learning,CHIL,Specialist Core Services,CHF31,Protection and Court Teams,AC0280,Agency Staff,External Agency Staff,22/06/2022,3513903,Revenue - General Fund,Paradigm Professional Consultancy Ltd,21949,709.44
Children & Learning,CHIL,Specialist Core Services,CHF31,Protection and Court Teams,AC0280,Agency Staff,External Agency Staff,22/06/2022,3514373,Revenue - General Fund,Paradigm Professional Consultancy Ltd,21949,"1,954.34"
Children & Learning,CHIL,Specialist Core Services,CHF31,Protection and Court Teams,AC0280,Agency Staff,External Agency Staff,22/06/2022,3514374,Revenue - General Fund,Paradigm Professional Consultancy Ltd,21949,"2,011.52"
Children & Learning,CHIL,Specialist Core Services,CHF31,Protection and Court Teams,AC0280,Agency Staff,External Agency Staff,22/06/2022,3515411,Revenue - General Fund,Paradigm Professional Consultancy Ltd,21949,"1,221.60"
Children & Learning,CHIL,Specialist Core Services,CHF31,Protection and Court Teams,AC0280,Agency Staff,External Agency Staff,26/04/2022,3436267,Revenue - General Fund,Paradigm Professional Consultancy Ltd,21949,"2,011.52"
Children & Learning,CHIL,Specialist Core Services,CHF31,Protection and Court Teams,AC0280,Agency Staff,External Agency Staff,30/05/2022,3502771,Revenue - General Fund,Paradigm Professional Consultancy Ltd,21949,"1,528.80"
Children & Learning,CHIL,Specialist Core Services,CHF31,Protection and Court Teams,AC0280,Agency Staff,External Agency Staff,30/05/2022,3510854,Revenue - General Fund,Paradigm Professional Consultancy Ltd,21949,"1,913.62"
Children & Learning,CHIL,Specialist Core Services,CHF31,Protection and Court Teams,AC0280,Agency Staff,External Agency Staff,05/04/2022,3430368,Revenue - General Fund,Paradigm Professional Consultancy Ltd,21949,"1,863.52"
Children & Learning,CHIL,Specialist Core Services,CHF31,Protection and Court Teams,AC0280,Agency Staff,External Agency Staff,08/04/2022,3432869,Revenue - General Fund,Paradigm Professional Consultancy Ltd,21949,"1,863.52"
Children & Learning,CHIL,Specialist Core Services,CHF31,Protection and Court Teams,AC0280,Agency Staff,External Agency Staff,20/05/2022,3509430,Revenue - General Fund,Paradigm Professional Consultancy Ltd,21949,"1,628.80"
Children & Learning,CHIL,Specialist Core Services,CHF31,Protection and Court Teams,AC0280,Agency Staff,External Agency Staff,21/04/2022,3435368,Revenue - General Fund,Paradigm Professional Consultancy Ltd,21949,"1,663.52"
Children & Learning,CHIL,Specialist Core Services,CHF31,Protection and Court Teams,AC0280,Agency Staff,External Agency Staff,22/06/2022,3515403,Revenue - General Fund,Paradigm Professional Consultancy Ltd,21949,"1,863.52"
Children & Learning,CHIL,Specialist Core Services,CHF31,Protection and Court Teams,AC0280,Agency Staff,External Agency Staff,22/06/2022,3515449,Revenue - General Fund,Paradigm Professional Consultancy Ltd,21949,"2,011.52"
Children & Learning,CHIL,Specialist Core Services,CHF31,Protection and Court Teams,AC0280,Agency Staff,External Agency Staff,25/05/2022,3510308,Revenue - General Fund,Paradigm Professional Consultancy Ltd,21949,"2,011.52"
Children & Learning,CHIL,Specialist Core Services,CHF31,Protection and Court Teams,AC0280,Agency Staff,External Agency Staff,26/04/2022,3436240,Revenue - General Fund,Paradigm Professional Consultancy Ltd,21949,"1,528.80"
Children & Learning,CHIL,Specialist Core Services,CHF31,Protection and Court Teams,AC0280,Agency Staff,External Agency Staff,27/04/2022,3502590,Revenue - General Fund,Paradigm Professional Consultancy Ltd,21949,"1,648.80"
Children & Learning,CHIL,Specialist Core Services,CHF31,Protection and Court Teams,AC0280,Agency Staff,External Agency Staff,30/05/2022,3505156,Revenue - General Fund,Paradigm Professional Consultancy Ltd,21949,"1,508.80"
Children & Learning,CHIL,Specialist Core Services,CHF31,Protection and Court Teams,AC0280,Agency Staff,External Agency Staff,30/05/2022,3506950,Revenue - General Fund,Paradigm Professional Consultancy Ltd,21949,"1,863.52"
Children & Learning,CHIL,Specialist Core Services,CHF31,Protection and Court Teams,AC0280,Agency Staff,External Agency Staff,30/05/2022,3509743,Revenue - General Fund,Paradigm Professional Consultancy Ltd,21949,"1,508.80"
Children & Learning,CHIL,Specialist Core Services,CHF31,Protection and Court Teams,AC0280,Agency Staff,External Agency Staff,30/05/2022,3510421,Revenue - General Fund,Paradigm Professional Consultancy Ltd,21949,"1,863.52"
Children & Learning,CHIL,Specialist Core Services,CHF31,Protection and Court Teams,AC0280,Agency Staff,External Agency Staff,04/04/2022,3431180,Revenue - General Fund,Red Sector Recruitment,20025,"2,016.18"
Children & Learning,CHIL,Specialist Core Services,CHF31,Protection and Court Teams,AC0280,Agency Staff,External Agency Staff,05/04/2022,3429952,Revenue - General Fund,Red Sector Recruitment,20025,"2,037.33"
Children & Learning,CHIL,Specialist Core Services,CHF31,Protection and Court Teams,AC0280,Agency Staff,External Agency Staff,28/04/2022,3436191,Revenue - General Fund,Red Sector Recruitment,20025,"2,033.73"
Children & Learning,CHIL,Specialist Core Services,CHF31,Protection and Court Teams,AC0280,Agency Staff,External Agency Staff,04/04/2022,3419071,Revenue - General Fund,Red Sector Recruitment,20025,"2,031.48"
Children & Learning,CHIL,Specialist Core Services,CHF31,Protection and Court Teams,AC0280,Agency Staff,External Agency Staff,04/04/2022,3427071,Revenue - General Fund,Red Sector Recruitment,20025,"2,031.03"
Children & Learning,CHIL,Specialist Core Services,CHF31,Protection and Court Teams,AC0280,Agency Staff,External Agency Staff,17/05/2022,3502754,Revenue - General Fund,Red Sector Recruitment,20025,"2,018.43"
Children & Learning,CHIL,Specialist Core Services,CHF31,Protection and Court Teams,AC0280,Agency Staff,External Agency Staff,01/04/2022,3422265,Revenue - General Fund,Red Sector Recruitment,20025,"2,033.28"
Children & Learning,CHIL,Specialist Core Services,CHF31,Protection and Court Teams,AC0280,Agency Staff,External Agency Staff,04/04/2022,3417354,Revenue - General Fund,Red Sector Recruitment,20025,"2,015.73"
Children & Learning,CHIL,Specialist Core Services,CHF31,Protection and Court Teams,AC0280,Agency Staff,External Agency Staff,04/04/2022,3425223,Revenue - General Fund,Red Sector Recruitment,20025,"2,290.23"
Children & Learning,CHIL,Specialist Core Services,CHF31,Protection and Court Teams,AC0280,Agency Staff,External Agency Staff,25/05/2022,3510720,Revenue - General Fund,Red Sector Recruitment,20025,"2,014.38"
Children & Learning,CHIL,Specialist Core Services,CHF31,Protection and Court Teams,AC0280,"Tools, Equipment, Furniture & Materials",Health & Safety Equipment,20/04/2022,3434364,Revenue - General Fund,Thriiver Limited,21868,948.00
Children & Learning,CHIL,Specialist Core Services,CHF31,Protection and Court Teams,AC0280,Contract Hire and Operating Leases,Hire of Transport & Plant,14/04/2022,3411798,Revenue - General Fund,Cab My Ride,26254,"2,850.00"
Children & Learning,CHIL,Specialist Core Services,CHF31,Protection and Court Teams,AC0280,Contract Hire and Operating Leases,Hire of Transport & Plant,30/06/2022,3510690,Revenue - General Fund,Cab My Ride,26254,"2,250.00"
Children & Learning,CHIL,Specialist Core Services,CHF31,Protection and Court Teams,AC0280,Contract Hire and Operating Leases,Hire of Transport & Plant,29/06/2022,3516756,Revenue - General Fund,Cab My Ride,26254,"3,020.00"
Children & Learning,CHIL,Specialist Core Services,CHF31,Protection and Court Teams,AC0280,Contract Hire and Operating Leases,Hire of Transport & Plant,29/06/2022,3516755,Revenue - General Fund,Cab My Ride,26254,"2,880.00"
Children & Learning,CHIL,Specialist Core Services,CHF31,Protection and Court Teams,AC0280,Contract Hire and Operating Leases,Hire of Transport & Plant,01/06/2022,3385423,Revenue - General Fund,Radio Taxis (Southampton) Ltd,20584,"2,502.50"
Children & Learning,CHIL,Specialist Core Services,CHF31,Protection and Court Teams,AC0280,Services,Legal Expenses,12/04/2022,3433802,Revenue - General Fund,Abels Solicitors & Commissioners,19526,769.20
Children & Learning,CHIL,Specialist Core Services,CHF31,Protection and Court Teams,AC0280,Services,Legal Expenses,05/04/2022,3431643,Revenue - General Fund,Leonard Solicitors LLP,26280,"1,000.00"
Children & Learning,CHIL,Specialist Core Services,CHF31,Protection and Court Teams,AC0280,Miscellaneous and Initiative Expenses,Other Client Expenses,26/04/2022,3436097,Revenue - General Fund,DNA Legal Ltd,20749,998.00
Children & Learning,CHIL,Specialist Core Services,CHF31,Protection and Court Teams,AC0280,Miscellaneous and Initiative Expenses,Other Client Expenses,24/05/2022,3509668,Revenue - General Fund,SAJO SA Managemnt Ltd T/A The Accommodation Company,33672,"7,042.84"
Children & Learning,CHIL,Specialist Core Services,CHF31,Protection and Court Teams,AC0280,Miscellaneous and Initiative Expenses,Other Expenses,22/04/2022,3435455,Revenue - General Fund,Fairways Community Benefit Society (FCBS),14816,528.48
Children & Learning,CHIL,Specialist Core Services,CHF31,Protection and Court Teams,AC0280,Services,Preventative Expenditure,10/05/2022,3506955,Revenue - General Fund,Advanced Child Care Assessments Ltd,32743,903.00
Children & Learning,CHIL,Specialist Core Services,CHF31,Protection and Court Teams,AC0280,Services,Preventative Expenditure,19/05/2022,3506719,Revenue - General Fund,Bournemouth YMCA Child Contact Centre,26807,550.00
Children & Learning,CHIL,Specialist Core Services,CHF31,Protection and Court Teams,AC0280,Services,Preventative Expenditure,10/05/2022,3506956,Revenue - General Fund,Chances Give Choices Ltd,14894,"3,610.00"
Children & Learning,CHIL,Specialist Core Services,CHF31,Protection and Court Teams,AC0280,Services,Preventative Expenditure,12/04/2022,3432605,Revenue - General Fund,Chances Give Choices Ltd,14894,560.00
Children & Learning,CHIL,Specialist Core Services,CHF31,Protection and Court Teams,AC0280,Services,Preventative Expenditure,10/05/2022,3506957,Revenue - General Fund,Chances Give Choices Ltd,14894,"1,300.00"
Children & Learning,CHIL,Specialist Core Services,CHF31,Protection and Court Teams,AC0280,Services,Preventative Expenditure,26/05/2022,3510968,Revenue - General Fund,Chances Give Choices Ltd,14894,650.00
Children & Learning,CHIL,Specialist Core Services,CHF31,Protection and Court Teams,AC0280,Services,Preventative Expenditure,26/04/2022,3434858,Revenue - General Fund,Chances Give Choices Ltd,14894,975.00
Children & Learning,CHIL,Specialist Core Services,CHF31,Protection and Court Teams,AC0280,Services,Preventative Expenditure,20/04/2022,23205,Revenue - General Fund,Homelife Properties (JSR Estates Southampton),32277,"-2,465.00"
Children & Learning,CHIL,Specialist Core Services,CHF31,Protection and Court Teams,AC0280,Services,Preventative Expenditure,12/04/2022,3432821,Revenue - General Fund,Homelife Properties (JSR Estates Southampton),32277,"1,085.00"
Children & Learning,CHIL,Specialist Core Services,CHF31,Protection and Court Teams,AC0280,Services,Preventative Expenditure,20/04/2022,23207,Revenue - General Fund,Homelife Properties (JSR Estates Southampton),32277,"-2,635.00"
Children & Learning,CHIL,Specialist Core Services,CHF31,Protection and Court Teams,AC0280,Services,Preventative Expenditure,04/04/2022,3429246,Revenue - General Fund,Homelife Properties (JSR Estates Southampton),32277,"2,635.00"
Children & Learning,CHIL,Specialist Core Services,CHF31,Protection and Court Teams,AC0280,Services,Preventative Expenditure,12/04/2022,3432814,Revenue - General Fund,Homelife Properties (JSR Estates Southampton),32277,"1,085.00"
Children & Learning,CHIL,Specialist Core Services,CHF31,Protection and Court Teams,AC0280,Services,Preventative Expenditure,12/04/2022,3432820,Revenue - General Fund,Homelife Properties (JSR Estates Southampton),32277,980.00
Children & Learning,CHIL,Specialist Core Services,CHF31,Protection and Court Teams,AC0280,Services,Preventative Expenditure,04/04/2022,3431004,Revenue - General Fund,IDNA Genetics Ltd t/a Anglia DNA Services Ltd,21277,926.50
Children & Learning,CHIL,Specialist Core Services,CHF31,Protection and Court Teams,AC0280,Services,Preventative Expenditure,01/04/2022,3430216,Revenue - General Fund,Linden Guest House,18918,535.50
Children & Learning,CHIL,Specialist Core Services,CHF31,Protection and Court Teams,AC0280,Services,Preventative Expenditure,09/05/2022,3505753,Revenue - General Fund,Linden Guest House,18918,535.50
Children & Learning,CHIL,Specialist Core Services,CHF31,Protection and Court Teams,AC0280,Services,Preventative Expenditure,12/05/2022,3505517,Revenue - General Fund,Linden Guest House,18918,535.50
Children & Learning,CHIL,Specialist Core Services,CHF31,Protection and Court Teams,AC0280,Services,Preventative Expenditure,17/05/2022,3502341,Revenue - General Fund,Linden Guest House,18918,535.50
Children & Learning,CHIL,Specialist Core Services,CHF31,Protection and Court Teams,AC0280,Services,Preventative Expenditure,28/04/2022,3436250,Revenue - General Fund,Linden Guest House,18918,535.50
Children & Learning,CHIL,Specialist Core Services,CHF31,Protection and Court Teams,AC0280,Services,Preventative Expenditure,28/04/2022,3502061,Revenue - General Fund,Linden Guest House,18918,535.50
Children & Learning,CHIL,Specialist Core Services,CHF31,Protection and Court Teams,AC0280,Services,Preventative Expenditure,07/04/2022,3431118,Revenue - General Fund,Linden Guest House,18918,535.50
Children & Learning,CHIL,Specialist Core Services,CHF31,Protection and Court Teams,AC0280,Services,Preventative Expenditure,28/04/2022,3436249,Revenue - General Fund,Linden Guest House,18918,535.50
Children & Learning,CHIL,Specialist Core Services,CHF31,Protection and Court Teams,AC0280,Services,Preventative Expenditure,14/04/2022,3433868,Revenue - General Fund,Linden Guest House,18918,535.50
Children & Learning,CHIL,Specialist Core Services,CHF31,Protection and Court Teams,AC0280,Services,Preventative Expenditure,04/04/2022,3430186,Revenue - General Fund,Linden Guest House,18918,535.50
Children & Learning,CHIL,Specialist Core Services,CHF31,Protection and Court Teams,AC0280,Services,Preventative Expenditure,12/05/2022,3505526,Revenue - General Fund,Linden Guest House,18918,535.50
Children & Learning,CHIL,Specialist Core Services,CHF31,Protection and Court Teams,AC0280,Services,Preventative Expenditure,28/04/2022,3502060,Revenue - General Fund,Linden Guest House,18918,505.50
Children & Learning,CHIL,Specialist Core Services,CHF31,Protection and Court Teams,AC0280,Services,Preventative Expenditure,14/04/2022,3434018,Revenue - General Fund,Nolans Emergency Accomodation Ltd,17744,"1,563.00"
Children & Learning,CHIL,Specialist Core Services,CHF31,Protection and Court Teams,AC0280,Services,Preventative Expenditure,28/04/2022,3436372,Revenue - General Fund,Polygon Guest House,14228,575.75
Children & Learning,CHIL,Specialist Core Services,CHF31,Protection and Court Teams,AC0280,Services,Preventative Expenditure,29/04/2022,3435219,Revenue - General Fund,Polygon Guest House,14228,"4,606.00"
Children & Learning,CHIL,Specialist Core Services,CHF31,Protection and Court Teams,AC0280,Services,Preventative Expenditure,29/04/2022,3435220,Revenue - General Fund,Polygon Guest House,14228,575.75
Children & Learning,CHIL,Specialist Core Services,CHF31,Protection and Court Teams,AC0280,Services,Preventative Expenditure,29/04/2022,3436252,Revenue - General Fund,Polygon Guest House,14228,575.75
Children & Learning,CHIL,Specialist Core Services,CHF31,Protection and Court Teams,AC0280,Services,Preventative Expenditure,29/04/2022,3436255,Revenue - General Fund,Polygon Guest House,14228,575.75
Children & Learning,CHIL,Specialist Core Services,CHF31,Protection and Court Teams,AC0280,Services,Preventative Expenditure,29/04/2022,3436253,Revenue - General Fund,Polygon Guest House,14228,575.75
Children & Learning,CHIL,Specialist Core Services,CHF31,Protection and Court Teams,AC0280,Services,Preventative Expenditure,29/04/2022,3436251,Revenue - General Fund,Polygon Guest House,14228,575.75
Children & Learning,CHIL,Specialist Core Services,CHF31,Protection and Court Teams,AC0280,Services,Preventative Expenditure,29/04/2022,3436254,Revenue - General Fund,Polygon Guest House,14228,575.75
Children & Learning,CHIL,Specialist Core Services,CHF31,Protection and Court Teams,AC0280,Services,Preventative Expenditure,20/05/2022,3509049,Revenue - General Fund,Polygon Villas t/a Southampton Guesthouse Ltd,14078,"2,480.00"
Children & Learning,CHIL,Specialist Core Services,CHF31,Protection and Court Teams,AC0280,Services,Preventative Expenditure,20/05/2022,3509087,Revenue - General Fund,Polygon Villas t/a Southampton Guesthouse Ltd,14078,"2,790.00"
Children & Learning,CHIL,Specialist Core Services,CHF31,Protection and Court Teams,AC0280,Services,Preventative Expenditure,20/05/2022,3509089,Revenue - General Fund,Polygon Villas t/a Southampton Guesthouse Ltd,14078,"2,520.00"
Children & Learning,CHIL,Specialist Core Services,CHF31,Protection and Court Teams,AC0280,Services,Preventative Expenditure,07/06/2022,3509478,Revenue - General Fund,Polygon Villas t/a Southampton Guesthouse Ltd,14078,"2,325.00"
Children & Learning,CHIL,Specialist Core Services,CHF31,Protection and Court Teams,AC0280,Services,Preventative Expenditure,15/06/2022,3509480,Revenue - General Fund,Polygon Villas t/a Southampton Guesthouse Ltd,14078,"2,250.00"
Children & Learning,CHIL,Specialist Core Services,CHF31,Protection and Court Teams,AC0280,Services,Preventative Expenditure,19/05/2022,3509018,Revenue - General Fund,Polygon Villas t/a Southampton Guesthouse Ltd,14078,"1,500.00"
Children & Learning,CHIL,Specialist Core Services,CHF31,Protection and Court Teams,AC0280,Services,Preventative Expenditure,19/05/2022,3509048,Revenue - General Fund,Polygon Villas t/a Southampton Guesthouse Ltd,14078,"2,400.00"
Children & Learning,CHIL,Specialist Core Services,CHF31,Protection and Court Teams,AC0280,Services,Preventative Expenditure,20/05/2022,3509017,Revenue - General Fund,Polygon Villas t/a Southampton Guesthouse Ltd,14078,"1,550.00"
Children & Learning,CHIL,Specialist Core Services,CHF31,Protection and Court Teams,AC0280,Services,Preventative Expenditure,20/05/2022,3509090,Revenue - General Fund,Polygon Villas t/a Southampton Guesthouse Ltd,14078,"2,790.00"
Children & Learning,CHIL,Specialist Core Services,CHF31,Protection and Court Teams,AC0280,Services,Preventative Expenditure,20/05/2022,3509135,Revenue - General Fund,Polygon Villas t/a Southampton Guesthouse Ltd,14078,"2,700.00"
Children & Learning,CHIL,Specialist Core Services,CHF31,Protection and Court Teams,AC0280,Services,Preventative Expenditure,09/06/2022,3513959,Revenue - General Fund,Polygon Villas t/a Southampton Guesthouse Ltd,14078,"1,950.00"
Children & Learning,CHIL,Specialist Core Services,CHF31,Protection and Court Teams,AC0280,Services,Preventative Expenditure,09/06/2022,3513960,Revenue - General Fund,Polygon Villas t/a Southampton Guesthouse Ltd,14078,"2,015.00"
Children & Learning,CHIL,Specialist Core Services,CHF31,Protection and Court Teams,AC0280,Services,Preventative Expenditure,20/05/2022,3509088,Revenue - General Fund,Polygon Villas t/a Southampton Guesthouse Ltd,14078,"2,790.00"
Children & Learning,CHIL,Specialist Core Services,CHF31,Protection and Court Teams,AC0280,Services,Preventative Expenditure,24/05/2022,3509477,Revenue - General Fund,Polygon Villas t/a Southampton Guesthouse Ltd,14078,"1,550.00"
Children & Learning,CHIL,Specialist Core Services,CHF31,Protection and Court Teams,AC0280,Services,Preventative Expenditure,30/05/2022,3510258,Revenue - General Fund,Polygon Villas t/a Southampton Guesthouse Ltd,14078,"1,395.00"
Children & Learning,CHIL,Specialist Core Services,CHF31,Protection and Court Teams,AC0280,Services,Preventative Expenditure,09/06/2022,3514262,Revenue - General Fund,Polygon Villas t/a Southampton Guesthouse Ltd,14078,"1,350.00"
Children & Learning,CHIL,Specialist Core Services,CHF31,Protection and Court Teams,AC0280,Services,Preventative Expenditure,15/06/2022,3509479,Revenue - General Fund,Polygon Villas t/a Southampton Guesthouse Ltd,14078,"1,500.00"
Children & Learning,CHIL,Specialist Core Services,CHF31,Protection and Court Teams,AC0280,Services,Preventative Expenditure,04/04/2022,3430975,Revenue - General Fund,SAJO SA Managemnt Ltd T/A The Accommodation Company,33672,"2,728.00"
Children & Learning,CHIL,Specialist Core Services,CHF31,Protection and Court Teams,AC0280,Services,Preventative Expenditure,19/05/2022,3508873,Revenue - General Fund,SAJO SA Managemnt Ltd T/A The Accommodation Company,33672,"2,550.00"
Children & Learning,CHIL,Specialist Core Services,CHF31,Protection and Court Teams,AC0280,Services,Preventative Expenditure,27/04/2022,3502252,Revenue - General Fund,SAJO SA Managemnt Ltd T/A The Accommodation Company,33672,675.00
Children & Learning,CHIL,Specialist Core Services,CHF31,Protection and Court Teams,AC0280,Services,Preventative Expenditure,30/06/2022,3517326,Revenue - General Fund,SAJO SA Managemnt Ltd T/A The Accommodation Company,33672,"1,050.00"
Children & Learning,CHIL,Specialist Core Services,CHF31,Protection and Court Teams,AC0280,Services,Preventative Expenditure,04/04/2022,3430976,Revenue - General Fund,SAJO SA Managemnt Ltd T/A The Accommodation Company,33672,"2,635.00"
Children & Learning,CHIL,Specialist Core Services,CHF31,Protection and Court Teams,AC0280,Services,Preventative Expenditure,21/04/2022,3435260,Revenue - General Fund,SAJO SA Managemnt Ltd T/A The Accommodation Company,33672,"3,780.00"
Children & Learning,CHIL,Specialist Core Services,CHF31,Protection and Court Teams,AC0280,Services,Preventative Expenditure,03/05/2022,3502487,Revenue - General Fund,SAJO SA Managemnt Ltd T/A The Accommodation Company,33672,"1,425.00"
Children & Learning,CHIL,Specialist Core Services,CHF31,Protection and Court Teams,AC0280,Services,Preventative Expenditure,03/05/2022,3502540,Revenue - General Fund,SAJO SA Managemnt Ltd T/A The Accommodation Company,33672,"2,288.00"
Children & Learning,CHIL,Specialist Core Services,CHF31,Protection and Court Teams,AC0280,Services,Preventative Expenditure,26/04/2022,3422300,Revenue - General Fund,Stop Domestic Abuse,16297,"1,444.56"
Children & Learning,CHIL,Specialist Core Services,CHF31,Protection and Court Teams,AC0280,Services,Preventative Expenditure,29/04/2022,3431201,Revenue - General Fund,Stop Domestic Abuse,16297,"1,444.56"
Children & Learning,CHIL,Specialist Core Services,CHF31,Protection and Court Teams,AC0280,Services,Preventative Expenditure,06/06/2022,3505183,Revenue - General Fund,Stop Domestic Abuse,16297,"1,539.51"
Children & Learning,CHIL,Specialist Core Services,CHF31,Protection and Court Teams,AC0280,Services,Purchased Services,21/04/2022,3434922,Revenue - General Fund,Cab My Ride,26254,"1,270.00"
Children & Learning,CHIL,Specialist Core Services,CHF31,Protection and Court Teams,AC0280,Services,Purchased Services,21/04/2022,3434921,Revenue - General Fund,Cab My Ride,26254,"3,450.00"
Children & Learning,CHIL,Specialist Core Services,CHF31,Protection and Court Teams,AC0280,Services,Social Care Assessments,20/04/2022,23203,Revenue - General Fund,SUPPLIER NAME REDACTED,46783,"-1,384.50"
Children & Learning,CHIL,Specialist Core Services,CHF31,Protection and Court Teams,AC0280,Services,Social Care Assessments,04/05/2022,3429993,Revenue - General Fund,Advanced Child Care Assessments Ltd,32743,700.00
Children & Learning,CHIL,Specialist Core Services,CHF31,Protection and Court Teams,AC0280,Services,Social Care Assessments,12/04/2022,3433815,Revenue - General Fund,Advanced Child Care Assessments Ltd,32743,"2,852.90"
Children & Learning,CHIL,Specialist Core Services,CHF31,Protection and Court Teams,AC0280,Services,Social Care Assessments,12/04/2022,3434027,Revenue - General Fund,Advanced Child Care Assessments Ltd,32743,"3,080.80"
Children & Learning,CHIL,Specialist Core Services,CHF31,Protection and Court Teams,AC0280,Services,Social Care Assessments,26/04/2022,3502088,Revenue - General Fund,Advanced Child Care Assessments Ltd,32743,"2,100.00"
Children & Learning,CHIL,Specialist Core Services,CHF31,Protection and Court Teams,AC0280,Services,Social Care Assessments,04/05/2022,3430079,Revenue - General Fund,Advanced Child Care Assessments Ltd,32743,"2,227.80"
Children & Learning,CHIL,Specialist Core Services,CHF31,Protection and Court Teams,AC0280,Services,Social Care Assessments,26/04/2022,3436065,Revenue - General Fund,Advanced Child Care Assessments Ltd,32743,"1,773.80"
Children & Learning,CHIL,Specialist Core Services,CHF31,Protection and Court Teams,AC0280,Services,Social Care Assessments,26/05/2022,3435043,Revenue - General Fund,Advanced Child Care Assessments Ltd,32743,"2,762.25"
Children & Learning,CHIL,Specialist Core Services,CHF31,Protection and Court Teams,AC0280,Services,Social Care Assessments,31/05/2022,3435034,Revenue - General Fund,Advanced Child Care Assessments Ltd,32743,"2,874.14"
Children & Learning,CHIL,Specialist Core Services,CHF31,Protection and Court Teams,AC0280,Services,Social Care Assessments,12/04/2022,3434022,Revenue - General Fund,Aspire Social Work Services Ltd,19388,"1,624.20"
Children & Learning,CHIL,Specialist Core Services,CHF31,Protection and Court Teams,AC0280,Services,Social Care Assessments,05/04/2022,3431645,Revenue - General Fund,Carter Brown-The Expert Service Limited,14956,"2,501.40"
Children & Learning,CHIL,Specialist Core Services,CHF31,Protection and Court Teams,AC0280,Services,Social Care Assessments,05/04/2022,3431765,Revenue - General Fund,DNA Legal Ltd,20749,"1,295.00"
Children & Learning,CHIL,Specialist Core Services,CHF31,Protection and Court Teams,AC0280,Services,Temporary Accomodation,03/05/2022,3504237,Revenue - General Fund,Polygon Guest House,14228,575.75
Children & Learning,CHIL,Specialist Core Services,CHF31,Protection and Court Teams,AC0280,Services,Temporary Accomodation,26/04/2022,3502232,Revenue - General Fund,Polygon Guest House,14228,575.75
Children & Learning,CHIL,Specialist Core Services,CHF31,Protection and Court Teams,AC0280,Services,Temporary Accomodation,25/04/2022,3436260,Revenue - General Fund,Polygon Guest House,14228,575.75
Children & Learning,CHIL,Specialist Core Services,CHF31,Protection and Court Teams,AC0280,Services,Temporary Accomodation,18/05/2022,3435356,Revenue - General Fund,SAJO SA Managemnt Ltd T/A The Accommodation Company,33672,"2,100.00"
Children & Learning,CHIL,Specialist Core Services,CHF31,Protection and Court Teams,AC0280,Services,Temporary Accomodation,20/06/2022,3395311,Revenue - General Fund,Vital Links Solutions,31953,"2,516.61"
Children & Learning,CHIL,Looked After Children & Provision,CHF32,Family and Friends Team,AC0010,Agency Staff,External Agency Staff,03/05/2022,3436071,Revenue - General Fund,NonStop Consulting,15950,"1,694.23"
Children & Learning,CHIL,Looked After Children & Provision,CHF32,Family and Friends Team,AC0010,Agency Staff,External Agency Staff,03/05/2022,3504000,Revenue - General Fund,NonStop Consulting,15950,"1,350.81"
Children & Learning,CHIL,Looked After Children & Provision,CHF32,Family and Friends Team,AC0010,Agency Staff,External Agency Staff,06/05/2022,3505507,Revenue - General Fund,NonStop Consulting,15950,"1,694.23"
Children & Learning,CHIL,Looked After Children & Provision,CHF32,Family and Friends Team,AC0010,Agency Staff,External Agency Staff,20/04/2022,3435293,Revenue - General Fund,NonStop Consulting,15950,"1,694.23"
Children & Learning,CHIL,Looked After Children & Provision,CHF32,Family and Friends Team,AC0010,Agency Staff,External Agency Staff,20/05/2022,3510000,Revenue - General Fund,NonStop Consulting,15950,"1,602.65"
Children & Learning,CHIL,Looked After Children & Provision,CHF32,Family and Friends Team,AC0010,Agency Staff,External Agency Staff,26/04/2022,3502086,Revenue - General Fund,NonStop Consulting,15950,"1,373.70"
Children & Learning,CHIL,Looked After Children & Provision,CHF32,Family and Friends Team,AC0010,Agency Staff,External Agency Staff,31/05/2022,3512101,Revenue - General Fund,NonStop Consulting,15950,"1,694.23"
Children & Learning,CHIL,Looked After Children & Provision,CHF32,Family and Friends Team,AC0010,Agency Staff,External Agency Staff,30/06/2022,3518804,Revenue - General Fund,NonStop Consulting,15950,"1,694.23"
Children & Learning,CHIL,Looked After Children & Provision,CHF32,Family and Friends Team,AC0010,Agency Staff,External Agency Staff,04/04/2022,3431089,Revenue - General Fund,NonStop Consulting,15950,"1,694.23"
Children & Learning,CHIL,Looked After Children & Provision,CHF32,Family and Friends Team,AC0010,Agency Staff,External Agency Staff,09/06/2022,3513918,Revenue - General Fund,NonStop Consulting,15950,"1,350.81"
Children & Learning,CHIL,Looked After Children & Provision,CHF32,Family and Friends Team,AC0010,Agency Staff,External Agency Staff,23/05/2022,3510001,Revenue - General Fund,NonStop Consulting,15950,"1,350.81"
Children & Learning,CHIL,Looked After Children & Provision,CHF32,"Children in Care Team 1					",AC0011,Grants and Subscriptions,Corporate Memberships and Subscriptions,09/06/2022,3514245,Revenue - General Fund,Catch 22 Charity Ltd,18181,"2,995.00"
Children & Learning,CHIL,Looked After Children & Provision,CHF32,"Children in Care Team 1					",AC0011,Social Services,IFA Over 18,03/05/2022,3503108,Revenue - General Fund,Blue Sky Fostering Limited,16789,"1,778.40"
Children & Learning,CHIL,Looked After Children & Provision,CHF32,"Children in Care Team 1					",AC0011,Social Services,IFA Over 18,24/05/2022,3509459,Revenue - General Fund,Blue Sky Fostering Limited,16789,"1,837.68"
Children & Learning,CHIL,Looked After Children & Provision,CHF32,"Children in Care Team 1					",AC0011,Social Services,IFA Over 18,13/06/2022,3514886,Revenue - General Fund,Compass Fostering South Ltd,20126,"1,791.49"
Children & Learning,CHIL,Looked After Children & Provision,CHF32,"Children in Care Team 1					",AC0011,Social Services,IFA Over 18,13/05/2022,3507525,Revenue - General Fund,Compass Fostering South Ltd,20126,"1,733.70"
Children & Learning,CHIL,Looked After Children & Provision,CHF32,"Children in Care Team 1					",AC0011,Social Services,IFA Over 18,26/05/2022,3510986,Revenue - General Fund,Fairways Community Benefit Society (FCBS),14816,"2,929.50"
Children & Learning,CHIL,Looked After Children & Provision,CHF32,"Children in Care Team 1					",AC0011,Social Services,IFA Over 18,18/05/2022,3508650,Revenue - General Fund,Familyplacement.com Ltd,15026,"1,920.00"
Children & Learning,CHIL,Looked After Children & Provision,CHF32,"Children in Care Team 1					",AC0011,Social Services,IFA Over 18,14/06/2022,3514813,Revenue - General Fund,Familyplacement.com Ltd,15026,"2,240.00"
Children & Learning,CHIL,Looked After Children & Provision,CHF32,"Children in Care Team 1					",AC0011,Social Services,IFA Over 18,12/05/2022,3506075,Revenue - General Fund,Sunbeam Fostering Agency Limited,19694,"2,142.86"
Children & Learning,CHIL,Looked After Children & Provision,CHF32,"Children in Care Team 1					",AC0011,Social Services,MARP U16,19/04/2022,3419700,Revenue - General Fund,Fairways Community Benefit Society (FCBS),14816,"2,646.00"
Children & Learning,CHIL,Looked After Children & Provision,CHF32,"Children in Care Team 1					",AC0011,Social Services,MARP U16,13/04/2022,3428296,Revenue - General Fund,Fairways Community Benefit Society (FCBS),14816,"2,835.00"
Children & Learning,CHIL,Looked After Children & Provision,CHF32,"Children in Care Team 1					",AC0011,Miscellaneous and Initiative Expenses,Other Client Expenses,15/06/2022,3431878,Revenue - General Fund,BOSTICO INTERNATIONAL LTD,26806,853.09
Children & Learning,CHIL,Looked After Children & Provision,CHF32,"Children in Care Team 1					",AC0011,Miscellaneous and Initiative Expenses,Other Client Expenses,23/06/2022,3517542,Revenue - General Fund,University of Brighton,14734,"1,472.71"
Children & Learning,CHIL,Looked After Children & Provision,CHF32,"Children in Care Team 1					",AC0011,Miscellaneous and Initiative Expenses,Other Expenses,26/05/2022,3510483,Revenue - General Fund,Above Bar Church,33565,650.00
Children & Learning,CHIL,Looked After Children & Provision,CHF32,"Children in Care Team 1					",AC0011,Social Services,Residential Employment,16/06/2022,3515474,Revenue - General Fund,SUPPLIER NAME REDACTED,46248,"2,757.90"
Children & Learning,CHIL,Looked After Children & Provision,CHF32,"Children in Care Team 1					",AC0011,Social Services,Residential Employment,11/05/2022,3507213,Revenue - General Fund,Budwood Ltd,28040,"13,482.90"
Children & Learning,CHIL,Looked After Children & Provision,CHF32,"Children in Care Team 1					",AC0011,Social Services,Residential Employment,24/05/2022,3508960,Revenue - General Fund,Budwood Ltd,28040,"11,556.00"
Children & Learning,CHIL,Looked After Children & Provision,CHF32,"Children in Care Team 1					",AC0011,Social Services,Residential Employment,25/05/2022,3435334,Revenue - General Fund,Budwood Ltd,28040,"13,268.00"
Children & Learning,CHIL,Looked After Children & Provision,CHF32,"Children in Care Team 1					",AC0011,Social Services,Residential Employment,25/05/2022,3510770,Revenue - General Fund,Downing College,46680,794.04
Children & Learning,CHIL,Looked After Children & Provision,CHF32,"Children in Care Team 1					",AC0011,Social Services,Residential Employment,27/05/2022,3511591,Revenue - General Fund,Growing Independent Support,45217,"7,428.57"
Children & Learning,CHIL,Looked After Children & Provision,CHF32,"Children in Care Team 1					",AC0011,Social Services,Residential Employment,05/05/2022,3433846,Revenue - General Fund,Libre Living Ltd,37928,"17,485.71"
Children & Learning,CHIL,Looked After Children & Provision,CHF32,"Children in Care Team 1					",AC0011,Social Services,Residential Employment,20/05/2022,3505470,Revenue - General Fund,Springcroft Homes Ltd,45219,"9,428.56"
Children & Learning,CHIL,Looked After Children & Provision,CHF32,"Children in Care Team 1					",AC0011,Social Services,Residential Employment,20/05/2022,3506071,Revenue - General Fund,The Beehive Enterprise Ltd,32746,"2,142.60"
Children & Learning,CHIL,Looked After Children & Provision,CHF32,"Children in Care Team 1					",AC0011,Social Services,Residential Employment,25/05/2022,3506646,Revenue - General Fund,The Beehive Enterprise Ltd,32746,"2,214.02"
Children & Learning,CHIL,Looked After Children & Provision,CHF32,"Children in Care Team 1					",AC0011,Social Services,Residential Employment,20/05/2022,3506647,Revenue - General Fund,The Beehive Enterprise Ltd,32746,"2,214.02"
Children & Learning,CHIL,Looked After Children & Provision,CHF32,"Children in Care Team 1					",AC0011,Social Services,Residential Employment,19/05/2022,3506681,Revenue - General Fund,The Beehive Enterprise Ltd,32746,"1,356.98"
Children & Learning,CHIL,Looked After Children & Provision,CHF32,"Children in Care Team 1					",AC0011,Services,Temporary Accomodation,14/06/2022,3514563,Revenue - General Fund,Jurys Inn Southampton,26333,500.46
Children & Learning,CHIL,Looked After Children & Provision,CHF32,"Children in Care Team 1					",AC0011,Services,Temporary Accomodation,26/05/2022,3507196,Revenue - General Fund,Southampton Short Breaks Ltd,46032,500.00
Children & Learning,CHIL,Looked After Children & Provision,CHF32,"Children in Care Team 2			",AC0012,Social Services,IFA Over 18,16/05/2022,3507524,Revenue - General Fund,Compass Fostering South Ltd,20126,"1,733.70"
Children & Learning,CHIL,Looked After Children & Provision,CHF32,"Children in Care Team 2			",AC0012,Social Services,IFA Over 18,13/06/2022,3514885,Revenue - General Fund,Compass Fostering South Ltd,20126,"1,791.49"
Children & Learning,CHIL,Looked After Children & Provision,CHF32,"Children in Care Team 2			",AC0012,Social Services,IFA Over 18,07/06/2022,3502621,Revenue - General Fund,Fostering Solutions Ltd,14739,"1,650.00"
Children & Learning,CHIL,Looked After Children & Provision,CHF32,"Children in Care Team 2			",AC0012,Social Services,IFA Over 18,15/06/2022,3510722,Revenue - General Fund,Fostering Solutions Ltd,14739,"1,705.00"
Children & Learning,CHIL,Looked After Children & Provision,CHF32,"Children in Care Team 2			",AC0012,Social Services,IFA Over 18,25/05/2022,3510710,Revenue - General Fund,Fostering Solutions Ltd,14739,"1,705.00"
Children & Learning,CHIL,Looked After Children & Provision,CHF32,"Children in Care Team 2			",AC0012,Social Services,IFA Over 18,16/06/2022,3502628,Revenue - General Fund,Fostering Solutions Ltd,14739,"1,650.00"
Children & Learning,CHIL,Looked After Children & Provision,CHF32,"Children in Care Team 2			",AC0012,Social Services,IFA Over 18,08/06/2022,3513260,Revenue - General Fund,Sunbeam Fostering Agency Limited,19694,"1,928.57"
Children & Learning,CHIL,Looked After Children & Provision,CHF32,"Children in Care Team 2			",AC0012,Miscellaneous and Initiative Expenses,Other Client Expenses,30/06/2022,3511666,Revenue - General Fund,AG Family Support Ltd,17523,926.94
Children & Learning,CHIL,Looked After Children & Provision,CHF32,"Children in Care Team 2			",AC0012,Miscellaneous and Initiative Expenses,Other Client Expenses,22/06/2022,3512346,Revenue - General Fund,Aspire Social Work Services Ltd,19388,"2,097.70"
Children & Learning,CHIL,Looked After Children & Provision,CHF32,"Children in Care Team 2			",AC0012,Social Services,Residential Employment,13/06/2022,3514817,Revenue - General Fund,Growing Independent Support,45217,"17,315.71"
Children & Learning,CHIL,Looked After Children & Provision,CHF32,"Children in Care Team 2			",AC0012,Social Services,Residential Employment,16/05/2022,3508580,Revenue - General Fund,Growing Independent Support,45217,"16,757.10"
Children & Learning,CHIL,Looked After Children & Provision,CHF32,"Children in Care Team 2			",AC0012,Social Services,Residential Employment,10/06/2022,3514549,Revenue - General Fund,The Beehive Enterprise Ltd,32746,"3,394.20"
Children & Learning,CHIL,Looked After Children & Provision,CHF32,"Children in Care Team 2			",AC0012,Social Services,Residential Employment,14/06/2022,3506678,Revenue - General Fund,The Beehive Enterprise Ltd,32746,"4,085.67"
Children & Learning,CHIL,Looked After Children & Provision,CHF32,"Children in Care Team 2			",AC0012,Social Services,Residential Employment,24/05/2022,3434548,Revenue - General Fund,The Beehive Enterprise Ltd,32746,"3,937.10"
Children & Learning,CHIL,Looked After Children & Provision,CHF32,"Children in Care Team 2			",AC0012,Social Services,Residential Employment,24/05/2022,3509569,Revenue - General Fund,The Beehive Enterprise Ltd,32746,"4,114.20"
Children & Learning,CHIL,Looked After Children & Provision,CHF32,"Children in Care Team 2			",AC0012,Social Services,Residential Employment,07/06/2022,3509570,Revenue - General Fund,The Beehive Enterprise Ltd,32746,"4,251.34"
Children & Learning,CHIL,Looked After Children & Provision,CHF32,"Children in Care Team 2			",AC0012,Social Services,Residential Employment,24/05/2022,3509571,Revenue - General Fund,The Beehive Enterprise Ltd,32746,"2,194.24"
Children & Learning,CHIL,Looked After Children & Provision,CHF32,"Children in Care Team 2			",AC0012,Social Services,Residential Employment,16/05/2022,3508652,Revenue - General Fund,Western Pathways,32959,"4,800.00"
Children & Learning,CHIL,Looked After Children & Provision,CHF32,"Children in Care Team 2			",AC0012,Services,Temporary Accomodation,08/06/2022,3512930,Revenue - General Fund,Jurys Inn Southampton,26333,708.75
Children & Learning,CHIL,Looked After Children & Provision,CHF32,"Children in Care Team 2			",AC0012,Services,Temporary Accomodation,27/05/2022,3510685,Revenue - General Fund,Jurys Inn Southampton,26333,647.50
Children & Learning,CHIL,Looked After Children & Provision,CHF32,"Children in Care Team 2			",AC0012,Services,Temporary Accomodation,30/06/2022,3520573,Revenue - General Fund,Jurys Inn Southampton,26333,771.05
Children & Learning,CHIL,Looked After Children & Provision,CHF32,"Children in Care Team 2			",AC0012,Services,Temporary Accomodation,24/06/2022,3516721,Revenue - General Fund,Jurys Inn Southampton,26333,"1,302.68"
Children & Learning,CHIL,Looked After Children & Provision,CHF32,"Children in Care Team 2			",AC0012,Services,Temporary Accomodation,19/05/2022,3509614,Revenue - General Fund,Jurys Inn Southampton,26333,532.34
Children & Learning,CHIL,Looked After Children & Provision,CHF32,UASC over 18,AC0013,Social Services,IFA Over 18,13/06/2022,3514518,Revenue - General Fund,Sunbeam Fostering Agency Limited,19694,"2,214.29"
Children & Learning,CHIL,Looked After Children & Provision,CHF32,UASC over 18,AC0013,Social Services,Residential Employment,10/06/2022,3514547,Revenue - General Fund,The Beehive Enterprise Ltd,32746,"2,142.60"
Children & Learning,CHIL,Looked After Children & Provision,CHF32,Adoption Team and Costs,AC0080,Services,Adoptions,30/06/2022,3520637,Revenue - General Fund,Hampshire County Council,19193,"382,304.50"
Children & Learning,CHIL,Looked After Children & Provision,CHF32,Adoption Team and Costs,AC0080,Services,Consultancy - Professional Expertise & Advice,26/05/2022,3509413,Revenue - General Fund,BP Consultancy Ltd,16987,"1,068.75"
Children & Learning,CHIL,Looked After Children & Provision,CHF32,Adoption Team and Costs,AC0080,Services,Consultancy - Professional Expertise & Advice,26/04/2022,3435639,Revenue - General Fund,BP Consultancy Ltd,16987,871.87
Children & Learning,CHIL,Looked After Children & Provision,CHF32,Adoption Team and Costs,AC0080,Social Services,Post Adoption Costs,12/05/2022,3505801,Revenue - General Fund,Beacon House Psychological Services Ltd,16652,768.00
Children & Learning,CHIL,Looked After Children & Provision,CHF32,Adoption Team and Costs,AC0080,Social Services,Post Adoption Costs,05/04/2022,3431058,Revenue - General Fund,Dr Sarah Hardy (PSCY),27503,"1,026.58"
Children & Learning,CHIL,Looked After Children & Provision,CHF32,Adoption Team and Costs,AC0080,Social Services,Post Adoption Costs,06/06/2022,3511608,Revenue - General Fund,Hampshire County Council (Main),18625,"9,230.19"
Children & Learning,CHIL,Looked After Children & Provision,CHF32,Adoption Team and Costs,AC0080,Social Services,Post Adoption Costs,27/04/2022,3502592,Revenue - General Fund,MindSenseAbility,20007,810.00
Children & Learning,CHIL,Looked After Children & Provision,CHF32,Adoption Team and Costs,AC0080,Services,Therapy,27/04/2022,3434266,Revenue - General Fund,Family Ties Contact Services Ltd,46997,"1,156.50"
Children & Learning,CHIL,Looked After Children & Provision,CHF32,Adoption Team and Costs,AC0080,Services,Therapy,27/04/2022,3435683,Revenue - General Fund,Family Ties Contact Services Ltd,46997,588.00
Children & Learning,CHIL,Looked After Children & Provision,CHF32,Adoption Team and Costs,AC0080,Services,Therapy,05/04/2022,3431776,Revenue - General Fund,Therapy Space Bristol Limited,46107,680.00
Children & Learning,CHIL,Looked After Children & Provision,CHF32,Looked After Children Team,AC0150,Agency Staff,External Agency Staff,08/06/2022,3502713,Revenue - General Fund,NonStop Consulting,15950,"1,872.20"
Children & Learning,CHIL,Looked After Children & Provision,CHF32,Looked After Children Team,AC0150,Agency Staff,External Agency Staff,08/06/2022,3504368,Revenue - General Fund,NonStop Consulting,15950,"1,872.20"
Children & Learning,CHIL,Looked After Children & Provision,CHF32,Looked After Children Team,AC0150,Agency Staff,External Agency Staff,08/06/2022,3509902,Revenue - General Fund,NonStop Consulting,15950,"1,872.20"
Children & Learning,CHIL,Looked After Children & Provision,CHF32,Looked After Children Team,AC0150,Agency Staff,External Agency Staff,10/05/2022,3427158,Revenue - General Fund,NonStop Consulting,15950,"1,939.25"
Children & Learning,CHIL,Looked After Children & Provision,CHF32,Looked After Children Team,AC0150,Agency Staff,External Agency Staff,08/06/2022,3504367,Revenue - General Fund,NonStop Consulting,15950,"1,872.20"
Children & Learning,CHIL,Looked After Children & Provision,CHF32,Looked After Children Team,AC0150,Agency Staff,External Agency Staff,08/06/2022,3504369,Revenue - General Fund,NonStop Consulting,15950,"1,872.20"
Children & Learning,CHIL,Looked After Children & Provision,CHF32,Looked After Children Team,AC0150,Agency Staff,External Agency Staff,10/05/2022,3423767,Revenue - General Fund,NonStop Consulting,15950,"1,872.20"
Children & Learning,CHIL,Looked After Children & Provision,CHF32,Looked After Children Team,AC0150,Agency Staff,External Agency Staff,10/05/2022,3431199,Revenue - General Fund,NonStop Consulting,15950,"1,872.20"
Children & Learning,CHIL,Looked After Children & Provision,CHF32,Looked After Children Team,AC0150,Agency Staff,External Agency Staff,10/05/2022,3434514,Revenue - General Fund,NonStop Consulting,15950,"1,872.20"
Children & Learning,CHIL,Looked After Children & Provision,CHF32,Looked After Children Team,AC0150,Agency Staff,External Agency Staff,10/05/2022,3434515,Revenue - General Fund,NonStop Consulting,15950,"1,872.20"
Children & Learning,CHIL,Looked After Children & Provision,CHF32,Looked After Children Team,AC0150,Agency Staff,External Agency Staff,08/06/2022,3505603,Revenue - General Fund,NonStop Consulting,15950,"1,872.20"
Children & Learning,CHIL,Looked After Children & Provision,CHF32,Looked After Children Team,AC0150,Agency Staff,External Agency Staff,10/05/2022,3425274,Revenue - General Fund,NonStop Consulting,15950,"1,872.20"
Children & Learning,CHIL,Looked After Children & Provision,CHF32,Looked After Children Team,AC0150,Agency Staff,External Agency Staff,10/05/2022,3429388,Revenue - General Fund,NonStop Consulting,15950,"1,872.20"
Children & Learning,CHIL,Looked After Children & Provision,CHF32,Looked After Children Team,AC0150,Agency Staff,External Agency Staff,10/05/2022,3434516,Revenue - General Fund,NonStop Consulting,15950,"1,872.20"
Children & Learning,CHIL,Looked After Children & Provision,CHF32,Looked After Children Team,AC0150,Agency Staff,External Agency Staff,10/05/2022,3435305,Revenue - General Fund,NonStop Consulting,15950,"1,872.20"
Children & Learning,CHIL,Looked After Children & Provision,CHF32,Looked After Children Team,AC0150,Agency Staff,External Agency Staff,08/06/2022,3508356,Revenue - General Fund,NonStop Consulting,15950,"1,872.20"
Children & Learning,CHIL,Looked After Children & Provision,CHF32,Looked After Children Team,AC0150,Agency Staff,External Agency Staff,08/06/2022,3508357,Revenue - General Fund,NonStop Consulting,15950,"1,872.20"
Children & Learning,CHIL,Looked After Children & Provision,CHF32,Looked After Children Team,AC0150,Agency Staff,External Agency Staff,08/06/2022,3509900,Revenue - General Fund,NonStop Consulting,15950,"1,872.20"
Children & Learning,CHIL,Looked After Children & Provision,CHF32,Looked After Children Team,AC0150,Agency Staff,External Agency Staff,08/06/2022,3509901,Revenue - General Fund,NonStop Consulting,15950,"1,872.20"
Children & Learning,CHIL,Looked After Children & Provision,CHF32,Looked After Children Team,AC0150,Agency Staff,External Agency Staff,10/05/2022,3428037,Revenue - General Fund,NonStop Consulting,15950,"1,872.20"
Children & Learning,CHIL,Looked After Children & Provision,CHF32,Looked After Children Team,AC0150,Agency Staff,External Agency Staff,10/05/2022,3430373,Revenue - General Fund,NonStop Consulting,15950,"1,909.55"
Children & Learning,CHIL,Looked After Children & Provision,CHF32,Looked After Children Team,AC0150,Agency Staff,External Agency Staff,10/05/2022,3436164,Revenue - General Fund,NonStop Consulting,15950,"1,872.20"
Children & Learning,CHIL,Looked After Children & Provision,CHF32,Looked After Children Team,AC0150,Contract Hire and Operating Leases,Hire of Transport & Plant,23/05/2022,3505909,Revenue - General Fund,Aqua Cars Ltd,14084,"1,224.00"
Children & Learning,CHIL,Looked After Children & Provision,CHF32,Looked After Children Team,AC0150,Contract Hire and Operating Leases,Hire of Transport & Plant,20/04/2022,3434923,Revenue - General Fund,Cab My Ride,26254,"12,070.00"
Children & Learning,CHIL,Looked After Children & Provision,CHF32,Looked After Children Team,AC0150,Contract Hire and Operating Leases,Hire of Transport & Plant,24/05/2022,3507592,Revenue - General Fund,Cab My Ride,26254,990.00
Children & Learning,CHIL,Looked After Children & Provision,CHF32,Looked After Children Team,AC0150,Contract Hire and Operating Leases,Hire of Transport & Plant,05/04/2022,3426056,Revenue - General Fund,Cab My Ride,26254,"1,440.00"
Children & Learning,CHIL,Looked After Children & Provision,CHF32,Looked After Children Team,AC0150,Contract Hire and Operating Leases,Hire of Transport & Plant,24/05/2022,3507593,Revenue - General Fund,Cab My Ride,26254,"1,665.00"
Children & Learning,CHIL,Looked After Children & Provision,CHF32,Looked After Children Team,AC0150,Contract Hire and Operating Leases,Hire of Transport & Plant,24/06/2022,3516783,Revenue - General Fund,Cab My Ride,26254,"7,920.00"
Children & Learning,CHIL,Looked After Children & Provision,CHF32,Looked After Children Team,AC0150,Contract Hire and Operating Leases,Hire of Transport & Plant,25/04/2022,3434734,Revenue - General Fund,Cab My Ride,26254,"2,830.00"
Children & Learning,CHIL,Looked After Children & Provision,CHF32,Looked After Children Team,AC0150,Contract Hire and Operating Leases,Hire of Transport & Plant,05/04/2022,3426057,Revenue - General Fund,Cab My Ride,26254,840.00
Children & Learning,CHIL,Looked After Children & Provision,CHF32,Looked After Children Team,AC0150,Contract Hire and Operating Leases,Hire of Transport & Plant,20/04/2022,3435573,Revenue - General Fund,Cab My Ride,26254,640.00
Children & Learning,CHIL,Looked After Children & Provision,CHF32,Looked After Children Team,AC0150,Contract Hire and Operating Leases,Hire of Transport & Plant,24/05/2022,3507590,Revenue - General Fund,Cab My Ride,26254,"1,600.00"
Children & Learning,CHIL,Looked After Children & Provision,CHF32,Looked After Children Team,AC0150,Contract Hire and Operating Leases,Hire of Transport & Plant,18/05/2022,3507587,Revenue - General Fund,Cab My Ride,26254,"3,640.00"
Children & Learning,CHIL,Looked After Children & Provision,CHF32,Looked After Children Team,AC0150,Contract Hire and Operating Leases,Hire of Transport & Plant,20/04/2022,3434733,Revenue - General Fund,Cab My Ride,26254,"6,105.00"
Children & Learning,CHIL,Looked After Children & Provision,CHF32,Looked After Children Team,AC0150,Contract Hire and Operating Leases,Hire of Transport & Plant,24/05/2022,3507591,Revenue - General Fund,Cab My Ride,26254,"2,100.00"
Children & Learning,CHIL,Looked After Children & Provision,CHF32,Looked After Children Team,AC0150,Contract Hire and Operating Leases,Hire of Transport & Plant,04/05/2022,3436043,Revenue - General Fund,R and N Hire,28097,"2,164.00"
Children & Learning,CHIL,Looked After Children & Provision,CHF32,Looked After Children Team,AC0150,Contract Hire and Operating Leases,Hire of Transport & Plant,04/05/2022,3436045,Revenue - General Fund,R and N Hire,28097,"1,512.00"
Children & Learning,CHIL,Looked After Children & Provision,CHF32,Looked After Children Team,AC0150,Contract Hire and Operating Leases,Hire of Transport & Plant,04/05/2022,3436051,Revenue - General Fund,R and N Hire,28097,"2,640.00"
Children & Learning,CHIL,Looked After Children & Provision,CHF32,Looked After Children Team,AC0150,Contract Hire and Operating Leases,Hire of Transport & Plant,04/05/2022,3436305,Revenue - General Fund,R and N Hire,28097,"1,487.75"
Children & Learning,CHIL,Looked After Children & Provision,CHF32,Looked After Children Team,AC0150,Contract Hire and Operating Leases,Hire of Transport & Plant,04/05/2022,3436307,Revenue - General Fund,R and N Hire,28097,"1,008.00"
Children & Learning,CHIL,Looked After Children & Provision,CHF32,Looked After Children Team,AC0150,Contract Hire and Operating Leases,Hire of Transport & Plant,04/05/2022,3436308,Revenue - General Fund,R and N Hire,28097,519.00
Children & Learning,CHIL,Looked After Children & Provision,CHF32,Looked After Children Team,AC0150,Contract Hire and Operating Leases,Hire of Transport & Plant,08/06/2022,3509060,Revenue - General Fund,R and N Hire,28097,"1,391.50"
Children & Learning,CHIL,Looked After Children & Provision,CHF32,Looked After Children Team,AC0150,Contract Hire and Operating Leases,Hire of Transport & Plant,10/05/2022,3425472,Revenue - General Fund,R and N Hire,28097,"1,861.50"
Children & Learning,CHIL,Looked After Children & Provision,CHF32,Looked After Children Team,AC0150,Contract Hire and Operating Leases,Hire of Transport & Plant,10/05/2022,3425475,Revenue - General Fund,R and N Hire,28097,601.25
Children & Learning,CHIL,Looked After Children & Provision,CHF32,Looked After Children Team,AC0150,Contract Hire and Operating Leases,Hire of Transport & Plant,10/05/2022,3427857,Revenue - General Fund,R and N Hire,28097,"1,336.25"
Children & Learning,CHIL,Looked After Children & Provision,CHF32,Looked After Children Team,AC0150,Contract Hire and Operating Leases,Hire of Transport & Plant,24/05/2022,3508603,Revenue - General Fund,R and N Hire,28097,"4,278.00"
Children & Learning,CHIL,Looked After Children & Provision,CHF32,Looked After Children Team,AC0150,Contract Hire and Operating Leases,Hire of Transport & Plant,24/05/2022,3508604,Revenue - General Fund,R and N Hire,28097,"3,570.00"
Children & Learning,CHIL,Looked After Children & Provision,CHF32,Looked After Children Team,AC0150,Contract Hire and Operating Leases,Hire of Transport & Plant,24/05/2022,3509062,Revenue - General Fund,R and N Hire,28097,"1,160.50"
Children & Learning,CHIL,Looked After Children & Provision,CHF32,Looked After Children Team,AC0150,Contract Hire and Operating Leases,Hire of Transport & Plant,04/05/2022,3436046,Revenue - General Fund,R and N Hire,28097,847.50
Children & Learning,CHIL,Looked After Children & Provision,CHF32,Looked After Children Team,AC0150,Contract Hire and Operating Leases,Hire of Transport & Plant,04/05/2022,3436049,Revenue - General Fund,R and N Hire,28097,"2,004.50"
Children & Learning,CHIL,Looked After Children & Provision,CHF32,Looked After Children Team,AC0150,Contract Hire and Operating Leases,Hire of Transport & Plant,04/05/2022,3436312,Revenue - General Fund,R and N Hire,28097,"2,310.00"
Children & Learning,CHIL,Looked After Children & Provision,CHF32,Looked After Children Team,AC0150,Contract Hire and Operating Leases,Hire of Transport & Plant,04/05/2022,3436314,Revenue - General Fund,R and N Hire,28097,"1,360.00"
Children & Learning,CHIL,Looked After Children & Provision,CHF32,Looked After Children Team,AC0150,Contract Hire and Operating Leases,Hire of Transport & Plant,24/05/2022,3508598,Revenue - General Fund,R and N Hire,28097,"1,656.00"
Children & Learning,CHIL,Looked After Children & Provision,CHF32,Looked After Children Team,AC0150,Contract Hire and Operating Leases,Hire of Transport & Plant,24/05/2022,3508601,Revenue - General Fund,R and N Hire,28097,"2,426.50"
Children & Learning,CHIL,Looked After Children & Provision,CHF32,Looked After Children Team,AC0150,Contract Hire and Operating Leases,Hire of Transport & Plant,24/05/2022,3508602,Revenue - General Fund,R and N Hire,28097,"3,875.00"
Children & Learning,CHIL,Looked After Children & Provision,CHF32,Looked After Children Team,AC0150,Contract Hire and Operating Leases,Hire of Transport & Plant,24/05/2022,3509059,Revenue - General Fund,R and N Hire,28097,"1,082.00"
Children & Learning,CHIL,Looked After Children & Provision,CHF32,Looked After Children Team,AC0150,Contract Hire and Operating Leases,Hire of Transport & Plant,24/05/2022,3509065,Revenue - General Fund,R and N Hire,28097,510.00
Children & Learning,CHIL,Looked After Children & Provision,CHF32,Looked After Children Team,AC0150,Contract Hire and Operating Leases,Hire of Transport & Plant,04/05/2022,3436306,Revenue - General Fund,R and N Hire,28097,"1,644.50"
Children & Learning,CHIL,Looked After Children & Provision,CHF32,Looked After Children Team,AC0150,Contract Hire and Operating Leases,Hire of Transport & Plant,04/05/2022,3436313,Revenue - General Fund,R and N Hire,28097,"1,488.00"
Children & Learning,CHIL,Looked After Children & Provision,CHF32,Looked After Children Team,AC0150,Contract Hire and Operating Leases,Hire of Transport & Plant,10/05/2022,3425479,Revenue - General Fund,R and N Hire,28097,"1,415.50"
Children & Learning,CHIL,Looked After Children & Provision,CHF32,Looked After Children Team,AC0150,Contract Hire and Operating Leases,Hire of Transport & Plant,10/05/2022,3427856,Revenue - General Fund,R and N Hire,28097,"1,110.00"
Children & Learning,CHIL,Looked After Children & Provision,CHF32,Looked After Children Team,AC0150,Contract Hire and Operating Leases,Hire of Transport & Plant,10/05/2022,3427858,Revenue - General Fund,R and N Hire,28097,948.75
Children & Learning,CHIL,Looked After Children & Provision,CHF32,Looked After Children Team,AC0150,Contract Hire and Operating Leases,Hire of Transport & Plant,10/05/2022,3427860,Revenue - General Fund,R and N Hire,28097,968.50
Children & Learning,CHIL,Looked After Children & Provision,CHF32,Looked After Children Team,AC0150,Contract Hire and Operating Leases,Hire of Transport & Plant,04/05/2022,3436044,Revenue - General Fund,R and N Hire,28097,"2,340.25"
Children & Learning,CHIL,Looked After Children & Provision,CHF32,Looked After Children Team,AC0150,Contract Hire and Operating Leases,Hire of Transport & Plant,04/05/2022,3436050,Revenue - General Fund,R and N Hire,28097,513.00
Children & Learning,CHIL,Looked After Children & Provision,CHF32,Looked After Children Team,AC0150,Contract Hire and Operating Leases,Hire of Transport & Plant,04/05/2022,3436311,Revenue - General Fund,R and N Hire,28097,"1,371.50"
Children & Learning,CHIL,Looked After Children & Provision,CHF32,Looked After Children Team,AC0150,Contract Hire and Operating Leases,Hire of Transport & Plant,10/05/2022,3425473,Revenue - General Fund,R and N Hire,28097,"1,440.00"
Children & Learning,CHIL,Looked After Children & Provision,CHF32,Looked After Children Team,AC0150,Contract Hire and Operating Leases,Hire of Transport & Plant,10/05/2022,3427859,Revenue - General Fund,R and N Hire,28097,"1,008.50"
Children & Learning,CHIL,Looked After Children & Provision,CHF32,Looked After Children Team,AC0150,Contract Hire and Operating Leases,Hire of Transport & Plant,24/05/2022,3508600,Revenue - General Fund,R and N Hire,28097,650.00
Children & Learning,CHIL,Looked After Children & Provision,CHF32,Looked After Children Team,AC0150,Contract Hire and Operating Leases,Hire of Transport & Plant,24/05/2022,3509063,Revenue - General Fund,R and N Hire,28097,"1,815.00"
Children & Learning,CHIL,Looked After Children & Provision,CHF32,Looked After Children Team,AC0150,Contract Hire and Operating Leases,Hire of Transport & Plant,24/05/2022,3509064,Revenue - General Fund,R and N Hire,28097,"2,046.00"
Children & Learning,CHIL,Looked After Children & Provision,CHF32,Looked After Children Team,AC0150,Contract Hire and Operating Leases,Hire of Transport & Plant,24/05/2022,3509067,Revenue - General Fund,R and N Hire,28097,792.00
Children & Learning,CHIL,Looked After Children & Provision,CHF32,Looked After Children Team,AC0150,Contract Hire and Operating Leases,Hire of Transport & Plant,04/05/2022,3432428,Revenue - General Fund,Radio Taxis (Southampton) Ltd,20584,"1,932.70"
Children & Learning,CHIL,Looked After Children & Provision,CHF32,Looked After Children Team,AC0150,Contract Hire and Operating Leases,Hire of Transport & Plant,08/06/2022,3505053,Revenue - General Fund,Radio Taxis (Southampton) Ltd,20584,830.50
Children & Learning,CHIL,Looked After Children & Provision,CHF32,Looked After Children Team,AC0150,Contract Hire and Operating Leases,Hire of Transport & Plant,20/04/2022,3432385,Revenue - General Fund,Radio Taxis (Southampton) Ltd,20584,891.00
Children & Learning,CHIL,Looked After Children & Provision,CHF32,Looked After Children Team,AC0150,Contract Hire and Operating Leases,Hire of Transport & Plant,24/06/2022,3514099,Revenue - General Fund,Radio Taxis (Southampton) Ltd,20584,"1,012.00"
Children & Learning,CHIL,Looked After Children & Provision,CHF32,Looked After Children Team,AC0150,Contract Hire and Operating Leases,Hire of Transport & Plant,24/06/2022,3514115,Revenue - General Fund,Radio Taxis (Southampton) Ltd,20584,"2,381.50"
Children & Learning,CHIL,Looked After Children & Provision,CHF32,Looked After Children Team,AC0150,Contract Hire and Operating Leases,Hire of Transport & Plant,24/06/2022,3514140,Revenue - General Fund,Radio Taxis (Southampton) Ltd,20584,699.60
Children & Learning,CHIL,Looked After Children & Provision,CHF32,Looked After Children Team,AC0150,Contract Hire and Operating Leases,Hire of Transport & Plant,24/06/2022,3514161,Revenue - General Fund,Radio Taxis (Southampton) Ltd,20584,712.80
Children & Learning,CHIL,Looked After Children & Provision,CHF32,Looked After Children Team,AC0150,Contract Hire and Operating Leases,Hire of Transport & Plant,04/05/2022,3432430,Revenue - General Fund,Radio Taxis (Southampton) Ltd,20584,665.50
Children & Learning,CHIL,Looked After Children & Provision,CHF32,Looked After Children Team,AC0150,Contract Hire and Operating Leases,Hire of Transport & Plant,08/06/2022,3504993,Revenue - General Fund,Radio Taxis (Southampton) Ltd,20584,558.80
Children & Learning,CHIL,Looked After Children & Provision,CHF32,Looked After Children Team,AC0150,Contract Hire and Operating Leases,Hire of Transport & Plant,12/04/2022,3432401,Revenue - General Fund,Radio Taxis (Southampton) Ltd,20584,"3,191.10"
Children & Learning,CHIL,Looked After Children & Provision,CHF32,Looked After Children Team,AC0150,Contract Hire and Operating Leases,Hire of Transport & Plant,19/04/2022,3432441,Revenue - General Fund,Radio Taxis (Southampton) Ltd,20584,512.00
Children & Learning,CHIL,Looked After Children & Provision,CHF32,Looked After Children Team,AC0150,Contract Hire and Operating Leases,Hire of Transport & Plant,20/04/2022,3432431,Revenue - General Fund,Radio Taxis (Southampton) Ltd,20584,732.60
Children & Learning,CHIL,Looked After Children & Provision,CHF32,Looked After Children Team,AC0150,Contract Hire and Operating Leases,Hire of Transport & Plant,24/06/2022,3514132,Revenue - General Fund,Radio Taxis (Southampton) Ltd,20584,"2,591.60"
Children & Learning,CHIL,Looked After Children & Provision,CHF32,Looked After Children Team,AC0150,Contract Hire and Operating Leases,Hire of Transport & Plant,24/06/2022,3514166,Revenue - General Fund,Radio Taxis (Southampton) Ltd,20584,935.00
Children & Learning,CHIL,Looked After Children & Provision,CHF32,Looked After Children Team,AC0150,Contract Hire and Operating Leases,Hire of Transport & Plant,24/06/2022,3514172,Revenue - General Fund,Radio Taxis (Southampton) Ltd,20584,"1,270.50"
Children & Learning,CHIL,Looked After Children & Provision,CHF32,Looked After Children Team,AC0150,Contract Hire and Operating Leases,Hire of Transport & Plant,27/04/2022,3432432,Revenue - General Fund,Radio Taxis (Southampton) Ltd,20584,528.00
Children & Learning,CHIL,Looked After Children & Provision,CHF32,Looked After Children Team,AC0150,Contract Hire and Operating Leases,Hire of Transport & Plant,08/06/2022,3504996,Revenue - General Fund,Radio Taxis (Southampton) Ltd,20584,577.50
Children & Learning,CHIL,Looked After Children & Provision,CHF32,Looked After Children Team,AC0150,Contract Hire and Operating Leases,Hire of Transport & Plant,08/06/2022,3505011,Revenue - General Fund,Radio Taxis (Southampton) Ltd,20584,"1,608.20"
Children & Learning,CHIL,Looked After Children & Provision,CHF32,Looked After Children Team,AC0150,Contract Hire and Operating Leases,Hire of Transport & Plant,08/06/2022,3505013,Revenue - General Fund,Radio Taxis (Southampton) Ltd,20584,844.80
Children & Learning,CHIL,Looked After Children & Provision,CHF32,Looked After Children Team,AC0150,Contract Hire and Operating Leases,Hire of Transport & Plant,20/04/2022,3432403,Revenue - General Fund,Radio Taxis (Southampton) Ltd,20584,"2,821.50"
Children & Learning,CHIL,Looked After Children & Provision,CHF32,Looked After Children Team,AC0150,Contract Hire and Operating Leases,Hire of Transport & Plant,20/04/2022,3432404,Revenue - General Fund,Radio Taxis (Southampton) Ltd,20584,610.50
Children & Learning,CHIL,Looked After Children & Provision,CHF32,Looked After Children Team,AC0150,Contract Hire and Operating Leases,Hire of Transport & Plant,24/05/2022,3505057,Revenue - General Fund,Radio Taxis (Southampton) Ltd,20584,715.00
Children & Learning,CHIL,Looked After Children & Provision,CHF32,Looked After Children Team,AC0150,Contract Hire and Operating Leases,Hire of Transport & Plant,24/06/2022,3514134,Revenue - General Fund,Radio Taxis (Southampton) Ltd,20584,792.00
Children & Learning,CHIL,Looked After Children & Provision,CHF32,Looked After Children Team,AC0150,Contract Hire and Operating Leases,Hire of Transport & Plant,24/06/2022,3514167,Revenue - General Fund,Radio Taxis (Southampton) Ltd,20584,"1,589.50"
Children & Learning,CHIL,Looked After Children & Provision,CHF32,Looked After Children Team,AC0150,Contract Hire and Operating Leases,Hire of Transport & Plant,24/06/2022,3514170,Revenue - General Fund,Radio Taxis (Southampton) Ltd,20584,"1,391.50"
Children & Learning,CHIL,Looked After Children & Provision,CHF32,Looked After Children Team,AC0150,Contract Hire and Operating Leases,Hire of Transport & Plant,24/06/2022,3514171,Revenue - General Fund,Radio Taxis (Southampton) Ltd,20584,"2,073.50"
Children & Learning,CHIL,Looked After Children & Provision,CHF32,Looked After Children Team,AC0150,Contract Hire and Operating Leases,Hire of Transport & Plant,27/04/2022,3432410,Revenue - General Fund,Radio Taxis (Southampton) Ltd,20584,"1,960.60"
Children & Learning,CHIL,Looked After Children & Provision,CHF32,Looked After Children Team,AC0150,Contract Hire and Operating Leases,Hire of Transport & Plant,27/04/2022,3432434,Revenue - General Fund,Radio Taxis (Southampton) Ltd,20584,790.90
Children & Learning,CHIL,Looked After Children & Provision,CHF32,Looked After Children Team,AC0150,Contract Hire and Operating Leases,Hire of Transport & Plant,08/06/2022,3505044,Revenue - General Fund,Radio Taxis (Southampton) Ltd,20584,"1,013.10"
Children & Learning,CHIL,Looked After Children & Provision,CHF32,Looked After Children Team,AC0150,Contract Hire and Operating Leases,Hire of Transport & Plant,20/04/2022,3432387,Revenue - General Fund,Radio Taxis (Southampton) Ltd,20584,"1,210.00"
Children & Learning,CHIL,Looked After Children & Provision,CHF32,Looked After Children Team,AC0150,Contract Hire and Operating Leases,Hire of Transport & Plant,24/05/2022,3505049,Revenue - General Fund,Radio Taxis (Southampton) Ltd,20584,"1,500.40"
Children & Learning,CHIL,Looked After Children & Provision,CHF32,Looked After Children Team,AC0150,Contract Hire and Operating Leases,Hire of Transport & Plant,24/06/2022,3514114,Revenue - General Fund,Radio Taxis (Southampton) Ltd,20584,712.80
Children & Learning,CHIL,Looked After Children & Provision,CHF32,Looked After Children Team,AC0150,Contract Hire and Operating Leases,Hire of Transport & Plant,24/06/2022,3514117,Revenue - General Fund,Radio Taxis (Southampton) Ltd,20584,990.00
Children & Learning,CHIL,Looked After Children & Provision,CHF32,Looked After Children Team,AC0150,Contract Hire and Operating Leases,Hire of Transport & Plant,24/06/2022,3514162,Revenue - General Fund,Radio Taxis (Southampton) Ltd,20584,"2,455.20"
Children & Learning,CHIL,Looked After Children & Provision,CHF32,Looked After Children Team,AC0150,Contract Hire and Operating Leases,Hire of Transport & Plant,24/06/2022,3514169,Revenue - General Fund,Radio Taxis (Southampton) Ltd,20584,845.00
Children & Learning,CHIL,Looked After Children & Provision,CHF32,Looked After Children Team,AC0150,Miscellaneous and Initiative Expenses,Other Client Expenses,25/04/2022,3432006,Revenue - General Fund,SUPPLIER NAME REDACTED,17920,"3,483.68"
Children & Learning,CHIL,Looked After Children & Provision,CHF32,Looked After Children Team,AC0150,Miscellaneous and Initiative Expenses,Other Client Expenses,10/05/2022,3432740,Revenue - General Fund,Bournemouth YMCA Child Contact Centre,26807,825.00
Children & Learning,CHIL,Looked After Children & Provision,CHF32,Looked After Children Team,AC0150,Miscellaneous and Initiative Expenses,Other Client Expenses,06/04/2022,3422542,Revenue - General Fund,Chances Give Choices Ltd,14894,780.00
Children & Learning,CHIL,Looked After Children & Provision,CHF32,Looked After Children Team,AC0150,Miscellaneous and Initiative Expenses,Other Client Expenses,05/04/2022,3422552,Revenue - General Fund,Chances Give Choices Ltd,14894,"1,440.00"
Children & Learning,CHIL,Looked After Children & Provision,CHF32,Looked After Children Team,AC0150,Miscellaneous and Initiative Expenses,Other Client Expenses,06/04/2022,3422543,Revenue - General Fund,Chances Give Choices Ltd,14894,"1,300.00"
Children & Learning,CHIL,Looked After Children & Provision,CHF32,Looked After Children Team,AC0150,Miscellaneous and Initiative Expenses,Other Client Expenses,24/05/2022,3502322,Revenue - General Fund,Childrens Contact Services,46492,"2,532.50"
Children & Learning,CHIL,Looked After Children & Provision,CHF32,Looked After Children Team,AC0150,Miscellaneous and Initiative Expenses,Other Client Expenses,24/06/2022,3509746,Revenue - General Fund,Childrens Contact Services,46492,"1,589.40"
Children & Learning,CHIL,Looked After Children & Provision,CHF32,Looked After Children Team,AC0150,Miscellaneous and Initiative Expenses,Other Client Expenses,14/04/2022,3431616,Revenue - General Fund,Freedom IOW Ltd(Freedom Care),31417,622.56
Children & Learning,CHIL,Looked After Children & Provision,CHF32,Looked After Children Team,AC0150,Miscellaneous and Initiative Expenses,Other Client Expenses,20/04/2022,3435930,Revenue - General Fund,Harefield Community Pre School,21876,"-1,543.50"
Children & Learning,CHIL,Looked After Children & Provision,CHF32,Looked After Children Team,AC0150,Miscellaneous and Initiative Expenses,Other Client Expenses,21/04/2022,3434347,Revenue - General Fund,The Rainbow Trees Wales,27717,970.00
Children & Learning,CHIL,Looked After Children & Provision,CHF32,Looked After Children Team,AC0150,Miscellaneous and Initiative Expenses,Other Expenses,05/04/2022,3429839,Revenue - General Fund,AG Family Support Ltd,17523,"1,802.20"
Children & Learning,CHIL,Looked After Children & Provision,CHF32,Looked After Children Team,AC0150,Miscellaneous and Initiative Expenses,Other Expenses,05/04/2022,3429841,Revenue - General Fund,AG Family Support Ltd,17523,"2,425.00"
Children & Learning,CHIL,Looked After Children & Provision,CHF32,Looked After Children Team,AC0150,Miscellaneous and Initiative Expenses,Other Expenses,10/05/2022,3432691,Revenue - General Fund,AG Family Support Ltd,17523,"2,130.40"
Children & Learning,CHIL,Looked After Children & Provision,CHF32,Looked After Children Team,AC0150,Services,Purchased Services,20/04/2022,3432445,Revenue - General Fund,AG Family Support Ltd,17523,"1,394.07"
Children & Learning,CHIL,Looked After Children & Provision,CHF32,Looked After Children Team,AC0150,Services,Purchased Services,04/05/2022,3426948,Revenue - General Fund,Voice of the Child,45797,685.00
Children & Learning,CHIL,Looked After Children & Provision,CHF32,OOC Social Care Residential Placements,AC0170,Contract Hire and Operating Leases,Hire of Transport & Plant,14/04/2022,3425179,Revenue - General Fund,Wrixon Care Services Ltd,19555,952.85
Children & Learning,CHIL,Looked After Children & Provision,CHF32,OOC Social Care Residential Placements,AC0170,Social Services,MARP U16,04/05/2022,3428150,Revenue - General Fund,Acorn Care & Education Ltd (formerly Hillcrest Care Services LTD),33908,"3,764.29"
Children & Learning,CHIL,Looked After Children & Provision,CHF32,OOC Social Care Residential Placements,AC0170,Social Services,MARP U16,21/04/2022,3435271,Revenue - General Fund,Alabare Christian Care and Support,47264,"3,414.22"
Children & Learning,CHIL,Looked After Children & Provision,CHF32,OOC Social Care Residential Placements,AC0170,Social Services,MARP U16,16/05/2022,3507456,Revenue - General Fund,Anderida Adolescent Care Ltd,18352,"26,594.24"
Children & Learning,CHIL,Looked After Children & Provision,CHF32,OOC Social Care Residential Placements,AC0170,Social Services,MARP U16,13/04/2022,3424721,Revenue - General Fund,Anderida Adolescent Care Ltd,18352,"29,657.78"
Children & Learning,CHIL,Looked After Children & Provision,CHF32,OOC Social Care Residential Placements,AC0170,Social Services,MARP U16,16/06/2022,3507321,Revenue - General Fund,Anderida Adolescent Care Ltd,18352,"22,795.06"
Children & Learning,CHIL,Looked After Children & Provision,CHF32,OOC Social Care Residential Placements,AC0170,Social Services,MARP U16,04/05/2022,3502477,Revenue - General Fund,Arc HD Services Ltd,33064,"5,118.43"
Children & Learning,CHIL,Looked After Children & Provision,CHF32,OOC Social Care Residential Placements,AC0170,Social Services,MARP U16,06/05/2022,3502476,Revenue - General Fund,Arc HD Services Ltd,33064,"4,798.05"
Children & Learning,CHIL,Looked After Children & Provision,CHF32,OOC Social Care Residential Placements,AC0170,Social Services,MARP U16,07/06/2022,3512649,Revenue - General Fund,Arc HD Services Ltd,33064,"5,118.43"
Children & Learning,CHIL,Looked After Children & Provision,CHF32,OOC Social Care Residential Placements,AC0170,Social Services,MARP U16,17/05/2022,3506762,Revenue - General Fund,Arc HD Services Ltd,33064,"5,118.43"
Children & Learning,CHIL,Looked After Children & Provision,CHF32,OOC Social Care Residential Placements,AC0170,Social Services,MARP U16,19/05/2022,3505511,Revenue - General Fund,Arc HD Services Ltd,33064,"5,118.43"
Children & Learning,CHIL,Looked After Children & Provision,CHF32,OOC Social Care Residential Placements,AC0170,Social Services,MARP U16,19/05/2022,3508877,Revenue - General Fund,Arc HD Services Ltd,33064,"5,118.43"
Children & Learning,CHIL,Looked After Children & Provision,CHF32,OOC Social Care Residential Placements,AC0170,Social Services,MARP U16,20/06/2022,3516022,Revenue - General Fund,Arc HD Services Ltd,33064,"5,118.43"
Children & Learning,CHIL,Looked After Children & Provision,CHF32,OOC Social Care Residential Placements,AC0170,Social Services,MARP U16,23/05/2022,3435438,Revenue - General Fund,Arc HD Services Ltd,33064,"4,980.38"
Children & Learning,CHIL,Looked After Children & Provision,CHF32,OOC Social Care Residential Placements,AC0170,Social Services,MARP U16,23/05/2022,3502643,Revenue - General Fund,Arc HD Services Ltd,33064,"4,980.38"
Children & Learning,CHIL,Looked After Children & Provision,CHF32,OOC Social Care Residential Placements,AC0170,Social Services,MARP U16,23/05/2022,3502647,Revenue - General Fund,Arc HD Services Ltd,33064,"5,118.43"
Children & Learning,CHIL,Looked After Children & Provision,CHF32,OOC Social Care Residential Placements,AC0170,Social Services,MARP U16,23/05/2022,3506760,Revenue - General Fund,Arc HD Services Ltd,33064,"5,118.43"
Children & Learning,CHIL,Looked After Children & Provision,CHF32,OOC Social Care Residential Placements,AC0170,Social Services,MARP U16,23/05/2022,3508876,Revenue - General Fund,Arc HD Services Ltd,33064,"4,798.05"
Children & Learning,CHIL,Looked After Children & Provision,CHF32,OOC Social Care Residential Placements,AC0170,Social Services,MARP U16,25/05/2022,3510694,Revenue - General Fund,Arc HD Services Ltd,33064,"4,980.38"
Children & Learning,CHIL,Looked After Children & Provision,CHF32,OOC Social Care Residential Placements,AC0170,Social Services,MARP U16,25/05/2022,3510696,Revenue - General Fund,Arc HD Services Ltd,33064,"5,118.43"
Children & Learning,CHIL,Looked After Children & Provision,CHF32,OOC Social Care Residential Placements,AC0170,Social Services,MARP U16,25/05/2022,3510698,Revenue - General Fund,Arc HD Services Ltd,33064,"5,118.43"
Children & Learning,CHIL,Looked After Children & Provision,CHF32,OOC Social Care Residential Placements,AC0170,Social Services,MARP U16,26/05/2022,3435439,Revenue - General Fund,Arc HD Services Ltd,33064,"4,798.05"
Children & Learning,CHIL,Looked After Children & Provision,CHF32,OOC Social Care Residential Placements,AC0170,Social Services,MARP U16,26/05/2022,3502645,Revenue - General Fund,Arc HD Services Ltd,33064,"5,118.43"
Children & Learning,CHIL,Looked After Children & Provision,CHF32,OOC Social Care Residential Placements,AC0170,Social Services,MARP U16,26/05/2022,3506759,Revenue - General Fund,Arc HD Services Ltd,33064,"4,798.05"
Children & Learning,CHIL,Looked After Children & Provision,CHF32,OOC Social Care Residential Placements,AC0170,Social Services,MARP U16,26/05/2022,3508878,Revenue - General Fund,Arc HD Services Ltd,33064,"5,118.43"
Children & Learning,CHIL,Looked After Children & Provision,CHF32,OOC Social Care Residential Placements,AC0170,Social Services,MARP U16,27/04/2022,3432566,Revenue - General Fund,Arc HD Services Ltd,33064,"4,980.38"
Children & Learning,CHIL,Looked After Children & Provision,CHF32,OOC Social Care Residential Placements,AC0170,Social Services,MARP U16,07/06/2022,3512647,Revenue - General Fund,Arc HD Services Ltd,33064,"4,980.38"
Children & Learning,CHIL,Looked After Children & Provision,CHF32,OOC Social Care Residential Placements,AC0170,Social Services,MARP U16,07/06/2022,3512648,Revenue - General Fund,Arc HD Services Ltd,33064,"4,798.05"
Children & Learning,CHIL,Looked After Children & Provision,CHF32,OOC Social Care Residential Placements,AC0170,Social Services,MARP U16,13/04/2022,3432567,Revenue - General Fund,Arc HD Services Ltd,33064,"4,798.05"
Children & Learning,CHIL,Looked After Children & Provision,CHF32,OOC Social Care Residential Placements,AC0170,Social Services,MARP U16,14/06/2022,3514759,Revenue - General Fund,Arc HD Services Ltd,33064,"5,118.43"
Children & Learning,CHIL,Looked After Children & Provision,CHF32,OOC Social Care Residential Placements,AC0170,Social Services,MARP U16,19/05/2022,3436148,Revenue - General Fund,Arc HD Services Ltd,33064,"2,924.82"
Children & Learning,CHIL,Looked After Children & Provision,CHF32,OOC Social Care Residential Placements,AC0170,Social Services,MARP U16,20/06/2022,3516021,Revenue - General Fund,Arc HD Services Ltd,33064,"4,798.05"
Children & Learning,CHIL,Looked After Children & Provision,CHF32,OOC Social Care Residential Placements,AC0170,Social Services,MARP U16,20/06/2022,3516023,Revenue - General Fund,Arc HD Services Ltd,33064,"5,118.43"
Children & Learning,CHIL,Looked After Children & Provision,CHF32,OOC Social Care Residential Placements,AC0170,Social Services,MARP U16,20/06/2022,3516024,Revenue - General Fund,Arc HD Services Ltd,33064,"5,118.43"
Children & Learning,CHIL,Looked After Children & Provision,CHF32,OOC Social Care Residential Placements,AC0170,Social Services,MARP U16,23/05/2022,3435441,Revenue - General Fund,Arc HD Services Ltd,33064,"5,118.43"
Children & Learning,CHIL,Looked After Children & Provision,CHF32,OOC Social Care Residential Placements,AC0170,Social Services,MARP U16,23/05/2022,3506952,Revenue - General Fund,Arc HD Services Ltd,33064,"4,980.38"
Children & Learning,CHIL,Looked After Children & Provision,CHF32,OOC Social Care Residential Placements,AC0170,Social Services,MARP U16,03/05/2022,3504289,Revenue - General Fund,Arc HD Services Ltd,33064,"4,980.38"
Children & Learning,CHIL,Looked After Children & Provision,CHF32,OOC Social Care Residential Placements,AC0170,Social Services,MARP U16,04/05/2022,3502478,Revenue - General Fund,Arc HD Services Ltd,33064,"5,118.43"
Children & Learning,CHIL,Looked After Children & Provision,CHF32,OOC Social Care Residential Placements,AC0170,Social Services,MARP U16,04/05/2022,3502479,Revenue - General Fund,Arc HD Services Ltd,33064,"5,118.43"
Children & Learning,CHIL,Looked After Children & Provision,CHF32,OOC Social Care Residential Placements,AC0170,Social Services,MARP U16,14/04/2022,3432569,Revenue - General Fund,Arc HD Services Ltd,33064,"5,118.43"
Children & Learning,CHIL,Looked After Children & Provision,CHF32,OOC Social Care Residential Placements,AC0170,Social Services,MARP U16,03/05/2022,3502644,Revenue - General Fund,Arc HD Services Ltd,33064,"4,798.05"
Children & Learning,CHIL,Looked After Children & Provision,CHF32,OOC Social Care Residential Placements,AC0170,Social Services,MARP U16,03/05/2022,3502646,Revenue - General Fund,Arc HD Services Ltd,33064,"5,118.43"
Children & Learning,CHIL,Looked After Children & Provision,CHF32,OOC Social Care Residential Placements,AC0170,Social Services,MARP U16,05/04/2022,3430305,Revenue - General Fund,Arc HD Services Ltd,33064,"4,980.38"
Children & Learning,CHIL,Looked After Children & Provision,CHF32,OOC Social Care Residential Placements,AC0170,Social Services,MARP U16,07/06/2022,3512650,Revenue - General Fund,Arc HD Services Ltd,33064,"5,118.43"
Children & Learning,CHIL,Looked After Children & Provision,CHF32,OOC Social Care Residential Placements,AC0170,Social Services,MARP U16,07/06/2022,3512651,Revenue - General Fund,Arc HD Services Ltd,33064,"5,118.43"
Children & Learning,CHIL,Looked After Children & Provision,CHF32,OOC Social Care Residential Placements,AC0170,Social Services,MARP U16,14/06/2022,3514757,Revenue - General Fund,Arc HD Services Ltd,33064,"4,980.38"
Children & Learning,CHIL,Looked After Children & Provision,CHF32,OOC Social Care Residential Placements,AC0170,Social Services,MARP U16,14/06/2022,3514760,Revenue - General Fund,Arc HD Services Ltd,33064,"5,118.43"
Children & Learning,CHIL,Looked After Children & Provision,CHF32,OOC Social Care Residential Placements,AC0170,Social Services,MARP U16,20/05/2022,3505510,Revenue - General Fund,Arc HD Services Ltd,33064,"5,118.43"
Children & Learning,CHIL,Looked After Children & Provision,CHF32,OOC Social Care Residential Placements,AC0170,Social Services,MARP U16,14/06/2022,3514758,Revenue - General Fund,Arc HD Services Ltd,33064,"4,798.05"
Children & Learning,CHIL,Looked After Children & Provision,CHF32,OOC Social Care Residential Placements,AC0170,Social Services,MARP U16,14/06/2022,3514761,Revenue - General Fund,Arc HD Services Ltd,33064,"5,118.43"
Children & Learning,CHIL,Looked After Children & Provision,CHF32,OOC Social Care Residential Placements,AC0170,Social Services,MARP U16,20/05/2022,3505508,Revenue - General Fund,Arc HD Services Ltd,33064,"4,980.38"
Children & Learning,CHIL,Looked After Children & Provision,CHF32,OOC Social Care Residential Placements,AC0170,Social Services,MARP U16,20/05/2022,3505509,Revenue - General Fund,Arc HD Services Ltd,33064,"4,798.05"
Children & Learning,CHIL,Looked After Children & Provision,CHF32,OOC Social Care Residential Placements,AC0170,Social Services,MARP U16,20/06/2022,3516020,Revenue - General Fund,Arc HD Services Ltd,33064,"4,980.38"
Children & Learning,CHIL,Looked After Children & Provision,CHF32,OOC Social Care Residential Placements,AC0170,Social Services,MARP U16,23/05/2022,3435440,Revenue - General Fund,Arc HD Services Ltd,33064,"5,118.43"
Children & Learning,CHIL,Looked After Children & Provision,CHF32,OOC Social Care Residential Placements,AC0170,Social Services,MARP U16,23/05/2022,3506761,Revenue - General Fund,Arc HD Services Ltd,33064,"5,118.43"
Children & Learning,CHIL,Looked After Children & Provision,CHF32,OOC Social Care Residential Placements,AC0170,Social Services,MARP U16,25/05/2022,3510695,Revenue - General Fund,Arc HD Services Ltd,33064,"4,798.05"
Children & Learning,CHIL,Looked After Children & Provision,CHF32,OOC Social Care Residential Placements,AC0170,Social Services,MARP U16,25/05/2022,3510697,Revenue - General Fund,Arc HD Services Ltd,33064,"5,118.43"
Children & Learning,CHIL,Looked After Children & Provision,CHF32,OOC Social Care Residential Placements,AC0170,Social Services,MARP U16,28/04/2022,3502475,Revenue - General Fund,Arc HD Services Ltd,33064,"4,980.38"
Children & Learning,CHIL,Looked After Children & Provision,CHF32,OOC Social Care Residential Placements,AC0170,Social Services,MARP U16,23/05/2022,3505512,Revenue - General Fund,Arc HD Services Ltd,33064,"5,118.43"
Children & Learning,CHIL,Looked After Children & Provision,CHF32,OOC Social Care Residential Placements,AC0170,Social Services,MARP U16,26/05/2022,3432568,Revenue - General Fund,Arc HD Services Ltd,33064,"5,118.43"
Children & Learning,CHIL,Looked After Children & Provision,CHF32,OOC Social Care Residential Placements,AC0170,Social Services,MARP U16,26/05/2022,3508875,Revenue - General Fund,Arc HD Services Ltd,33064,"4,980.38"
Children & Learning,CHIL,Looked After Children & Provision,CHF32,OOC Social Care Residential Placements,AC0170,Social Services,MARP U16,26/05/2022,3509009,Revenue - General Fund,Arc HD Services Ltd,33064,"5,118.43"
Children & Learning,CHIL,Looked After Children & Provision,CHF32,OOC Social Care Residential Placements,AC0170,Social Services,MARP U16,12/05/2022,3506683,Revenue - General Fund,Assure Care Homes,32891,"21,642.21"
Children & Learning,CHIL,Looked After Children & Provision,CHF32,OOC Social Care Residential Placements,AC0170,Social Services,MARP U16,17/05/2022,3504109,Revenue - General Fund,Assure Care Homes,32891,"1,242.30"
Children & Learning,CHIL,Looked After Children & Provision,CHF32,OOC Social Care Residential Placements,AC0170,Social Services,MARP U16,12/05/2022,3506682,Revenue - General Fund,Assure Care Homes,32891,"15,759.42"
Children & Learning,CHIL,Looked After Children & Provision,CHF32,OOC Social Care Residential Placements,AC0170,Social Services,MARP U16,24/05/2022,3510058,Revenue - General Fund,Assure Care Homes,32891,"14,073.48"
Children & Learning,CHIL,Looked After Children & Provision,CHF32,OOC Social Care Residential Placements,AC0170,Social Services,MARP U16,24/05/2022,3510059,Revenue - General Fund,Assure Care Homes,32891,"23,455.80"
Children & Learning,CHIL,Looked After Children & Provision,CHF32,OOC Social Care Residential Placements,AC0170,Social Services,MARP U16,09/06/2022,3514027,Revenue - General Fund,Assure Care Homes,32891,"15,759.42"
Children & Learning,CHIL,Looked After Children & Provision,CHF32,OOC Social Care Residential Placements,AC0170,Social Services,MARP U16,09/06/2022,3514028,Revenue - General Fund,Assure Care Homes,32891,"21,642.21"
Children & Learning,CHIL,Looked After Children & Provision,CHF32,OOC Social Care Residential Placements,AC0170,Social Services,MARP U16,18/05/2022,3505775,Revenue - General Fund,Assure Care Homes,32891,"22,363.62"
Children & Learning,CHIL,Looked After Children & Provision,CHF32,OOC Social Care Residential Placements,AC0170,Social Services,MARP U16,18/05/2022,3505773,Revenue - General Fund,Assure Care Homes,32891,"16,284.73"
Children & Learning,CHIL,Looked After Children & Provision,CHF32,OOC Social Care Residential Placements,AC0170,Social Services,MARP U16,08/06/2022,3513212,Revenue - General Fund,Beaufort Care Group,26814,"22,285.71"
Children & Learning,CHIL,Looked After Children & Provision,CHF32,OOC Social Care Residential Placements,AC0170,Social Services,MARP U16,12/05/2022,3505811,Revenue - General Fund,Beaufort Care Group,26814,"23,028.57"
Children & Learning,CHIL,Looked After Children & Provision,CHF32,OOC Social Care Residential Placements,AC0170,Social Services,MARP U16,18/05/2022,3505810,Revenue - General Fund,Beaufort Care Group,26814,"22,285.71"
Children & Learning,CHIL,Looked After Children & Provision,CHF32,OOC Social Care Residential Placements,AC0170,Social Services,MARP U16,06/04/2022,3420954,Revenue - General Fund,Branas Isaf Personal Development Centre Ltd,18233,"21,035.67"
Children & Learning,CHIL,Looked After Children & Provision,CHF32,OOC Social Care Residential Placements,AC0170,Social Services,MARP U16,06/05/2022,3504009,Revenue - General Fund,Branas Isaf Personal Development Centre Ltd,18233,"21,035.67"
Children & Learning,CHIL,Looked After Children & Provision,CHF32,OOC Social Care Residential Placements,AC0170,Social Services,MARP U16,07/06/2022,3512634,Revenue - General Fund,Branas Isaf Personal Development Centre Ltd,18233,"20,357.10"
Children & Learning,CHIL,Looked After Children & Provision,CHF32,OOC Social Care Residential Placements,AC0170,Social Services,MARP U16,08/04/2022,3431591,Revenue - General Fund,Branas Isaf Personal Development Centre Ltd,18233,"20,357.10"
Children & Learning,CHIL,Looked After Children & Provision,CHF32,OOC Social Care Residential Placements,AC0170,Social Services,MARP U16,11/05/2022,3507214,Revenue - General Fund,Budwood Ltd,28040,"13,482.90"
Children & Learning,CHIL,Looked After Children & Provision,CHF32,OOC Social Care Residential Placements,AC0170,Social Services,MARP U16,12/05/2022,3435332,Revenue - General Fund,Budwood Ltd,28040,"13,268.00"
Children & Learning,CHIL,Looked After Children & Provision,CHF32,OOC Social Care Residential Placements,AC0170,Social Services,MARP U16,11/05/2022,3507211,Revenue - General Fund,Budwood Ltd,28040,"13,482.90"
Children & Learning,CHIL,Looked After Children & Provision,CHF32,OOC Social Care Residential Placements,AC0170,Social Services,MARP U16,19/05/2022,3435335,Revenue - General Fund,Budwood Ltd,28040,"12,134.61"
Children & Learning,CHIL,Looked After Children & Provision,CHF32,OOC Social Care Residential Placements,AC0170,Social Services,MARP U16,20/06/2022,3515892,Revenue - General Fund,Budwood Ltd,28040,"13,932.33"
Children & Learning,CHIL,Looked After Children & Provision,CHF32,OOC Social Care Residential Placements,AC0170,Social Services,MARP U16,10/05/2022,3504006,Revenue - General Fund,Calcot Services for Children Ltd,32585,"16,128.68"
Children & Learning,CHIL,Looked After Children & Provision,CHF32,OOC Social Care Residential Placements,AC0170,Social Services,MARP U16,05/04/2022,3429875,Revenue - General Fund,Calcot Services for Children Ltd,32585,"14,657.10"
Children & Learning,CHIL,Looked After Children & Provision,CHF32,OOC Social Care Residential Placements,AC0170,Social Services,MARP U16,15/06/2022,3515386,Revenue - General Fund,Calcot Services for Children Ltd,32585,"15,500.00"
Children & Learning,CHIL,Looked After Children & Provision,CHF32,OOC Social Care Residential Placements,AC0170,Social Services,MARP U16,22/06/2022,3515925,Revenue - General Fund,Calcot Services for Children Ltd,32585,"25,320.00"
Children & Learning,CHIL,Looked After Children & Provision,CHF32,OOC Social Care Residential Placements,AC0170,Social Services,MARP U16,26/04/2022,3502100,Revenue - General Fund,Calcot Services for Children Ltd,32585,"1,590.00"
Children & Learning,CHIL,Looked After Children & Provision,CHF32,OOC Social Care Residential Placements,AC0170,Social Services,MARP U16,26/05/2022,3504004,Revenue - General Fund,Calcot Services for Children Ltd,32585,"1,680.00"
Children & Learning,CHIL,Looked After Children & Provision,CHF32,OOC Social Care Residential Placements,AC0170,Social Services,MARP U16,26/05/2022,3504005,Revenue - General Fund,Calcot Services for Children Ltd,32585,"1,680.00"
Children & Learning,CHIL,Looked After Children & Provision,CHF32,OOC Social Care Residential Placements,AC0170,Social Services,MARP U16,27/04/2022,3502099,Revenue - General Fund,Calcot Services for Children Ltd,32585,"15,000.00"
Children & Learning,CHIL,Looked After Children & Provision,CHF32,OOC Social Care Residential Placements,AC0170,Social Services,MARP U16,04/05/2022,3502854,Revenue - General Fund,Cambian Childcare Ltd,14016,"-17,757.08"
Children & Learning,CHIL,Looked After Children & Provision,CHF32,OOC Social Care Residential Placements,AC0170,Social Services,MARP U16,25/05/2022,3504780,Revenue - General Fund,Champion Children,44979,"28,060.71"
Children & Learning,CHIL,Looked After Children & Provision,CHF32,OOC Social Care Residential Placements,AC0170,Social Services,MARP U16,05/04/2022,3431121,Revenue - General Fund,Channels & Choices LLP,33066,"19,800.00"
Children & Learning,CHIL,Looked After Children & Provision,CHF32,OOC Social Care Residential Placements,AC0170,Social Services,MARP U16,11/04/2022,3433811,Revenue - General Fund,Channels & Choices LLP,33066,"19,800.00"
Children & Learning,CHIL,Looked After Children & Provision,CHF32,OOC Social Care Residential Placements,AC0170,Social Services,MARP U16,14/06/2022,3515186,Revenue - General Fund,Channels & Choices LLP,33066,"19,800.00"
Children & Learning,CHIL,Looked After Children & Provision,CHF32,OOC Social Care Residential Placements,AC0170,Social Services,MARP U16,20/05/2022,3510048,Revenue - General Fund,Channels & Choices LLP,33066,"6,364.29"
Children & Learning,CHIL,Looked After Children & Provision,CHF32,OOC Social Care Residential Placements,AC0170,Social Services,MARP U16,24/05/2022,3510049,Revenue - General Fund,Channels & Choices LLP,33066,"13,435.71"
Children & Learning,CHIL,Looked After Children & Provision,CHF32,OOC Social Care Residential Placements,AC0170,Social Services,MARP U16,08/06/2022,3512353,Revenue - General Fund,Esland North Limited,14951,"22,364.29"
Children & Learning,CHIL,Looked After Children & Provision,CHF32,OOC Social Care Residential Placements,AC0170,Social Services,MARP U16,25/05/2022,3504640,Revenue - General Fund,Esland North Limited,14951,"21,642.86"
Children & Learning,CHIL,Looked After Children & Provision,CHF32,OOC Social Care Residential Placements,AC0170,Social Services,MARP U16,01/04/2022,3430682,Revenue - General Fund,Esland North Limited,14951,"22,364.29"
Children & Learning,CHIL,Looked After Children & Provision,CHF32,OOC Social Care Residential Placements,AC0170,Social Services,MARP U16,14/04/2022,3434652,Revenue - General Fund,Ethelbert Childrens Services,16305,"2,352.45"
Children & Learning,CHIL,Looked After Children & Provision,CHF32,OOC Social Care Residential Placements,AC0170,Social Services,MARP U16,17/05/2022,3506737,Revenue - General Fund,Fairways Community Benefit Society (FCBS),14816,"2,174.70"
Children & Learning,CHIL,Looked After Children & Provision,CHF32,OOC Social Care Residential Placements,AC0170,Social Services,MARP U16,28/04/2022,3502642,Revenue - General Fund,Fairways Community Benefit Society (FCBS),14816,"2,174.70"
Children & Learning,CHIL,Looked After Children & Provision,CHF32,OOC Social Care Residential Placements,AC0170,Social Services,MARP U16,21/04/2022,3435256,Revenue - General Fund,Fairways Community Benefit Society (FCBS),14816,"2,592.86"
Children & Learning,CHIL,Looked After Children & Provision,CHF32,OOC Social Care Residential Placements,AC0170,Social Services,MARP U16,17/05/2022,3506736,Revenue - General Fund,Fairways Community Benefit Society (FCBS),14816,"3,300.00"
Children & Learning,CHIL,Looked After Children & Provision,CHF32,OOC Social Care Residential Placements,AC0170,Social Services,MARP U16,21/04/2022,3435258,Revenue - General Fund,Fairways Community Benefit Society (FCBS),14816,"1,708.69"
Children & Learning,CHIL,Looked After Children & Provision,CHF32,OOC Social Care Residential Placements,AC0170,Social Services,MARP U16,21/04/2022,3435257,Revenue - General Fund,Fairways Community Benefit Society (FCBS),14816,707.14
Children & Learning,CHIL,Looked After Children & Provision,CHF32,OOC Social Care Residential Placements,AC0170,Social Services,MARP U16,28/04/2022,3502641,Revenue - General Fund,Fairways Community Benefit Society (FCBS),14816,"3,300.00"
Children & Learning,CHIL,Looked After Children & Provision,CHF32,OOC Social Care Residential Placements,AC0170,Social Services,MARP U16,23/05/2022,3510455,Revenue - General Fund,Fairways Community Benefit Society (FCBS),14816,"3,300.00"
Children & Learning,CHIL,Looked After Children & Provision,CHF32,OOC Social Care Residential Placements,AC0170,Social Services,MARP U16,23/05/2022,3510456,Revenue - General Fund,Fairways Community Benefit Society (FCBS),14816,"2,174.70"
Children & Learning,CHIL,Looked After Children & Provision,CHF32,OOC Social Care Residential Placements,AC0170,Social Services,MARP U16,19/04/2022,3435245,Revenue - General Fund,Foundations For Families,46227,"5,200.00"
Children & Learning,CHIL,Looked After Children & Provision,CHF32,OOC Social Care Residential Placements,AC0170,Social Services,MARP U16,26/05/2022,3511014,Revenue - General Fund,Headley Care Services Ltd,46777,"4,607.10"
Children & Learning,CHIL,Looked After Children & Provision,CHF32,OOC Social Care Residential Placements,AC0170,Social Services,MARP U16,22/06/2022,3511960,Revenue - General Fund,Headley Care Services Ltd,46777,"4,760.67"
Children & Learning,CHIL,Looked After Children & Provision,CHF32,OOC Social Care Residential Placements,AC0170,Social Services,MARP U16,25/05/2022,3511013,Revenue - General Fund,Headley Care Services Ltd,46777,614.29
Children & Learning,CHIL,Looked After Children & Provision,CHF32,OOC Social Care Residential Placements,AC0170,Social Services,MARP U16,10/05/2022,3505276,Revenue - General Fund,Highlands Care Solutions Ltd,31137,"2,409.90"
Children & Learning,CHIL,Looked After Children & Provision,CHF32,OOC Social Care Residential Placements,AC0170,Social Services,MARP U16,08/06/2022,3512004,Revenue - General Fund,Keys Group PCE,17772,"18,474.77"
Children & Learning,CHIL,Looked After Children & Provision,CHF32,OOC Social Care Residential Placements,AC0170,Social Services,MARP U16,06/06/2022,23289,Revenue - General Fund,Keys Group PCE,17772,"38,763.59"
Children & Learning,CHIL,Looked After Children & Provision,CHF32,OOC Social Care Residential Placements,AC0170,Social Services,MARP U16,24/05/2022,3508694,Revenue - General Fund,Keys Group PCE,17772,"-38,763.59"
Children & Learning,CHIL,Looked After Children & Provision,CHF32,OOC Social Care Residential Placements,AC0170,Social Services,MARP U16,03/05/2022,3503967,Revenue - General Fund,Keys PCE Limited,26183,"18,474.77"
Children & Learning,CHIL,Looked After Children & Provision,CHF32,OOC Social Care Residential Placements,AC0170,Social Services,MARP U16,06/05/2022,3503963,Revenue - General Fund,Keys PCE Limited,26183,"16,808.57"
Children & Learning,CHIL,Looked After Children & Provision,CHF32,OOC Social Care Residential Placements,AC0170,Social Services,MARP U16,07/06/2022,3512873,Revenue - General Fund,Keys PCE Limited,26183,"18,542.43"
Children & Learning,CHIL,Looked After Children & Provision,CHF32,OOC Social Care Residential Placements,AC0170,Social Services,MARP U16,07/06/2022,3512878,Revenue - General Fund,Keys PCE Limited,26183,"19,090.60"
Children & Learning,CHIL,Looked After Children & Provision,CHF32,OOC Social Care Residential Placements,AC0170,Social Services,MARP U16,09/05/2022,3503962,Revenue - General Fund,Keys PCE Limited,26183,"18,474.77"
Children & Learning,CHIL,Looked After Children & Provision,CHF32,OOC Social Care Residential Placements,AC0170,Social Services,MARP U16,10/05/2022,3505468,Revenue - General Fund,Keys PCE Limited,26183,"17,108.57"
Children & Learning,CHIL,Looked After Children & Provision,CHF32,OOC Social Care Residential Placements,AC0170,Social Services,MARP U16,22/06/2022,3512874,Revenue - General Fund,Keys PCE Limited,26183,"3,625.20"
Children & Learning,CHIL,Looked After Children & Provision,CHF32,OOC Social Care Residential Placements,AC0170,Social Services,MARP U16,24/06/2022,3508422,Revenue - General Fund,Keys PCE Limited,26183,"18,396.28"
Children & Learning,CHIL,Looked After Children & Provision,CHF32,OOC Social Care Residential Placements,AC0170,Social Services,MARP U16,25/05/2022,23283,Revenue - General Fund,Keys PCE Limited,26183,"-18,474.77"
Children & Learning,CHIL,Looked After Children & Provision,CHF32,OOC Social Care Residential Placements,AC0170,Social Services,MARP U16,04/05/2022,3503966,Revenue - General Fund,Keys PCE Limited,26183,"18,474.77"
Children & Learning,CHIL,Looked After Children & Provision,CHF32,OOC Social Care Residential Placements,AC0170,Social Services,MARP U16,07/06/2022,3512875,Revenue - General Fund,Keys PCE Limited,26183,"17,678.86"
Children & Learning,CHIL,Looked After Children & Provision,CHF32,OOC Social Care Residential Placements,AC0170,Social Services,MARP U16,07/06/2022,3512876,Revenue - General Fund,Keys PCE Limited,26183,"19,090.60"
Children & Learning,CHIL,Looked After Children & Provision,CHF32,OOC Social Care Residential Placements,AC0170,Social Services,MARP U16,07/06/2022,3512877,Revenue - General Fund,Keys PCE Limited,26183,"19,090.60"
Children & Learning,CHIL,Looked After Children & Provision,CHF32,OOC Social Care Residential Placements,AC0170,Social Services,MARP U16,21/06/2022,3516129,Revenue - General Fund,Keys PCE Limited,26183,"1,908.00"
Children & Learning,CHIL,Looked After Children & Provision,CHF32,OOC Social Care Residential Placements,AC0170,Social Services,MARP U16,04/05/2022,3504514,Revenue - General Fund,Keys PCE Limited,26183,"17,944.29"
Children & Learning,CHIL,Looked After Children & Provision,CHF32,OOC Social Care Residential Placements,AC0170,Social Services,MARP U16,06/05/2022,3503533,Revenue - General Fund,Keys PCE Limited,26183,"4,388.40"
Children & Learning,CHIL,Looked After Children & Provision,CHF32,OOC Social Care Residential Placements,AC0170,Social Services,MARP U16,03/05/2022,3503965,Revenue - General Fund,Keys PCE Limited,26183,"18,474.77"
Children & Learning,CHIL,Looked After Children & Provision,CHF32,OOC Social Care Residential Placements,AC0170,Social Services,MARP U16,18/05/2022,3505534,Revenue - General Fund,Keys PCE Limited,26183,"-16,808.57"
Children & Learning,CHIL,Looked After Children & Provision,CHF32,OOC Social Care Residential Placements,AC0170,Social Services,MARP U16,16/06/2022,3515490,Revenue - General Fund,Keys PCE Limited,26183,"11,699.35"
Children & Learning,CHIL,Looked After Children & Provision,CHF32,OOC Social Care Residential Placements,AC0170,Social Services,MARP U16,24/06/2022,3514351,Revenue - General Fund,Keys PCE Limited,26183,"-38,763.59"
Children & Learning,CHIL,Looked After Children & Provision,CHF32,OOC Social Care Residential Placements,AC0170,Social Services,MARP U16,26/05/2022,3503964,Revenue - General Fund,Keys PCE Limited,26183,"1,908.00"
Children & Learning,CHIL,Looked After Children & Provision,CHF32,OOC Social Care Residential Placements,AC0170,Social Services,MARP U16,22/06/2022,3516130,Revenue - General Fund,Keys PCE Limited,26183,"3,625.20"
Children & Learning,CHIL,Looked After Children & Provision,CHF32,OOC Social Care Residential Placements,AC0170,Social Services,MARP U16,04/05/2022,3435434,Revenue - General Fund,Lioncare Ltd,21402,"15,619.11"
Children & Learning,CHIL,Looked After Children & Provision,CHF32,OOC Social Care Residential Placements,AC0170,Social Services,MARP U16,10/05/2022,3504233,Revenue - General Fund,Lioncare Ltd,21402,"15,901.24"
Children & Learning,CHIL,Looked After Children & Provision,CHF32,OOC Social Care Residential Placements,AC0170,Social Services,MARP U16,10/05/2022,3504235,Revenue - General Fund,Lioncare Ltd,21402,"15,901.24"
Children & Learning,CHIL,Looked After Children & Provision,CHF32,OOC Social Care Residential Placements,AC0170,Social Services,MARP U16,10/05/2022,3504234,Revenue - General Fund,Lioncare Ltd,21402,"14,362.41"
Children & Learning,CHIL,Looked After Children & Provision,CHF32,OOC Social Care Residential Placements,AC0170,Social Services,MARP U16,24/05/2022,3509661,Revenue - General Fund,Lioncare Ltd,21402,"16,139.75"
Children & Learning,CHIL,Looked After Children & Provision,CHF32,OOC Social Care Residential Placements,AC0170,Social Services,MARP U16,28/04/2022,3435435,Revenue - General Fund,Lioncare Ltd,21402,"15,619.12"
Children & Learning,CHIL,Looked After Children & Provision,CHF32,OOC Social Care Residential Placements,AC0170,Social Services,MARP U16,06/06/2022,3506003,Revenue - General Fund,Lioncare Ltd,21402,"18,390.67"
Children & Learning,CHIL,Looked After Children & Provision,CHF32,OOC Social Care Residential Placements,AC0170,Social Services,MARP U16,24/05/2022,3509662,Revenue - General Fund,Lioncare Ltd,21402,"16,139.76"
Children & Learning,CHIL,Looked After Children & Provision,CHF32,OOC Social Care Residential Placements,AC0170,Social Services,MARP U16,27/05/2022,3511592,Revenue - General Fund,My Choice Children�s Homes Ltd,47369,"11,024.67"
Children & Learning,CHIL,Looked After Children & Provision,CHF32,OOC Social Care Residential Placements,AC0170,Social Services,MARP U16,10/06/2022,3514531,Revenue - General Fund,My Choice Children�s Homes Ltd,47369,"17,407.37"
Children & Learning,CHIL,Looked After Children & Provision,CHF32,OOC Social Care Residential Placements,AC0170,Social Services,MARP U16,10/06/2022,3514534,Revenue - General Fund,My Choice Childrens Home,15963,"17,162.10"
Children & Learning,CHIL,Looked After Children & Provision,CHF32,OOC Social Care Residential Placements,AC0170,Social Services,MARP U16,20/05/2022,3505616,Revenue - General Fund,My Choice Childrens Home,15963,"17,987.62"
Children & Learning,CHIL,Looked After Children & Provision,CHF32,OOC Social Care Residential Placements,AC0170,Social Services,MARP U16,10/06/2022,3514532,Revenue - General Fund,My Choice Childrens Home,15963,"17,407.37"
Children & Learning,CHIL,Looked After Children & Provision,CHF32,OOC Social Care Residential Placements,AC0170,Social Services,MARP U16,10/06/2022,3514533,Revenue - General Fund,My Choice Childrens Home,15963,"17,162.10"
Children & Learning,CHIL,Looked After Children & Provision,CHF32,OOC Social Care Residential Placements,AC0170,Social Services,MARP U16,05/05/2022,3503551,Revenue - General Fund,My Choice Childrens Home,15963,"11,024.67"
Children & Learning,CHIL,Looked After Children & Provision,CHF32,OOC Social Care Residential Placements,AC0170,Social Services,MARP U16,10/06/2022,3514530,Revenue - General Fund,My Choice Childrens Home,15963,"17,162.10"
Children & Learning,CHIL,Looked After Children & Provision,CHF32,OOC Social Care Residential Placements,AC0170,Social Services,MARP U16,12/05/2022,3505618,Revenue - General Fund,My Choice Childrens Home,15963,"17,734.17"
Children & Learning,CHIL,Looked After Children & Provision,CHF32,OOC Social Care Residential Placements,AC0170,Social Services,MARP U16,20/05/2022,3505615,Revenue - General Fund,My Choice Childrens Home,15963,"17,734.17"
Children & Learning,CHIL,Looked After Children & Provision,CHF32,OOC Social Care Residential Placements,AC0170,Social Services,MARP U16,14/04/2022,3433862,Revenue - General Fund,My Choice Childrens Home,15963,"17,162.10"
Children & Learning,CHIL,Looked After Children & Provision,CHF32,OOC Social Care Residential Placements,AC0170,Social Services,MARP U16,14/04/2022,3433863,Revenue - General Fund,My Choice Childrens Home,15963,"17,162.10"
Children & Learning,CHIL,Looked After Children & Provision,CHF32,OOC Social Care Residential Placements,AC0170,Social Services,MARP U16,14/04/2022,3433864,Revenue - General Fund,My Choice Childrens Home,15963,"17,162.10"
Children & Learning,CHIL,Looked After Children & Provision,CHF32,OOC Social Care Residential Placements,AC0170,Social Services,MARP U16,20/05/2022,3505617,Revenue - General Fund,My Choice Childrens Home,15963,"17,734.17"
Children & Learning,CHIL,Looked After Children & Provision,CHF32,OOC Social Care Residential Placements,AC0170,Social Services,MARP U16,23/05/2022,3505428,Revenue - General Fund,Nurtured Future Living Ltd,42259,"3,800.00"
Children & Learning,CHIL,Looked After Children & Provision,CHF32,OOC Social Care Residential Placements,AC0170,Social Services,MARP U16,26/05/2022,3511002,Revenue - General Fund,Nurtured Future Living Ltd,42259,"3,800.00"
Children & Learning,CHIL,Looked After Children & Provision,CHF32,OOC Social Care Residential Placements,AC0170,Social Services,MARP U16,04/04/2022,3430755,Revenue - General Fund,Nurtured Future Living Ltd,42259,"3,800.00"
Children & Learning,CHIL,Looked After Children & Provision,CHF32,OOC Social Care Residential Placements,AC0170,Social Services,MARP U16,07/06/2022,3512638,Revenue - General Fund,Nurtured Future Living Ltd,42259,"3,800.00"
Children & Learning,CHIL,Looked After Children & Provision,CHF32,OOC Social Care Residential Placements,AC0170,Social Services,MARP U16,11/04/2022,3433809,Revenue - General Fund,Nurtured Future Living Ltd,42259,"2,171.43"
Children & Learning,CHIL,Looked After Children & Provision,CHF32,OOC Social Care Residential Placements,AC0170,Social Services,MARP U16,05/05/2022,3503136,Revenue - General Fund,Nurtured Future Living Ltd,42259,"3,800.00"
Children & Learning,CHIL,Looked After Children & Provision,CHF32,OOC Social Care Residential Placements,AC0170,Social Services,MARP U16,14/06/2022,3514755,Revenue - General Fund,Nurtured Future Living Ltd,42259,"3,800.00"
Children & Learning,CHIL,Looked After Children & Provision,CHF32,OOC Social Care Residential Placements,AC0170,Social Services,MARP U16,21/04/2022,3434679,Revenue - General Fund,Nurtured Future Living Ltd,42259,"3,800.00"
Children & Learning,CHIL,Looked After Children & Provision,CHF32,OOC Social Care Residential Placements,AC0170,Social Services,MARP U16,20/04/2022,3433810,Revenue - General Fund,Nurtured Future Living Ltd,42259,"1,628.57"
Children & Learning,CHIL,Looked After Children & Provision,CHF32,OOC Social Care Residential Placements,AC0170,Social Services,MARP U16,22/04/2022,3434680,Revenue - General Fund,Nurtured Future Living Ltd,42259,"3,800.00"
Children & Learning,CHIL,Looked After Children & Provision,CHF32,OOC Social Care Residential Placements,AC0170,Social Services,MARP U16,24/05/2022,3509421,Revenue - General Fund,Nurtured Future Living Ltd,42259,"3,800.00"
Children & Learning,CHIL,Looked After Children & Provision,CHF32,OOC Social Care Residential Placements,AC0170,Social Services,MARP U16,26/05/2022,3507500,Revenue - General Fund,Nurtured Future Living Ltd,42259,"3,800.00"
Children & Learning,CHIL,Looked After Children & Provision,CHF32,OOC Social Care Residential Placements,AC0170,Social Services,MARP U16,04/05/2022,3432005,Revenue - General Fund,Oracle Care and Education,46348,"-16,628.57"
Children & Learning,CHIL,Looked After Children & Provision,CHF32,OOC Social Care Residential Placements,AC0170,Social Services,MARP U16,05/04/2022,3420314,Revenue - General Fund,Oracle Care and Education,46348,"19,400.00"
Children & Learning,CHIL,Looked After Children & Provision,CHF32,OOC Social Care Residential Placements,AC0170,Social Services,MARP U16,22/04/2022,3435576,Revenue - General Fund,Oracle Care and Education,46348,"-3,464.29"
Children & Learning,CHIL,Looked After Children & Provision,CHF32,OOC Social Care Residential Placements,AC0170,Social Services,MARP U16,24/05/2022,3504481,Revenue - General Fund,Oracle Care and Education,46348,"21,478.57"
Children & Learning,CHIL,Looked After Children & Provision,CHF32,OOC Social Care Residential Placements,AC0170,Social Services,MARP U16,05/04/2022,3430833,Revenue - General Fund,Peterborough City Council (Clare Lodge),47065,"48,000.00"
Children & Learning,CHIL,Looked After Children & Provision,CHF32,OOC Social Care Residential Placements,AC0170,Social Services,MARP U16,10/05/2022,3504851,Revenue - General Fund,Peterborough City Council (Clare Lodge),47065,"45,000.00"
Children & Learning,CHIL,Looked After Children & Provision,CHF32,OOC Social Care Residential Placements,AC0170,Social Services,MARP U16,09/06/2022,3514048,Revenue - General Fund,Peterborough City Council (Clare Lodge),47065,"46,500.00"
Children & Learning,CHIL,Looked After Children & Provision,CHF32,OOC Social Care Residential Placements,AC0170,Social Services,MARP U16,05/04/2022,3419174,Revenue - General Fund,Phoenix Child Care Ltd,26235,"21,748.71"
Children & Learning,CHIL,Looked After Children & Provision,CHF32,OOC Social Care Residential Placements,AC0170,Social Services,MARP U16,05/04/2022,3424229,Revenue - General Fund,Phoenix Child Care Ltd,26235,"24,768.90"
Children & Learning,CHIL,Looked After Children & Provision,CHF32,OOC Social Care Residential Placements,AC0170,Social Services,MARP U16,05/05/2022,3502640,Revenue - General Fund,Phoenix Child Care Ltd,26235,"21,748.71"
Children & Learning,CHIL,Looked After Children & Provision,CHF32,OOC Social Care Residential Placements,AC0170,Social Services,MARP U16,05/04/2022,3430418,Revenue - General Fund,Phoenix Child Care Ltd,26235,"21,047.14"
Children & Learning,CHIL,Looked After Children & Provision,CHF32,OOC Social Care Residential Placements,AC0170,Social Services,MARP U16,09/05/2022,3504288,Revenue - General Fund,Pilgrims Corner Limited,47086,"30,214.28"
Children & Learning,CHIL,Looked After Children & Provision,CHF32,OOC Social Care Residential Placements,AC0170,Social Services,MARP U16,08/06/2022,3513253,Revenue - General Fund,Pilgrims Corner Limited,47086,"31,221.43"
Children & Learning,CHIL,Looked After Children & Provision,CHF32,OOC Social Care Residential Placements,AC0170,Social Services,MARP U16,05/04/2022,3431002,Revenue - General Fund,Progression Care Limited,16079,"2,362.50"
Children & Learning,CHIL,Looked After Children & Provision,CHF32,OOC Social Care Residential Placements,AC0170,Social Services,MARP U16,05/05/2022,3503547,Revenue - General Fund,Progression Care Limited,16079,"2,362.50"
Children & Learning,CHIL,Looked After Children & Provision,CHF32,OOC Social Care Residential Placements,AC0170,Social Services,MARP U16,08/06/2022,3513240,Revenue - General Fund,Progression Care Limited,16079,"2,362.50"
Children & Learning,CHIL,Looked After Children & Provision,CHF32,OOC Social Care Residential Placements,AC0170,Social Services,MARP U16,08/06/2022,3513244,Revenue - General Fund,Progression Care Limited,16079,"2,100.00"
Children & Learning,CHIL,Looked After Children & Provision,CHF32,OOC Social Care Residential Placements,AC0170,Social Services,MARP U16,20/05/2022,3505436,Revenue - General Fund,Progression Care Limited,16079,"2,362.50"
Children & Learning,CHIL,Looked After Children & Provision,CHF32,OOC Social Care Residential Placements,AC0170,Social Services,MARP U16,21/04/2022,3434252,Revenue - General Fund,Progression Care Limited,16079,"1,200.00"
Children & Learning,CHIL,Looked After Children & Provision,CHF32,OOC Social Care Residential Placements,AC0170,Social Services,MARP U16,23/05/2022,3503208,Revenue - General Fund,Progression Care Limited,16079,"1,012.50"
Children & Learning,CHIL,Looked After Children & Provision,CHF32,OOC Social Care Residential Placements,AC0170,Social Services,MARP U16,23/05/2022,3508050,Revenue - General Fund,Progression Care Limited,16079,"2,362.50"
Children & Learning,CHIL,Looked After Children & Provision,CHF32,OOC Social Care Residential Placements,AC0170,Social Services,MARP U16,26/05/2022,3502238,Revenue - General Fund,Progression Care Limited,16079,"2,362.50"
Children & Learning,CHIL,Looked After Children & Provision,CHF32,OOC Social Care Residential Placements,AC0170,Social Services,MARP U16,26/05/2022,3503209,Revenue - General Fund,Progression Care Limited,16079,"1,012.50"
Children & Learning,CHIL,Looked After Children & Provision,CHF32,OOC Social Care Residential Placements,AC0170,Social Services,MARP U16,26/05/2022,3503545,Revenue - General Fund,Progression Care Limited,16079,"2,100.00"
Children & Learning,CHIL,Looked After Children & Provision,CHF32,OOC Social Care Residential Placements,AC0170,Social Services,MARP U16,26/05/2022,3508049,Revenue - General Fund,Progression Care Limited,16079,"2,362.50"
Children & Learning,CHIL,Looked After Children & Provision,CHF32,OOC Social Care Residential Placements,AC0170,Social Services,MARP U16,26/05/2022,3511329,Revenue - General Fund,Progression Care Limited,16079,"2,362.50"
Children & Learning,CHIL,Looked After Children & Provision,CHF32,OOC Social Care Residential Placements,AC0170,Social Services,MARP U16,26/05/2022,3511331,Revenue - General Fund,Progression Care Limited,16079,"2,362.50"
Children & Learning,CHIL,Looked After Children & Provision,CHF32,OOC Social Care Residential Placements,AC0170,Social Services,MARP U16,28/04/2022,3503210,Revenue - General Fund,Progression Care Limited,16079,"1,012.50"
Children & Learning,CHIL,Looked After Children & Provision,CHF32,OOC Social Care Residential Placements,AC0170,Social Services,MARP U16,05/04/2022,3431001,Revenue - General Fund,Progression Care Limited,16079,"2,100.00"
Children & Learning,CHIL,Looked After Children & Provision,CHF32,OOC Social Care Residential Placements,AC0170,Social Services,MARP U16,05/05/2022,3503548,Revenue - General Fund,Progression Care Limited,16079,"2,362.50"
Children & Learning,CHIL,Looked After Children & Provision,CHF32,OOC Social Care Residential Placements,AC0170,Social Services,MARP U16,23/05/2022,3435648,Revenue - General Fund,Progression Care Limited,16079,"2,100.00"
Children & Learning,CHIL,Looked After Children & Provision,CHF32,OOC Social Care Residential Placements,AC0170,Social Services,MARP U16,23/05/2022,3510321,Revenue - General Fund,Progression Care Limited,16079,"2,362.50"
Children & Learning,CHIL,Looked After Children & Provision,CHF32,OOC Social Care Residential Placements,AC0170,Social Services,MARP U16,23/05/2022,3510322,Revenue - General Fund,Progression Care Limited,16079,"2,362.50"
Children & Learning,CHIL,Looked After Children & Provision,CHF32,OOC Social Care Residential Placements,AC0170,Social Services,MARP U16,23/05/2022,3510324,Revenue - General Fund,Progression Care Limited,16079,"2,362.50"
Children & Learning,CHIL,Looked After Children & Provision,CHF32,OOC Social Care Residential Placements,AC0170,Social Services,MARP U16,25/04/2022,3435646,Revenue - General Fund,Progression Care Limited,16079,"2,362.50"
Children & Learning,CHIL,Looked After Children & Provision,CHF32,OOC Social Care Residential Placements,AC0170,Social Services,MARP U16,27/04/2022,3434255,Revenue - General Fund,Progression Care Limited,16079,900.00
Children & Learning,CHIL,Looked After Children & Provision,CHF32,OOC Social Care Residential Placements,AC0170,Social Services,MARP U16,03/05/2022,3503207,Revenue - General Fund,Progression Care Limited,16079,"1,350.00"
Children & Learning,CHIL,Looked After Children & Provision,CHF32,OOC Social Care Residential Placements,AC0170,Social Services,MARP U16,08/06/2022,3513239,Revenue - General Fund,Progression Care Limited,16079,"2,362.50"
Children & Learning,CHIL,Looked After Children & Provision,CHF32,OOC Social Care Residential Placements,AC0170,Social Services,MARP U16,08/06/2022,3513245,Revenue - General Fund,Progression Care Limited,16079,"2,362.50"
Children & Learning,CHIL,Looked After Children & Provision,CHF32,OOC Social Care Residential Placements,AC0170,Social Services,MARP U16,03/05/2022,3503206,Revenue - General Fund,Progression Care Limited,16079,"1,350.00"
Children & Learning,CHIL,Looked After Children & Provision,CHF32,OOC Social Care Residential Placements,AC0170,Social Services,MARP U16,04/04/2022,3431000,Revenue - General Fund,Progression Care Limited,16079,"2,362.50"
Children & Learning,CHIL,Looked After Children & Provision,CHF32,OOC Social Care Residential Placements,AC0170,Social Services,MARP U16,05/04/2022,3430999,Revenue - General Fund,Progression Care Limited,16079,"2,362.50"
Children & Learning,CHIL,Looked After Children & Provision,CHF32,OOC Social Care Residential Placements,AC0170,Social Services,MARP U16,05/05/2022,3503546,Revenue - General Fund,Progression Care Limited,16079,"2,362.50"
Children & Learning,CHIL,Looked After Children & Provision,CHF32,OOC Social Care Residential Placements,AC0170,Social Services,MARP U16,16/06/2022,3515588,Revenue - General Fund,Progression Care Limited,16079,"2,362.50"
Children & Learning,CHIL,Looked After Children & Provision,CHF32,OOC Social Care Residential Placements,AC0170,Social Services,MARP U16,16/06/2022,3515589,Revenue - General Fund,Progression Care Limited,16079,"2,362.50"
Children & Learning,CHIL,Looked After Children & Provision,CHF32,OOC Social Care Residential Placements,AC0170,Social Services,MARP U16,20/05/2022,3505438,Revenue - General Fund,Progression Care Limited,16079,"2,362.50"
Children & Learning,CHIL,Looked After Children & Provision,CHF32,OOC Social Care Residential Placements,AC0170,Social Services,MARP U16,16/06/2022,3515590,Revenue - General Fund,Progression Care Limited,16079,"2,100.00"
Children & Learning,CHIL,Looked After Children & Provision,CHF32,OOC Social Care Residential Placements,AC0170,Social Services,MARP U16,16/06/2022,3515606,Revenue - General Fund,Progression Care Limited,16079,"2,362.50"
Children & Learning,CHIL,Looked After Children & Provision,CHF32,OOC Social Care Residential Placements,AC0170,Social Services,MARP U16,20/05/2022,3505431,Revenue - General Fund,Progression Care Limited,16079,"2,362.50"
Children & Learning,CHIL,Looked After Children & Provision,CHF32,OOC Social Care Residential Placements,AC0170,Social Services,MARP U16,20/05/2022,3505437,Revenue - General Fund,Progression Care Limited,16079,"2,100.00"
Children & Learning,CHIL,Looked After Children & Provision,CHF32,OOC Social Care Residential Placements,AC0170,Social Services,MARP U16,23/05/2022,3510323,Revenue - General Fund,Progression Care Limited,16079,"2,100.00"
Children & Learning,CHIL,Looked After Children & Provision,CHF32,OOC Social Care Residential Placements,AC0170,Social Services,MARP U16,25/04/2022,3435649,Revenue - General Fund,Progression Care Limited,16079,"2,362.50"
Children & Learning,CHIL,Looked After Children & Provision,CHF32,OOC Social Care Residential Placements,AC0170,Social Services,MARP U16,26/05/2022,3502207,Revenue - General Fund,Progression Care Limited,16079,"2,362.50"
Children & Learning,CHIL,Looked After Children & Provision,CHF32,OOC Social Care Residential Placements,AC0170,Social Services,MARP U16,26/05/2022,3502236,Revenue - General Fund,Progression Care Limited,16079,"2,100.00"
Children & Learning,CHIL,Looked After Children & Provision,CHF32,OOC Social Care Residential Placements,AC0170,Social Services,MARP U16,26/05/2022,3511330,Revenue - General Fund,Progression Care Limited,16079,"2,362.50"
Children & Learning,CHIL,Looked After Children & Provision,CHF32,OOC Social Care Residential Placements,AC0170,Social Services,MARP U16,23/05/2022,3508048,Revenue - General Fund,Progression Care Limited,16079,"2,100.00"
Children & Learning,CHIL,Looked After Children & Provision,CHF32,OOC Social Care Residential Placements,AC0170,Social Services,MARP U16,23/05/2022,3508051,Revenue - General Fund,Progression Care Limited,16079,"2,362.50"
Children & Learning,CHIL,Looked After Children & Provision,CHF32,OOC Social Care Residential Placements,AC0170,Social Services,MARP U16,26/05/2022,3502237,Revenue - General Fund,Progression Care Limited,16079,"2,362.50"
Children & Learning,CHIL,Looked After Children & Provision,CHF32,OOC Social Care Residential Placements,AC0170,Social Services,MARP U16,26/05/2022,3511332,Revenue - General Fund,Progression Care Limited,16079,"2,100.00"
Children & Learning,CHIL,Looked After Children & Provision,CHF32,OOC Social Care Residential Placements,AC0170,Social Services,MARP U16,27/04/2022,3435647,Revenue - General Fund,Progression Care Limited,16079,"2,362.50"
Children & Learning,CHIL,Looked After Children & Provision,CHF32,OOC Social Care Residential Placements,AC0170,Social Services,MARP U16,28/04/2022,3503205,Revenue - General Fund,Progression Care Limited,16079,"1,350.00"
Children & Learning,CHIL,Looked After Children & Provision,CHF32,OOC Social Care Residential Placements,AC0170,Social Services,MARP U16,05/04/2022,3430995,Revenue - General Fund,Sankofa Care,46238,"16,200.00"
Children & Learning,CHIL,Looked After Children & Provision,CHF32,OOC Social Care Residential Placements,AC0170,Social Services,MARP U16,05/04/2022,3430996,Revenue - General Fund,Sankofa Care,46238,"13,079.09"
Children & Learning,CHIL,Looked After Children & Provision,CHF32,OOC Social Care Residential Placements,AC0170,Social Services,MARP U16,26/05/2022,3504480,Revenue - General Fund,Sankofa Care,46238,"-6,315.78"
Children & Learning,CHIL,Looked After Children & Provision,CHF32,OOC Social Care Residential Placements,AC0170,Social Services,MARP U16,06/05/2022,3504105,Revenue - General Fund,Serenity Care Homes,39730,"13,000.00"
Children & Learning,CHIL,Looked After Children & Provision,CHF32,OOC Social Care Residential Placements,AC0170,Social Services,MARP U16,25/05/2022,3436105,Revenue - General Fund,Serenity Care Homes,39730,"13,000.00"
Children & Learning,CHIL,Looked After Children & Provision,CHF32,OOC Social Care Residential Placements,AC0170,Social Services,MARP U16,05/04/2022,3430828,Revenue - General Fund,Serenity Care Homes,39730,"13,928.57"
Children & Learning,CHIL,Looked After Children & Provision,CHF32,OOC Social Care Residential Placements,AC0170,Social Services,MARP U16,25/05/2022,3508545,Revenue - General Fund,Serenity Care Homes,39730,"13,000.00"
Children & Learning,CHIL,Looked After Children & Provision,CHF32,OOC Social Care Residential Placements,AC0170,Social Services,MARP U16,16/05/2022,3508099,Revenue - General Fund,Sportfit Support Services Ltd,17767,"9,900.00"
Children & Learning,CHIL,Looked After Children & Provision,CHF32,OOC Social Care Residential Placements,AC0170,Social Services,MARP U16,24/06/2022,3515900,Revenue - General Fund,Sportfit Support Services Ltd,17767,"10,230.00"
Children & Learning,CHIL,Looked After Children & Provision,CHF32,OOC Social Care Residential Placements,AC0170,Social Services,MARP U16,16/05/2022,3507469,Revenue - General Fund,Sportfit Support Services Ltd,17767,"10,230.00"
Children & Learning,CHIL,Looked After Children & Provision,CHF32,OOC Social Care Residential Placements,AC0170,Social Services,MARP U16,10/05/2022,3506677,Revenue - General Fund,Springcroft Homes Ltd,45219,"11,000.00"
Children & Learning,CHIL,Looked After Children & Provision,CHF32,OOC Social Care Residential Placements,AC0170,Social Services,MARP U16,20/05/2022,3506676,Revenue - General Fund,Springcroft Homes Ltd,45219,"5,028.56"
Children & Learning,CHIL,Looked After Children & Provision,CHF32,OOC Social Care Residential Placements,AC0170,Social Services,MARP U16,04/04/2022,3430806,Revenue - General Fund,SWAAY Child & Adolescent Services Ltd,39387,"22,575.13"
Children & Learning,CHIL,Looked After Children & Provision,CHF32,OOC Social Care Residential Placements,AC0170,Social Services,MARP U16,08/06/2022,3513310,Revenue - General Fund,SWAAY Child & Adolescent Services Ltd,39387,"22,575.13"
Children & Learning,CHIL,Looked After Children & Provision,CHF32,OOC Social Care Residential Placements,AC0170,Social Services,MARP U16,20/05/2022,3504809,Revenue - General Fund,SWAAY Child & Adolescent Services Ltd,39387,"21,846.90"
Children & Learning,CHIL,Looked After Children & Provision,CHF32,OOC Social Care Residential Placements,AC0170,Social Services,MARP U16,12/05/2022,3506072,Revenue - General Fund,The Beehive Enterprise Ltd,32746,785.62
Children & Learning,CHIL,Looked After Children & Provision,CHF32,OOC Social Care Residential Placements,AC0170,Social Services,MARP U16,26/05/2022,3431829,Revenue - General Fund,The Beehive Enterprise Ltd,32746,"3,862.82"
Children & Learning,CHIL,Looked After Children & Provision,CHF32,OOC Social Care Residential Placements,AC0170,Social Services,MARP U16,21/04/2022,3434338,Revenue - General Fund,The Beehive Enterprise Ltd,32746,"3,257.10"
Children & Learning,CHIL,Looked After Children & Provision,CHF32,OOC Social Care Residential Placements,AC0170,Social Services,MARP U16,10/06/2022,3514548,Revenue - General Fund,The Beehive Enterprise Ltd,32746,"3,594.20"
Children & Learning,CHIL,Looked After Children & Provision,CHF32,OOC Social Care Residential Placements,AC0170,Social Services,MARP U16,25/05/2022,3505456,Revenue - General Fund,The Caldecott Foundation,36895,"13,263.58"
Children & Learning,CHIL,Looked After Children & Provision,CHF32,OOC Social Care Residential Placements,AC0170,Social Services,MARP U16,09/06/2022,3513958,Revenue - General Fund,The Caldecott Foundation,36895,"12,835.71"
Children & Learning,CHIL,Looked After Children & Provision,CHF32,OOC Social Care Residential Placements,AC0170,Social Services,MARP U16,14/04/2022,3432624,Revenue - General Fund,The Caldecott Foundation,36895,"12,835.71"
Children & Learning,CHIL,Looked After Children & Provision,CHF32,OOC Social Care Residential Placements,AC0170,Social Services,MARP U16,13/05/2022,3506659,Revenue - General Fund,The Serendipity Centre Ltd,17378,"16,928.55"
Children & Learning,CHIL,Looked After Children & Provision,CHF32,OOC Social Care Residential Placements,AC0170,Social Services,MARP U16,20/04/2022,3435221,Revenue - General Fund,The Serendipity Centre Ltd,17378,"17,492.84"
Children & Learning,CHIL,Looked After Children & Provision,CHF32,OOC Social Care Residential Placements,AC0170,Social Services,MARP U16,16/06/2022,3507370,Revenue - General Fund,Vital Links Solutions,31953,"1,142.86"
Children & Learning,CHIL,Looked After Children & Provision,CHF32,OOC Social Care Residential Placements,AC0170,Social Services,MARP U16,16/05/2022,3507232,Revenue - General Fund,Vital Links Solutions,31953,"8,812.86"
Children & Learning,CHIL,Looked After Children & Provision,CHF32,OOC Social Care Residential Placements,AC0170,Social Services,MARP U16,24/05/2022,3510242,Revenue - General Fund,Western Pathways,32959,"9,600.00"
Children & Learning,CHIL,Looked After Children & Provision,CHF32,OOC Social Care Residential Placements,AC0170,Social Services,MARP U16,23/05/2022,3510316,Revenue - General Fund,Western Pathways,32959,"9,828.57"
Children & Learning,CHIL,Looked After Children & Provision,CHF32,OOC Social Care Residential Placements,AC0170,Social Services,MARP U16,31/05/2022,3511345,Revenue - General Fund,Willow Brook / Assure Health Care Group,16961,"24,237.66"
Children & Learning,CHIL,Looked After Children & Provision,CHF32,OOC Social Care Residential Placements,AC0170,Social Services,MARP U16,18/05/2022,3505772,Revenue - General Fund,Your Chapter Limited,19342,"21,035.67"
Children & Learning,CHIL,Looked After Children & Provision,CHF32,OOC Social Care Residential Placements,AC0170,Social Services,MARP U16,18/05/2022,3508571,Revenue - General Fund,Your Chapter Limited,19342,"21,214.20"
Children & Learning,CHIL,Looked After Children & Provision,CHF32,OOC Social Care Residential Placements,AC0170,Miscellaneous and Initiative Expenses,Other Expenses,17/05/2022,3508090,Revenue - General Fund,Green Box Associates,32035,"1,177.50"
Children & Learning,CHIL,Looked After Children & Provision,CHF32,OOC Social Care Residential Placements,AC0170,Miscellaneous and Initiative Expenses,Other Expenses,22/04/2022,3433019,Revenue - General Fund,Paris Smith LLP,47243,960.00
Children & Learning,CHIL,Looked After Children & Provision,CHF32,OOC Social Care Residential Placements,AC0170,Miscellaneous and Initiative Expenses,Other Expenses,22/04/2022,3433020,Revenue - General Fund,Paris Smith LLP,47243,"3,409.00"
Children & Learning,CHIL,Looked After Children & Provision,CHF32,Independent Foster Carers,AC0180,Social Services,Fostering Birthday Presents,22/06/2022,3515540,Revenue - General Fund,The Adolescent & Childrens Trust (TACT),14733,"3,255.00"
Children & Learning,CHIL,Looked After Children & Provision,CHF32,Independent Foster Carers,AC0180,Contract Hire and Operating Leases,Hire of Transport & Plant,14/04/2022,3434732,Revenue - General Fund,Cab My Ride,26254,"3,450.00"
Children & Learning,CHIL,Looked After Children & Provision,CHF32,Independent Foster Carers,AC0180,Social Services,IFA Under 18,06/04/2022,3429820,Revenue - General Fund,Action for Children Services Ltd,17048,"5,712.99"
Children & Learning,CHIL,Looked After Children & Provision,CHF32,Independent Foster Carers,AC0180,Social Services,IFA Under 18,23/05/2022,3502212,Revenue - General Fund,Action for Children Services Ltd,17048,"5,528.70"
Children & Learning,CHIL,Looked After Children & Provision,CHF32,Independent Foster Carers,AC0180,Social Services,IFA Under 18,16/06/2022,3515536,Revenue - General Fund,Anchor Foster Care,15687,"4,285.80"
Children & Learning,CHIL,Looked After Children & Provision,CHF32,Independent Foster Carers,AC0180,Social Services,IFA Under 18,24/05/2022,3510036,Revenue - General Fund,Anchor Foster Care,15687,"4,428.66"
Children & Learning,CHIL,Looked After Children & Provision,CHF32,Independent Foster Carers,AC0180,Social Services,IFA Under 18,04/05/2022,3502498,Revenue - General Fund,Anchor Foster Care,15687,"4,285.80"
Children & Learning,CHIL,Looked After Children & Provision,CHF32,Independent Foster Carers,AC0180,Social Services,IFA Under 18,08/04/2022,3432992,Revenue - General Fund,Banya Family Placement Agency Ltd,19791,"3,432.14"
Children & Learning,CHIL,Looked After Children & Provision,CHF32,Independent Foster Carers,AC0180,Social Services,IFA Under 18,08/04/2022,3432993,Revenue - General Fund,Banya Family Placement Agency Ltd,19791,"3,596.00"
Children & Learning,CHIL,Looked After Children & Provision,CHF32,Independent Foster Carers,AC0180,Social Services,IFA Under 18,08/04/2022,3432996,Revenue - General Fund,Banya Family Placement Agency Ltd,19791,"3,432.14"
Children & Learning,CHIL,Looked After Children & Provision,CHF32,Independent Foster Carers,AC0180,Social Services,IFA Under 18,08/04/2022,3432997,Revenue - General Fund,Banya Family Placement Agency Ltd,19791,"5,825.82"
Children & Learning,CHIL,Looked After Children & Provision,CHF32,Independent Foster Carers,AC0180,Social Services,IFA Under 18,14/04/2022,3432991,Revenue - General Fund,Banya Family Placement Agency Ltd,19791,"3,675.85"
Children & Learning,CHIL,Looked After Children & Provision,CHF32,Independent Foster Carers,AC0180,Social Services,IFA Under 18,22/06/2022,3515761,Revenue - General Fund,Banya Family Placement Agency Ltd,19791,"3,090.85"
Children & Learning,CHIL,Looked After Children & Provision,CHF32,Independent Foster Carers,AC0180,Social Services,IFA Under 18,23/05/2022,3507139,Revenue - General Fund,Banya Family Placement Agency Ltd,19791,"3,357.00"
Children & Learning,CHIL,Looked After Children & Provision,CHF32,Independent Foster Carers,AC0180,Social Services,IFA Under 18,14/04/2022,3432989,Revenue - General Fund,Banya Family Placement Agency Ltd,19791,"3,468.90"
Children & Learning,CHIL,Looked After Children & Provision,CHF32,Independent Foster Carers,AC0180,Social Services,IFA Under 18,14/04/2022,3432995,Revenue - General Fund,Banya Family Placement Agency Ltd,19791,"3,548.75"
Children & Learning,CHIL,Looked After Children & Provision,CHF32,Independent Foster Carers,AC0180,Social Services,IFA Under 18,14/04/2022,3432990,Revenue - General Fund,Banya Family Placement Agency Ltd,19791,"3,675.84"
Children & Learning,CHIL,Looked After Children & Provision,CHF32,Independent Foster Carers,AC0180,Social Services,IFA Under 18,23/05/2022,3507141,Revenue - General Fund,Banya Family Placement Agency Ltd,19791,"3,557.28"
Children & Learning,CHIL,Looked After Children & Provision,CHF32,Independent Foster Carers,AC0180,Social Services,IFA Under 18,23/05/2022,3507143,Revenue - General Fund,Banya Family Placement Agency Ltd,19791,"3,480.00"
Children & Learning,CHIL,Looked After Children & Provision,CHF32,Independent Foster Carers,AC0180,Social Services,IFA Under 18,19/05/2022,3507147,Revenue - General Fund,Banya Family Placement Agency Ltd,19791,"5,637.89"
Children & Learning,CHIL,Looked After Children & Provision,CHF32,Independent Foster Carers,AC0180,Social Services,IFA Under 18,24/05/2022,3509412,Revenue - General Fund,Banya Family Placement Agency Ltd,19791,"3,090.84"
Children & Learning,CHIL,Looked After Children & Provision,CHF32,Independent Foster Carers,AC0180,Social Services,IFA Under 18,23/06/2022,3517321,Revenue - General Fund,Be My Family Fostering Agency,45055,"5,398.34"
Children & Learning,CHIL,Looked After Children & Provision,CHF32,Independent Foster Carers,AC0180,Social Services,IFA Under 18,20/05/2022,3509450,Revenue - General Fund,Blue Sky Fostering Limited,16789,"6,510.00"
